Council Name,Date,TransNo,Amount � (Excl VAT),Supplier name,Supplier Category,Expense Area,Expense Type,Expense Code,Unclaimed VAT
London Borough of Sutton,04/01/2024,50443074,500.00,REDACTED - PERSONAL DATA,GRANTS & EX GRATIA PAYMENTS,Environment Housing and Neighbourhoods,"Grants, Contributions & Donations",A47005,0
London Borough of Sutton,01/12/2023,50444666,"30,070.00",A Wilderness Way Ltd,CHILDREN'S SERVICES - FOSTERING & ADOPTION SERVICES,People's Services,Residential Care-Children,A56115,0
London Borough of Sutton,22/01/2024,50451455,-750.40,Abbey Care Centre,SOCIAL SERVICES RESIDENTIAL,People's Services,Nursing Care - 3rd party top up payment,A56023,0
London Borough of Sutton,22/01/2024,50451455,"3,848.24",Abbey Care Centre,SOCIAL SERVICES RESIDENTIAL,People's Services,Nursing Care - Ext Provider,A56025,0
London Borough of Sutton,22/01/2024,50451455,"-1,492.80",Abbey Care Centre,SOCIAL SERVICES RESIDENTIAL,People's Services,Nursing Care - 3rd party top up payment,A56023,0
London Borough of Sutton,22/01/2024,50451573,"4,678.84",Abbey Care Centre,SOCIAL SERVICES RESIDENTIAL,People's Services,Nursing Care - Ext Provider,A56025,0
London Borough of Sutton,22/01/2024,50451573,-878.84,Abbey Care Centre,SOCIAL SERVICES RESIDENTIAL,People's Services,Nursing Care - 3rd party top up payment,A56023,0
London Borough of Sutton,22/01/2024,50451591,"4,560.00",Abbey Care Centre,SOCIAL SERVICES RESIDENTIAL,People's Services,Nursing Care Short Term,A56026,0
London Borough of Sutton,22/01/2024,50451591,-878.84,Abbey Care Centre,SOCIAL SERVICES RESIDENTIAL,People's Services,Nursing Care - 3rd party top up payment,A56023,0
London Borough of Sutton,22/01/2024,50451684,"4,096.12",Abbey Care Centre,SOCIAL SERVICES RESIDENTIAL,People's Services,Nursing Care - Ext Provider,A56025,0
London Borough of Sutton,22/01/2024,50451684,-878.84,Abbey Care Centre,SOCIAL SERVICES RESIDENTIAL,People's Services,Nursing Care - 3rd party top up payment,A56023,0
London Borough of Sutton,09/01/2024,50444148,"4,775.76",ABC Pre-School Beddington LLP,ACADEMIC INSTNS - OTHER,People's Services,Payment - Nursery Funding,A51056,0
London Borough of Sutton,09/01/2024,50444267,"1,606.18",ABC Pre-School Beddington LLP,ACADEMIC INSTNS - OTHER,People's Services,Payment - Nursery Funding,A51056,0
London Borough of Sutton,09/01/2024,50445994,736.56,ABC Pre-School Beddington LLP,ACADEMIC INSTNS - OTHER,People's Services,Payment - school supplementary grant,A51062,0
London Borough of Sutton,01/01/2024,20065956,"1,413.00",Abel Living,ACCOMMODATION BED & BREAKFAST,Environment Housing and Neighbourhoods,Bed & Breakfast,A56000,0
London Borough of Sutton,01/01/2024,20065957,"51,753.00",Abel Living,ACCOMMODATION BED & BREAKFAST,Environment Housing and Neighbourhoods,Bed & Breakfast,A56000,0
London Borough of Sutton,25/12/2023,20065732,"7,304.59",Absolute Care Services Ltd,SOCIAL SERVICES DAY CARE,People's Services,Homecare Core Services,A56020,0
London Borough of Sutton,25/12/2023,20065733,"6,371.00",Absolute Care Services Ltd,SOCIAL SERVICES DAY CARE,People's Services,Homecare Core Services,A56020,0
London Borough of Sutton,01/01/2024,20065916,"7,304.59",Absolute Care Services Ltd,SOCIAL SERVICES DAY CARE,People's Services,Homecare Core Services,A56020,0
London Borough of Sutton,01/01/2024,20065940,"6,144.50",Absolute Care Services Ltd,SOCIAL SERVICES DAY CARE,People's Services,Homecare Core Services,A56020,0
London Borough of Sutton,08/01/2024,20066364,"7,304.59",Absolute Care Services Ltd,SOCIAL SERVICES DAY CARE,People's Services,Homecare Core Services,A56020,0
London Borough of Sutton,15/01/2024,20066985,"6,371.00",Absolute Care Services Ltd,SOCIAL SERVICES DAY CARE,People's Services,Homecare Core Services,A56020,0
London Borough of Sutton,15/01/2024,20066986,"6,144.50",Absolute Care Services Ltd,SOCIAL SERVICES DAY CARE,People's Services,Homecare Core Services,A56020,0
London Borough of Sutton,15/01/2024,20066987,"7,304.59",Absolute Care Services Ltd,SOCIAL SERVICES DAY CARE,People's Services,Homecare Core Services,A56020,0
London Borough of Sutton,29/12/2023,50442972,157.60,Absolute Care Services Ltd,SOCIAL SERVICES DAY CARE,People's Services,Home Care Services,A56019,0
London Borough of Sutton,29/12/2023,50442972,413.70,Absolute Care Services Ltd,SOCIAL SERVICES DAY CARE,People's Services,Home Care Services,A56019,0
London Borough of Sutton,24/12/2023,50445657,51.87,Absolute Care Services Ltd,SOCIAL SERVICES DAY CARE,People's Services,Home Care Services,A56019,0
London Borough of Sutton,24/12/2023,50445657,536.24,Absolute Care Services Ltd,SOCIAL SERVICES DAY CARE,People's Services,Home Care Services,A56019,0
London Borough of Sutton,24/12/2023,50445672,544.88,Absolute Care Services Ltd,SOCIAL SERVICES DAY CARE,People's Services,Home Care Services,A56019,0
London Borough of Sutton,24/12/2023,50445672,17.29,Absolute Care Services Ltd,SOCIAL SERVICES DAY CARE,People's Services,Home Care Services,A56019,0
London Borough of Sutton,24/12/2023,50445679,17.29,Absolute Care Services Ltd,SOCIAL SERVICES DAY CARE,People's Services,Home Care Services,A56019,0
London Borough of Sutton,24/12/2023,50445679,544.88,Absolute Care Services Ltd,SOCIAL SERVICES DAY CARE,People's Services,Home Care Services,A56019,0
London Borough of Sutton,24/12/2023,50447869,732.06,Absolute Care Services Ltd,SOCIAL SERVICES DAY CARE,People's Services,Home Care Services,A56019,0
London Borough of Sutton,31/12/2023,50447870,732.06,Absolute Care Services Ltd,SOCIAL SERVICES DAY CARE,People's Services,Home Care Services,A56019,0
London Borough of Sutton,07/01/2024,50447871,732.06,Absolute Care Services Ltd,SOCIAL SERVICES DAY CARE,People's Services,Home Care Services,A56019,0
London Borough of Sutton,24/12/2023,50447943,658.84,Absolute Care Services Ltd,SOCIAL SERVICES DAY CARE,People's Services,Home Care Services,A56019,0
London Borough of Sutton,31/12/2023,50447944,658.84,Absolute Care Services Ltd,SOCIAL SERVICES DAY CARE,People's Services,Home Care Services,A56019,0
London Borough of Sutton,07/01/2024,50447945,658.85,Absolute Care Services Ltd,SOCIAL SERVICES DAY CARE,People's Services,Home Care Services,A56019,0
London Borough of Sutton,24/12/2023,50448052,62.73,Absolute Care Services Ltd,SOCIAL SERVICES DAY CARE,People's Services,Home Care Services,A56019,0
London Borough of Sutton,24/12/2023,50448052,805.15,Absolute Care Services Ltd,SOCIAL SERVICES DAY CARE,People's Services,Home Care Services,A56019,0
London Borough of Sutton,31/12/2023,50448053,62.73,Absolute Care Services Ltd,SOCIAL SERVICES DAY CARE,People's Services,Home Care Services,A56019,0
London Borough of Sutton,31/12/2023,50448053,789.47,Absolute Care Services Ltd,SOCIAL SERVICES DAY CARE,People's Services,Home Care Services,A56019,0
London Borough of Sutton,07/01/2024,50448054,62.73,Absolute Care Services Ltd,SOCIAL SERVICES DAY CARE,People's Services,Home Care Services,A56019,0
London Borough of Sutton,07/01/2024,50448054,805.14,Absolute Care Services Ltd,SOCIAL SERVICES DAY CARE,People's Services,Home Care Services,A56019,0
London Borough of Sutton,31/12/2023,50448060,658.84,Absolute Care Services Ltd,SOCIAL SERVICES DAY CARE,People's Services,Home Care Services,A56019,0
London Borough of Sutton,07/01/2024,50448061,658.84,Absolute Care Services Ltd,SOCIAL SERVICES DAY CARE,People's Services,Home Care Services,A56019,0
London Borough of Sutton,24/12/2023,50448068,658.84,Absolute Care Services Ltd,SOCIAL SERVICES DAY CARE,People's Services,Home Care Services,A56019,0
London Borough of Sutton,24/12/2023,50448228,383.27,Absolute Care Services Ltd,SOCIAL SERVICES DAY CARE,People's Services,Home Care Services,A56019,0
London Borough of Sutton,24/12/2023,50448228,112.57,Absolute Care Services Ltd,SOCIAL SERVICES DAY CARE,People's Services,Home Care Services,A56019,0
London Borough of Sutton,24/12/2023,50448228,191.67,Absolute Care Services Ltd,SOCIAL SERVICES DAY CARE,People's Services,Home Care Services,A56019,0
London Borough of Sutton,31/12/2023,50448229,377.40,Absolute Care Services Ltd,SOCIAL SERVICES DAY CARE,People's Services,Home Care Services,A56019,0
London Borough of Sutton,31/12/2023,50448229,110.85,Absolute Care Services Ltd,SOCIAL SERVICES DAY CARE,People's Services,Home Care Services,A56019,0
London Borough of Sutton,31/12/2023,50448229,173.33,Absolute Care Services Ltd,SOCIAL SERVICES DAY CARE,People's Services,Home Care Services,A56019,0
London Borough of Sutton,24/12/2023,50448300,553.33,Absolute Care Services Ltd,SOCIAL SERVICES DAY CARE,People's Services,Home Care Services,A56019,0
London Borough of Sutton,31/12/2023,50448301,531.72,Absolute Care Services Ltd,SOCIAL SERVICES DAY CARE,People's Services,Home Care Services,A56019,0
London Borough of Sutton,31/12/2023,50448406,501.42,Absolute Care Services Ltd,SOCIAL SERVICES DAY CARE,People's Services,Home Care Services,A56019,0
London Borough of Sutton,31/12/2023,50448406,250.71,Absolute Care Services Ltd,SOCIAL SERVICES DAY CARE,People's Services,Home Care Services,A56019,0
London Borough of Sutton,24/12/2023,50448413,484.12,Absolute Care Services Ltd,SOCIAL SERVICES DAY CARE,People's Services,Home Care Services,A56019,0
London Borough of Sutton,24/12/2023,50448413,242.06,Absolute Care Services Ltd,SOCIAL SERVICES DAY CARE,People's Services,Home Care Services,A56019,0
London Borough of Sutton,31/12/2023,50448422,17.83,Absolute Care Services Ltd,SOCIAL SERVICES DAY CARE,People's Services,Home Care Services,A56019,0
London Borough of Sutton,31/12/2023,50448422,561.63,Absolute Care Services Ltd,SOCIAL SERVICES DAY CARE,People's Services,Home Care Services,A56019,0
London Borough of Sutton,07/01/2024,50448423,17.83,Absolute Care Services Ltd,SOCIAL SERVICES DAY CARE,People's Services,Home Care Services,A56019,0
London Borough of Sutton,07/01/2024,50448423,561.63,Absolute Care Services Ltd,SOCIAL SERVICES DAY CARE,People's Services,Home Care Services,A56019,0
London Borough of Sutton,31/12/2023,50448520,544.88,Absolute Care Services Ltd,SOCIAL SERVICES DAY CARE,People's Services,Home Care Services,A56019,0
London Borough of Sutton,31/12/2023,50448520,17.29,Absolute Care Services Ltd,SOCIAL SERVICES DAY CARE,People's Services,Home Care Services,A56019,0
London Borough of Sutton,07/01/2024,50448521,544.88,Absolute Care Services Ltd,SOCIAL SERVICES DAY CARE,People's Services,Home Care Services,A56019,0
London Borough of Sutton,07/01/2024,50448521,17.29,Absolute Care Services Ltd,SOCIAL SERVICES DAY CARE,People's Services,Home Care Services,A56019,0
London Borough of Sutton,31/12/2023,50448660,544.88,Absolute Care Services Ltd,SOCIAL SERVICES DAY CARE,People's Services,Home Care Services,A56019,0
London Borough of Sutton,07/01/2024,50448661,544.88,Absolute Care Services Ltd,SOCIAL SERVICES DAY CARE,People's Services,Home Care Services,A56019,0
London Borough of Sutton,31/12/2023,50448697,51.87,Absolute Care Services Ltd,SOCIAL SERVICES DAY CARE,People's Services,Home Care Services,A56019,0
London Borough of Sutton,31/12/2023,50448697,536.24,Absolute Care Services Ltd,SOCIAL SERVICES DAY CARE,People's Services,Home Care Services,A56019,0
London Borough of Sutton,07/01/2024,50448698,51.87,Absolute Care Services Ltd,SOCIAL SERVICES DAY CARE,People's Services,Home Care Services,A56019,0
London Borough of Sutton,07/01/2024,50448698,536.25,Absolute Care Services Ltd,SOCIAL SERVICES DAY CARE,People's Services,Home Care Services,A56019,0
London Borough of Sutton,24/12/2023,50449400,31.80,Absolute Care Services Ltd,SOCIAL SERVICES DAY CARE,People's Services,Home Care Services,A56019,0
London Borough of Sutton,24/12/2023,50449400,658.42,Absolute Care Services Ltd,SOCIAL SERVICES DAY CARE,People's Services,Home Care Services,A56019,0
London Borough of Sutton,31/12/2023,50449401,31.80,Absolute Care Services Ltd,SOCIAL SERVICES DAY CARE,People's Services,Home Care Services,A56019,0
London Borough of Sutton,31/12/2023,50449401,658.42,Absolute Care Services Ltd,SOCIAL SERVICES DAY CARE,People's Services,Home Care Services,A56019,0
London Borough of Sutton,07/01/2024,50449402,62.70,Absolute Care Services Ltd,SOCIAL SERVICES DAY CARE,People's Services,Home Care Services,A56019,0
London Borough of Sutton,07/01/2024,50449402,564.76,Absolute Care Services Ltd,SOCIAL SERVICES DAY CARE,People's Services,Home Care Services,A56019,0
London Borough of Sutton,24/12/2023,50449451,167.21,Absolute Care Services Ltd,SOCIAL SERVICES DAY CARE,People's Services,Home Care Services,A56019,0
London Borough of Sutton,24/12/2023,50449451,460.23,Absolute Care Services Ltd,SOCIAL SERVICES DAY CARE,People's Services,Home Care Services,A56019,0
London Borough of Sutton,31/12/2023,50449452,167.21,Absolute Care Services Ltd,SOCIAL SERVICES DAY CARE,People's Services,Home Care Services,A56019,0
London Borough of Sutton,31/12/2023,50449452,460.23,Absolute Care Services Ltd,SOCIAL SERVICES DAY CARE,People's Services,Home Care Services,A56019,0
London Borough of Sutton,07/01/2024,50449453,167.21,Absolute Care Services Ltd,SOCIAL SERVICES DAY CARE,People's Services,Home Care Services,A56019,0
London Borough of Sutton,07/01/2024,50449453,460.23,Absolute Care Services Ltd,SOCIAL SERVICES DAY CARE,People's Services,Home Care Services,A56019,0
London Borough of Sutton,07/01/2024,50449460,492.77,Absolute Care Services Ltd,SOCIAL SERVICES DAY CARE,People's Services,Home Care Services,A56019,0
London Borough of Sutton,07/01/2024,50449460,242.06,Absolute Care Services Ltd,SOCIAL SERVICES DAY CARE,People's Services,Home Care Services,A56019,0
London Borough of Sutton,07/01/2024,50449464,518.75,Absolute Care Services Ltd,SOCIAL SERVICES DAY CARE,People's Services,Home Care Services,A56019,0
London Borough of Sutton,24/12/2023,50449580,544.88,Absolute Care Services Ltd,SOCIAL SERVICES DAY CARE,People's Services,Home Care Services,A56019,0
London Borough of Sutton,14/01/2024,50449709,544.88,Absolute Care Services Ltd,SOCIAL SERVICES DAY CARE,People's Services,Home Care Services,A56019,0
London Borough of Sutton,14/01/2024,50449709,17.29,Absolute Care Services Ltd,SOCIAL SERVICES DAY CARE,People's Services,Home Care Services,A56019,0
London Borough of Sutton,14/01/2024,50449749,34.58,Absolute Care Services Ltd,SOCIAL SERVICES DAY CARE,People's Services,Home Care Services,A56019,0
London Borough of Sutton,14/01/2024,50449749,544.88,Absolute Care Services Ltd,SOCIAL SERVICES DAY CARE,People's Services,Home Care Services,A56019,0
London Borough of Sutton,14/01/2024,50449767,544.88,Absolute Care Services Ltd,SOCIAL SERVICES DAY CARE,People's Services,Home Care Services,A56019,0
London Borough of Sutton,14/01/2024,50449771,51.87,Absolute Care Services Ltd,SOCIAL SERVICES DAY CARE,People's Services,Home Care Services,A56019,0
London Borough of Sutton,14/01/2024,50449771,536.25,Absolute Care Services Ltd,SOCIAL SERVICES DAY CARE,People's Services,Home Care Services,A56019,0
London Borough of Sutton,14/01/2024,50450064,658.84,Absolute Care Services Ltd,SOCIAL SERVICES DAY CARE,People's Services,Home Care Services,A56019,0
London Borough of Sutton,14/01/2024,50450073,62.73,Absolute Care Services Ltd,SOCIAL SERVICES DAY CARE,People's Services,Home Care Services,A56019,0
London Borough of Sutton,14/01/2024,50450073,846.96,Absolute Care Services Ltd,SOCIAL SERVICES DAY CARE,People's Services,Home Care Services,A56019,0
London Borough of Sutton,14/01/2024,50450076,732.06,Absolute Care Services Ltd,SOCIAL SERVICES DAY CARE,People's Services,Home Care Services,A56019,0
London Borough of Sutton,14/01/2024,50450095,167.21,Absolute Care Services Ltd,SOCIAL SERVICES DAY CARE,People's Services,Home Care Services,A56019,0
London Borough of Sutton,14/01/2024,50450095,439.33,Absolute Care Services Ltd,SOCIAL SERVICES DAY CARE,People's Services,Home Care Services,A56019,0
London Borough of Sutton,14/01/2024,50450103,658.84,Absolute Care Services Ltd,SOCIAL SERVICES DAY CARE,People's Services,Home Care Services,A56019,0
London Borough of Sutton,14/01/2024,50450716,518.75,Absolute Care Services Ltd,SOCIAL SERVICES DAY CARE,People's Services,Home Care Services,A56019,0
London Borough of Sutton,14/01/2024,50450833,484.12,Absolute Care Services Ltd,SOCIAL SERVICES DAY CARE,People's Services,Home Care Services,A56019,0
London Borough of Sutton,14/01/2024,50450833,242.06,Absolute Care Services Ltd,SOCIAL SERVICES DAY CARE,People's Services,Home Care Services,A56019,0
London Borough of Sutton,03/01/2024,20066095,"104,030.44",Access UK Limited,TAXI AND COACH HIRE,People's Services,Childrens Social Care Transport,A32009,0
London Borough of Sutton,10/01/2024,20066697,"42,397.60",Access UK Limited,TAXI AND COACH HIRE,People's Services,Childrens Social Care Transport,A32009,0
London Borough of Sutton,17/01/2024,20067267,"183,526.94",Access UK Limited,TAXI AND COACH HIRE,People's Services,Childrens Social Care Transport,A32009,0
London Borough of Sutton,24/01/2024,20067695,"224,845.91",Access UK Limited,TAXI AND COACH HIRE,People's Services,Childrens Social Care Transport,A32009,0
London Borough of Sutton,31/01/2023,20065522,"199,534.52",Access UK Limited,IT EQUIPMENT MAINTENANCE,Resources,IT Software Maintenance,A45045,0
London Borough of Sutton,04/01/2024,50445233,"5,614.18",Accomplish Group Ltd,SOCIAL SERVICES RESIDENTIAL,People's Services,Supported Living,A56088,0
London Borough of Sutton,08/01/2024,50449343,"4,847.17",Accomplish Group Ltd,SOCIAL SERVICES RESIDENTIAL,People's Services,Supported Living,A56088,0
London Borough of Sutton,08/01/2024,50449407,"1,655.81",Accomplish Group Ltd,SOCIAL SERVICES RESIDENTIAL,People's Services,Supported Living,A56088,0
London Borough of Sutton,08/01/2024,50449407,"1,540.00",Accomplish Group Ltd,SOCIAL SERVICES RESIDENTIAL,People's Services,Supported Living,A56088,0
London Borough of Sutton,22/01/2024,50451177,"8,103.64",Achieve Together Limited,SOCIAL SERVICES RESIDENTIAL,People's Services,Residential Care - Ext Provider,A56114,0
London Borough of Sutton,22/01/2024,50451177,-467.20,Achieve Together Limited,SOCIAL SERVICES RESIDENTIAL,People's Services,Residential Care - Client Cont ( Net Paymt ),A56113,0
London Borough of Sutton,22/01/2024,50451180,-537.00,Achieve Together Limited,SOCIAL SERVICES RESIDENTIAL,People's Services,Residential Care - Client Cont ( Net Paymt ),A56113,0
London Borough of Sutton,22/01/2024,50451180,"4,682.44",Achieve Together Limited,SOCIAL SERVICES RESIDENTIAL,People's Services,Residential Care - Ext Provider,A56114,0
London Borough of Sutton,22/01/2024,50451201,"5,810.56",Achieve Together Limited,SOCIAL SERVICES RESIDENTIAL,People's Services,Residential Care - Ext Provider,A56114,0
London Borough of Sutton,22/01/2024,50451223,"5,100.00",Achieve Together Limited,SOCIAL SERVICES RESIDENTIAL,People's Services,Residential Care - Ext Provider,A56114,0
London Borough of Sutton,22/01/2024,50451228,"7,303.88",Achieve Together Limited,SOCIAL SERVICES RESIDENTIAL,People's Services,Residential Care - Ext Provider,A56114,0
London Borough of Sutton,22/01/2024,50451269,-507.20,Achieve Together Limited,SOCIAL SERVICES RESIDENTIAL,People's Services,Residential Care - Client Cont ( Net Paymt ),A56113,0
London Borough of Sutton,22/01/2024,50451269,"6,845.04",Achieve Together Limited,SOCIAL SERVICES RESIDENTIAL,People's Services,Residential Care - Ext Provider,A56114,0
London Borough of Sutton,22/01/2024,50451270,-549.00,Achieve Together Limited,SOCIAL SERVICES RESIDENTIAL,People's Services,Residential Care - Client Cont ( Net Paymt ),A56113,0
London Borough of Sutton,22/01/2024,50451270,390.00,Achieve Together Limited,SOCIAL SERVICES RESIDENTIAL,People's Services,One to One Care,A56108,0
London Borough of Sutton,22/01/2024,50451270,"4,375.48",Achieve Together Limited,SOCIAL SERVICES RESIDENTIAL,People's Services,Residential Care - Ext Provider,A56114,0
London Borough of Sutton,08/01/2024,50446425,"3,277.00",ACHIEVE TOGETHER LTD,SOCIAL SERVICES RESIDENTIAL,People's Services,Home Care Services,A56019,0
London Borough of Sutton,22/01/2024,50451012,"4,878.87",ACHIEVE TOGETHER LTD,SOCIAL SERVICES RESIDENTIAL,People's Services,Supported Living,A56088,0
London Borough of Sutton,22/01/2024,50451023,"1,061.44",ACHIEVE TOGETHER LTD,SOCIAL SERVICES RESIDENTIAL,People's Services,Supported Living,A56088,0
London Borough of Sutton,22/01/2024,50451023,"1,061.44",ACHIEVE TOGETHER LTD,SOCIAL SERVICES RESIDENTIAL,People's Services,Supported Living,A56088,0
London Borough of Sutton,22/01/2024,50451023,888.11,ACHIEVE TOGETHER LTD,SOCIAL SERVICES RESIDENTIAL,People's Services,Supported Living,A56088,0
London Borough of Sutton,22/01/2024,50451024,"2,653.60",ACHIEVE TOGETHER LTD,SOCIAL SERVICES RESIDENTIAL,People's Services,Supported Living,A56088,0
London Borough of Sutton,22/01/2024,50451080,"2,388.24",ACHIEVE TOGETHER LTD,SOCIAL SERVICES RESIDENTIAL,People's Services,Supported Living,A56088,0
London Borough of Sutton,22/01/2024,50451080,619.42,ACHIEVE TOGETHER LTD,SOCIAL SERVICES RESIDENTIAL,People's Services,Supported Living,A56088,0
London Borough of Sutton,22/01/2024,50451080,641.52,ACHIEVE TOGETHER LTD,SOCIAL SERVICES RESIDENTIAL,People's Services,Supported Living,A56088,0
London Borough of Sutton,22/01/2024,50451088,"1,232.38",ACHIEVE TOGETHER LTD,SOCIAL SERVICES RESIDENTIAL,People's Services,Supported Living,A56088,0
London Borough of Sutton,22/01/2024,50451088,"2,727.77",ACHIEVE TOGETHER LTD,SOCIAL SERVICES RESIDENTIAL,People's Services,Supported Living,A56088,0
London Borough of Sutton,22/01/2024,50451088,"9,090.75",ACHIEVE TOGETHER LTD,SOCIAL SERVICES RESIDENTIAL,People's Services,Supported Living,A56088,0
London Borough of Sutton,22/01/2024,50451088,"6,311.61",ACHIEVE TOGETHER LTD,SOCIAL SERVICES RESIDENTIAL,People's Services,Supported Living,A56088,0
London Borough of Sutton,22/01/2024,50451104,"2,940.17",ACHIEVE TOGETHER LTD,SOCIAL SERVICES RESIDENTIAL,People's Services,Supported Living,A56088,0
London Borough of Sutton,22/01/2024,50451104,"3,184.32",ACHIEVE TOGETHER LTD,SOCIAL SERVICES RESIDENTIAL,People's Services,Supported Living,A56088,0
London Borough of Sutton,22/01/2024,50451125,-483.20,ACHIEVE TOGETHER LTD,SOCIAL SERVICES RESIDENTIAL,People's Services,Residential Care - Client Cont ( Net Paymt ),A56113,0
London Borough of Sutton,22/01/2024,50451125,"5,620.60",ACHIEVE TOGETHER LTD,SOCIAL SERVICES RESIDENTIAL,People's Services,Residential Care - Ext Provider,A56114,0
London Borough of Sutton,22/01/2024,50451134,"11,047.88",ACHIEVE TOGETHER LTD,SOCIAL SERVICES RESIDENTIAL,People's Services,Residential Care - Ext Provider,A56114,0
London Borough of Sutton,22/01/2024,50451164,"4,653.76",ACHIEVE TOGETHER LTD,SOCIAL SERVICES RESIDENTIAL,People's Services,Residential Care - Ext Provider,A56114,0
London Borough of Sutton,22/01/2024,50451297,"8,716.00",ACHIEVE TOGETHER LTD,SOCIAL SERVICES RESIDENTIAL,People's Services,Residential Care - Ext Provider,A56114,0
London Borough of Sutton,02/01/2024,50444673,"33,671.89",Achieving Above Average Ltd,CHILDREN'S SERVICES - RESIDENTIAL,People's Services,Residential Care-Children,A56115,0
London Borough of Sutton,17/01/2024,50452134,"16,599.00",Achieving For Children Limited,SOCIAL SERVICES - OTHER,People's Services,Top-up Funding,A51016,0
London Borough of Sutton,22/01/2024,50451289,"4,231.40",CARELODGE GROUP LTD,SOCIAL SERVICES RESIDENTIAL,People's Services,Residential Care - Ext Provider,A56114,0
London Borough of Sutton,15/01/2024,50449619,"2,958.00",Activate Learning,ACADEMIC INSTNS - OTHER,People's Services,Top-up Funding,A51016,0
London Borough of Sutton,22/01/2024,50451236,"8,918.80",Active Prospects,SOCIAL SERVICES DAY CARE,People's Services,Residential Care - Ext Provider,A56114,0
London Borough of Sutton,22/01/2024,50451236,-702.40,Active Prospects,SOCIAL SERVICES DAY CARE,People's Services,Residential Care - Client Cont ( Net Paymt ),A56113,0
London Borough of Sutton,22/01/2024,50451286,"6,441.84",Active Prospects,SOCIAL SERVICES DAY CARE,People's Services,Residential Care - Ext Provider,A56114,0
London Borough of Sutton,23/12/2023,20066063,"13,350.00",Adapted4 Limited,GRANTS & EX GRATIA PAYMENTS,Environment Housing and Neighbourhoods,Grants Given For Capital Purposes,C20004,0
London Borough of Sutton,22/01/2024,50451146,"6,000.00",Admiral Healthcare Ltd.,SOCIAL SERVICES RESIDENTIAL,People's Services,Residential Care - Ext Provider,A56114,0
London Borough of Sutton,22/01/2024,50451238,"1,458.00",Admiral Healthcare Ltd.,SOCIAL SERVICES RESIDENTIAL,People's Services,Residential Care - Ext Provider,A56114,0
London Borough of Sutton,21/12/2023,50444646,"3,317.31",Affinity Fostering Services Ltd,CHILDREN'S SERVICES - FOSTERING & ADOPTION SERVICES,People's Services,Foster Parents Support,A44110,0
London Borough of Sutton,21/12/2023,50444653,"3,715.35",Affinity Fostering Services Ltd,CHILDREN'S SERVICES - FOSTERING & ADOPTION SERVICES,People's Services,Foster Parents Support,A44110,0
London Borough of Sutton,21/12/2023,50444654,"3,527.49",Affinity Fostering Services Ltd,CHILDREN'S SERVICES - FOSTERING & ADOPTION SERVICES,People's Services,Foster Parents Support,A44110,0
London Borough of Sutton,21/12/2023,50444659,"3,494.01",Affinity Fostering Services Ltd,CHILDREN'S SERVICES - FOSTERING & ADOPTION SERVICES,People's Services,Foster Parents Support,A44110,0
London Borough of Sutton,22/01/2024,50451095,"2,024.21",Agincare Enable Limited,SOCIAL SERVICES RESIDENTIAL,People's Services,One to One Care,A56108,0
London Borough of Sutton,22/01/2024,50451095,"2,024.21",Agincare Enable Limited,SOCIAL SERVICES RESIDENTIAL,People's Services,Supported Living,A56088,0
London Borough of Sutton,22/01/2024,50451095,455.70,Agincare Enable Limited,SOCIAL SERVICES RESIDENTIAL,People's Services,Supported Living,A56088,0
London Borough of Sutton,22/01/2024,50451155,"6,600.00",Leighton House Ltd,SOCIAL SERVICES RESIDENTIAL,People's Services,Nursing Care Short Term,A56026,0
London Borough of Sutton,22/01/2024,50451155,"-3,300.00",Leighton House Ltd,SOCIAL SERVICES RESIDENTIAL,People's Services,Nursing Care - 3rd party top up payment,A56023,0
London Borough of Sutton,22/01/2024,50451279,"7,793.40",Leighton House Ltd,SOCIAL SERVICES RESIDENTIAL,People's Services,Residential Care - Ext Provider,A56114,0
London Borough of Sutton,31/12/2023,20065800,"4,734.44",Albany Housing YP Ltd,CARE LEAVERS,People's Services,Approved Lodgings,A61000,0
London Borough of Sutton,04/01/2024,50443106,500.00,REDACTED - PERSONAL DATA,GRANTS & EX GRATIA PAYMENTS,Environment Housing and Neighbourhoods,"Grants, Contributions & Donations",A47005,0
London Borough of Sutton,21/12/2023,50443375,"1,875.00",All Behaviour Consultancy Ltd,CHILDREN'S SERVICES - SEN SERVICES,People's Services,Special Educational Needs,A51015,0
London Borough of Sutton,01/01/2024,50443391,"21,943.87",All Saints Benhilton C Of E,GRANTS & EX GRATIA PAYMENTS,People's Services,Top-up Funding,A51016,0
London Borough of Sutton,09/01/2024,50445715,"168,131.48",All Saints Benhilton C Of E,GRANTS & EX GRATIA PAYMENTS,People's Services,Payments to Schools,A51013,0
London Borough of Sutton,09/01/2024,50445759,"17,055.52",All Saints Benhilton C Of E,GRANTS & EX GRATIA PAYMENTS,People's Services,Payment - Nursery Funding,A51056,0
London Borough of Sutton,09/01/2024,50445810,"1,393.52",All Saints Benhilton C Of E,GRANTS & EX GRATIA PAYMENTS,People's Services,Payment - school supplementary grant,A51062,0
London Borough of Sutton,15/01/2024,50448723,"1,004.06",All Saints Benhilton C Of E,GRANTS & EX GRATIA PAYMENTS,People's Services,Payment - school led tutoring grant,A51060,0
London Borough of Sutton,15/01/2024,50448753,"1,957.50",All Saints Benhilton C Of E,GRANTS & EX GRATIA PAYMENTS,People's Services,Payment - Covid 19 Recovery Premium,A51039,0
London Borough of Sutton,15/01/2024,50448760,"17,823.00",All Saints Benhilton C Of E,GRANTS & EX GRATIA PAYMENTS,People's Services,Payment - Deprivation Pupil Premium,A51030,0
London Borough of Sutton,15/01/2024,50448786,"2,530.00",All Saints Benhilton C Of E,GRANTS & EX GRATIA PAYMENTS,People's Services,Payment - Post-LAC Pupil Premium,A51032,0
London Borough of Sutton,01/01/2024,50443392,"22,017.24",All Saints Carshalton Primary School,SCHOOL FUNDS,People's Services,Top-up Funding,A51016,0
London Borough of Sutton,09/01/2024,50445760,"14,380.15",All Saints Carshalton Primary School,SCHOOL FUNDS,People's Services,Payment - Nursery Funding,A51056,0
London Borough of Sutton,09/01/2024,50445807,562.80,All Saints Carshalton Primary School,SCHOOL FUNDS,People's Services,Payment - Nursery Funding,A51056,0
London Borough of Sutton,09/01/2024,50445811,"1,174.93",All Saints Carshalton Primary School,SCHOOL FUNDS,People's Services,Payment - school supplementary grant,A51062,0
London Borough of Sutton,29/01/2024,50454085,690.00,All Saints Carshalton Primary School,SCHOOL FUNDS,Resources,"Grants, Contributions & Donations",A47005,0
London Borough of Sutton,29/01/2024,50454125,"4,000.00",All Saints Carshalton Primary School,SCHOOL FUNDS,People's Services,Predictable Needs funding,A56125,0
London Borough of Sutton,31/12/2023,50444567,"9,026.18",All4U Fostering Ltd,CHILDREN'S SERVICES - FOSTERING & ADOPTION SERVICES,People's Services,Foster Parents Support,A44110,0
London Borough of Sutton,31/12/2023,50444568,"5,761.35",All4U Fostering Ltd,CHILDREN'S SERVICES - FOSTERING & ADOPTION SERVICES,People's Services,Foster Parents Support,A44110,0
London Borough of Sutton,29/12/2023,50444578,"5,470.17",All4U Fostering Ltd,CHILDREN'S SERVICES - FOSTERING & ADOPTION SERVICES,People's Services,Foster Parents Support,A44110,0
London Borough of Sutton,30/11/2023,50444579,"2,261.36",All4U Fostering Ltd,CHILDREN'S SERVICES - FOSTERING & ADOPTION SERVICES,People's Services,Foster Parents Support,A44110,0
London Borough of Sutton,22/01/2024,50451267,"4,806.52",Allied Care (Mhs) Ltd,SOCIAL SERVICES - OTHER,People's Services,Residential Care - Ext Provider,A56114,0
London Borough of Sutton,29/12/2023,20066036,665.39,Allied Publicity Services (Manchester) Ltd,REPROGRAPHICS & PHOTOGRAPHY,Health and Wellbeing,Mobility Scheme for the Disabled,A61015,0
London Borough of Sutton,14/01/2024,20067518,"1,750.00",Alljos Services Ltd,PREMISES - CLEANING & LAUNDRY,Environment Housing and Neighbourhoods,Grants Given For Capital Purposes,C20004,0
London Borough of Sutton,01/01/2024,20065846,"1,582.81",Allstar Business Solutions,FUEL AND VEHICLE SUPPLIES,Environment Housing and Neighbourhoods,Vehicles -  Fuel,A30015,0
London Borough of Sutton,22/01/2024,50451324,"5,397.60",Allswell Care Services Ltd,SOCIAL SERVICES RESIDENTIAL,People's Services,Residential Care - Ext Provider,A56114,0
London Borough of Sutton,22/01/2024,50451511,"6,609.52",Allswell Care Services Ltd,SOCIAL SERVICES RESIDENTIAL,People's Services,Residential Care - Ext Provider,A56114,0
London Borough of Sutton,22/01/2024,50451618,"5,397.60",Allswell Care Services Ltd,SOCIAL SERVICES RESIDENTIAL,People's Services,Residential Care - Ext Provider,A56114,0
London Borough of Sutton,11/09/2023,50446277,"1,884.90",Alpenbest Limited,SOCIAL SERVICES DAY CARE,People's Services,Home Care Services,A56019,0
London Borough of Sutton,08/01/2024,50448199,770.56,Alpenbest Limited,SOCIAL SERVICES DAY CARE,People's Services,Home Care Services,A56019,0
London Borough of Sutton,08/01/2024,50449350,699.11,Alpenbest Limited,SOCIAL SERVICES DAY CARE,People's Services,Home Care Services,A56019,0
London Borough of Sutton,08/01/2024,50449354,"1,889.60",Alpenbest Limited,SOCIAL SERVICES DAY CARE,People's Services,Home Care Services,A56019,0
London Borough of Sutton,08/01/2024,50449357,707.61,Alpenbest Limited,SOCIAL SERVICES DAY CARE,People's Services,Home Care Services,A56019,0
London Borough of Sutton,08/01/2024,50449358,"1,277.89",Alpenbest Limited,SOCIAL SERVICES DAY CARE,People's Services,Home Care Services,A56019,0
London Borough of Sutton,08/01/2024,50449359,"1,668.01",Alpenbest Limited,SOCIAL SERVICES DAY CARE,People's Services,Home Care Services,A56019,0
London Borough of Sutton,08/01/2024,50449360,"2,243.80",Alpenbest Limited,SOCIAL SERVICES DAY CARE,People's Services,Home Care Services,A56019,0
London Borough of Sutton,08/01/2024,50449361,"2,580.23",Alpenbest Limited,SOCIAL SERVICES DAY CARE,People's Services,Home Care Services,A56019,0
London Borough of Sutton,08/01/2024,50449362,"1,626.24",Alpenbest Limited,SOCIAL SERVICES DAY CARE,People's Services,Home Care Services,A56019,0
London Borough of Sutton,08/01/2024,50449363,"2,534.90",Alpenbest Limited,SOCIAL SERVICES DAY CARE,People's Services,Home Care Services,A56019,0
London Borough of Sutton,08/01/2024,50449404,"1,312.73",Alpenbest Limited,SOCIAL SERVICES DAY CARE,People's Services,Home Care Services,A56019,0
London Borough of Sutton,08/01/2024,50449414,709.54,Alpenbest Limited,SOCIAL SERVICES DAY CARE,People's Services,Home Care Services,A56019,0
London Borough of Sutton,08/01/2024,50449415,718.25,Alpenbest Limited,SOCIAL SERVICES DAY CARE,People's Services,Home Care Services,A56019,0
London Borough of Sutton,08/01/2024,50449421,737.44,Alpenbest Limited,SOCIAL SERVICES DAY CARE,People's Services,Home Care Services,A56019,0
London Borough of Sutton,08/01/2024,50449422,953.60,Alpenbest Limited,SOCIAL SERVICES DAY CARE,People's Services,Home Care Services,A56019,0
London Borough of Sutton,08/01/2024,50449423,824.60,Alpenbest Limited,SOCIAL SERVICES DAY CARE,People's Services,Home Care Services,A56019,0
London Borough of Sutton,08/01/2024,50449425,803.68,Alpenbest Limited,SOCIAL SERVICES DAY CARE,People's Services,Home Care Services,A56019,0
London Borough of Sutton,08/01/2024,50449426,"3,008.43",Alpenbest Limited,SOCIAL SERVICES DAY CARE,People's Services,Home Care Services,A56019,0
London Borough of Sutton,08/01/2024,50449426,585.20,Alpenbest Limited,SOCIAL SERVICES DAY CARE,People's Services,Home Care Services,A56019,0
London Borough of Sutton,08/01/2024,50449427,"1,314.48",Alpenbest Limited,SOCIAL SERVICES DAY CARE,People's Services,Home Care Services,A56019,0
London Borough of Sutton,08/01/2024,50449441,700.82,Alpenbest Limited,SOCIAL SERVICES DAY CARE,People's Services,Home Care Services,A56019,0
London Borough of Sutton,08/01/2024,50449445,770.55,Alpenbest Limited,SOCIAL SERVICES DAY CARE,People's Services,Home Care Services,A56019,0
London Borough of Sutton,08/01/2024,50449446,"1,304.04",Alpenbest Limited,SOCIAL SERVICES DAY CARE,People's Services,Home Care Services,A56019,0
London Borough of Sutton,08/01/2024,50449447,672.93,Alpenbest Limited,SOCIAL SERVICES DAY CARE,People's Services,Home Care Services,A56019,0
London Borough of Sutton,08/01/2024,50449449,732.20,Alpenbest Limited,SOCIAL SERVICES DAY CARE,People's Services,Home Care Services,A56019,0
London Borough of Sutton,08/01/2024,50449450,883.87,Alpenbest Limited,SOCIAL SERVICES DAY CARE,People's Services,Home Care Services,A56019,0
London Borough of Sutton,18/01/2024,50452050,"4,218.92",Alpenbest Limited,SOCIAL SERVICES DAY CARE,People's Services,Home Care Services,A56019,0
London Borough of Sutton,08/01/2024,50452051,"3,490.16",Alpenbest Limited,SOCIAL SERVICES DAY CARE,People's Services,Home Care Services,A56019,0
London Borough of Sutton,08/01/2024,50452051,"1,609.72",Alpenbest Limited,SOCIAL SERVICES DAY CARE,People's Services,Home Care Services,A56019,0
London Borough of Sutton,08/01/2024,50452068,807.16,Alpenbest Limited,SOCIAL SERVICES DAY CARE,People's Services,Home Care Services,A56019,0
London Borough of Sutton,11/12/2023,50452073,"2,487.75",Alpenbest Limited,SOCIAL SERVICES DAY CARE,People's Services,Home Care Services,A56019,0
London Borough of Sutton,11/09/2023,50452074,"1,183.12",Alpenbest Limited,SOCIAL SERVICES DAY CARE,People's Services,Home Care Services,A56019,0
London Borough of Sutton,11/12/2023,50452075,"2,498.11",Alpenbest Limited,SOCIAL SERVICES DAY CARE,People's Services,Home Care Services,A56019,0
London Borough of Sutton,08/01/2024,50452098,650.24,Alpenbest Limited,SOCIAL SERVICES DAY CARE,People's Services,Home Care Services,A56019,0
London Borough of Sutton,04/01/2024,50443100,500.00,REDACTED - PERSONAL DATA,GRANTS & EX GRATIA PAYMENTS,Environment Housing and Neighbourhoods,"Grants, Contributions & Donations",A47005,0
London Borough of Sutton,09/01/2024,50444149,679.22,REDACTED - PERSONAL DATA,GRANTS & EX GRATIA PAYMENTS,People's Services,Payment - Nursery Funding,A51056,0
London Borough of Sutton,08/12/2023,50443363,"21,439.32",AMBITIOUS ABOUT AUTISM,CHILDREN'S SERVICES - SEN SERVICES,People's Services,Independent School Fees,A56002,0
London Borough of Sutton,09/01/2024,50444160,"1,999.41",REDACTED - PERSONAL DATA,CHILDMINDERS START UP GRANT,People's Services,Payment - Nursery Funding,A51056,0
London Borough of Sutton,04/01/2024,50443082,500.00,REDACTED - PERSONAL DATA,GRANTS & EX GRATIA PAYMENTS,Environment Housing and Neighbourhoods,"Grants, Contributions & Donations",A47005,0
London Borough of Sutton,23/12/2023,20066445,"1,096.00",REDACTED - PERSONAL DATA,PLS LANDLORDS,Environment Housing and Neighbourhoods,Temporary Protection - Homeless Persons,A62028,0
London Borough of Sutton,09/01/2024,50444193,999.70,REDACTED - PERSONAL DATA,GRANTS & EX GRATIA PAYMENTS,People's Services,Payment - Nursery Funding,A51056,0
London Borough of Sutton,07/01/2024,50447832,"2,180.08",Ansacare Fostering Agency Ltd,CHILDREN'S SERVICES - FOSTERING & ADOPTION SERVICES,People's Services,Foster Parents Support,A44110,0
London Borough of Sutton,07/01/2024,50447832,"1,376.90",Ansacare Fostering Agency Ltd,CHILDREN'S SERVICES - FOSTERING & ADOPTION SERVICES,People's Services,Foster Parents Support,A44110,0
London Borough of Sutton,07/01/2024,50447833,"3,476.43",Ansacare Fostering Agency Ltd,CHILDREN'S SERVICES - FOSTERING & ADOPTION SERVICES,People's Services,Foster Parents Support,A44110,0
London Borough of Sutton,04/01/2024,50443090,500.00,REDACTED - PERSONAL DATA,GRANTS & EX GRATIA PAYMENTS,Environment Housing and Neighbourhoods,"Grants, Contributions & Donations",A47005,0
London Borough of Sutton,31/10/2023,20061552,650.00,Aoc Archaeology Group,LEGAL & PROFESSIONAL SERVICES,Development Growth and Regeneration,External Fees and Consultants,C20000,0
London Borough of Sutton,31/12/2023,20066035,"9,951.00",Apex Housing Solutions Ltd,SOCIAL SERVICES DAY CARE,Environment Housing and Neighbourhoods,Bed & Breakfast,A56000,0
London Borough of Sutton,22/01/2024,50451290,"7,400.00",Aria Healthcare Group Ltd,SOCIAL SERVICES RESIDENTIAL,People's Services,Nursing Care - Ext Provider,A56025,0
London Borough of Sutton,22/01/2024,50451290,-878.84,Aria Healthcare Group Ltd,SOCIAL SERVICES RESIDENTIAL,People's Services,Nursing Care - 3rd party top up payment,A56023,0
London Borough of Sutton,01/12/2023,20065692,"2,913.00",Ascendit Lifts Ltd,BUILDING MNTCE - SERVICES,Environment Housing and Neighbourhoods,Grants Given For Capital Purposes,C20004,0
London Borough of Sutton,22/01/2024,50451291,"3,821.24",Ashton Care Homes Ltd.,SOCIAL SERVICES RESIDENTIAL,People's Services,Nursing Care - Ext Provider,A56025,0
London Borough of Sutton,22/01/2024,50451291,-836.76,Ashton Care Homes Ltd.,SOCIAL SERVICES RESIDENTIAL,People's Services,Nursing Care - 3rd party top up payment,A56023,0
London Borough of Sutton,22/01/2024,50451189,"3,980.00",Ashurst Lodge Healthcare Ltd,CHILDREN'S SERVICES - RESIDENTIAL,People's Services,Residential Care - Ext Provider,A56114,0
London Borough of Sutton,22/01/2024,50451189,"-1,990.00",Ashurst Lodge Healthcare Ltd,CHILDREN'S SERVICES - RESIDENTIAL,People's Services,Nursing Care - 3rd party top up payment,A56023,0
London Borough of Sutton,22/01/2024,50451302,"6,478.84",Aspen Place,SOCIAL SERVICES DAY CARE,People's Services,Nursing Care - Ext Provider,A56025,0
London Borough of Sutton,22/01/2024,50451302,-878.84,Aspen Place,SOCIAL SERVICES DAY CARE,People's Services,Nursing Care - 3rd party top up payment,A56023,0
London Borough of Sutton,22/01/2024,50451030,654.72,Aspens Charities,SOCIAL SERVICES RESIDENTIAL,People's Services,Supported Living,A56088,0
London Borough of Sutton,22/01/2024,50451030,"8,475.49",Aspens Charities,SOCIAL SERVICES RESIDENTIAL,People's Services,Supported Living,A56088,0
London Borough of Sutton,22/01/2024,50451030,"1,598.67",Aspens Charities,SOCIAL SERVICES RESIDENTIAL,People's Services,Supported Living,A56088,0
London Borough of Sutton,22/01/2024,50451209,"5,699.00",Aspens Charities,SOCIAL SERVICES RESIDENTIAL,People's Services,Residential Care - Ext Provider,A56114,0
London Borough of Sutton,31/12/2023,50443985,"2,480.00",Aspirations Care Ltd,SOCIAL SERVICES DAY CARE,People's Services,Home Care Services,A56019,0
London Borough of Sutton,31/12/2023,50443985,"9,074.94",Aspirations Care Ltd,SOCIAL SERVICES DAY CARE,People's Services,Home Care Services,A56019,0
London Borough of Sutton,31/10/2023,50446278,"2,509.20",Aspire Care Services Ltd,SOCIAL SERVICES DAY CARE,People's Services,Home Care Services,A56019,0
London Borough of Sutton,28/12/2023,50446279,637.76,Aspire Care Services Ltd,SOCIAL SERVICES DAY CARE,People's Services,Home Care Services,A56019,0
London Borough of Sutton,14/12/2023,50446280,"3,115.59",Aspire Care Services Ltd,SOCIAL SERVICES DAY CARE,People's Services,Home Care Services,A56019,0
London Borough of Sutton,28/12/2023,50446281,41.80,Aspire Care Services Ltd,SOCIAL SERVICES DAY CARE,People's Services,Home Care Services,A56019,0
London Borough of Sutton,28/12/2023,50446281,"2,791.52",Aspire Care Services Ltd,SOCIAL SERVICES DAY CARE,People's Services,Home Care Services,A56019,0
London Borough of Sutton,28/12/2023,50446311,"1,317.32",Aspire Care Services Ltd,SOCIAL SERVICES DAY CARE,People's Services,Home Care Services,A56019,0
London Borough of Sutton,28/12/2023,50446338,"2,049.20",Aspire Care Services Ltd,SOCIAL SERVICES DAY CARE,People's Services,Home Care Services,A56019,0
London Borough of Sutton,22/12/2023,20065682,732.00,ASSOCIATON OF ACCOUNTING TECHNICIANS,SUBSCRIPTIONS & PUBLICATIONS,Health and Wellbeing,Examination Fees,A44200,0
London Borough of Sutton,09/01/2024,50447829,"24,312.86",Athena Housing and Support Ltd,CHILDREN'S SERVICES - RESIDENTIAL,People's Services,Residential Care-Children,A56115,0
London Borough of Sutton,22/01/2024,50451167,"7,040.00",Autism & Aspergers Care Services,SOCIAL SERVICES RESIDENTIAL,People's Services,Residential Care - Ext Provider,A56114,0
London Borough of Sutton,12/01/2024,50450488,"41,695.00",Avance Ltd ,CHILDREN'S SERVICES - FOSTERING & ADOPTION SERVICES,People's Services,Residential Care-Children,A56115,0
London Borough of Sutton,03/01/2024,50449337,627.30,Avant Healthcare Services Ltd.,SOCIAL SERVICES DAY CARE,People's Services,Home Care Services,A56019,0
London Borough of Sutton,03/01/2024,50449338,983.24,Avant Healthcare Services Ltd.,SOCIAL SERVICES DAY CARE,People's Services,Home Care Services,A56019,0
London Borough of Sutton,03/01/2024,50449339,983.24,Avant Healthcare Services Ltd.,SOCIAL SERVICES DAY CARE,People's Services,Home Care Services,A56019,0
London Borough of Sutton,03/01/2024,50449416,"1,171.24",Avant Healthcare Services Ltd.,SOCIAL SERVICES DAY CARE,People's Services,Home Care Services,A56019,0
London Borough of Sutton,01/01/2024,50443393,"67,013.44",Avenue Primary Acadamy,SCHOOL FUNDS,People's Services,Top-up Funding,A51016,0
London Borough of Sutton,01/01/2024,50443393,"197,557.00",Avenue Primary Acadamy,SCHOOL FUNDS,People's Services,Top-up Funding,A51016,0
London Borough of Sutton,09/01/2024,50445761,"18,162.15",Avenue Primary Acadamy,SCHOOL FUNDS,People's Services,Payment - Nursery Funding,A51056,0
London Borough of Sutton,09/01/2024,50445805,"4,816.71",Avenue Primary Acadamy,SCHOOL FUNDS,People's Services,Pupil Growth,A51014,0
London Borough of Sutton,09/01/2024,50445812,"1,420.85",Avenue Primary Acadamy,SCHOOL FUNDS,People's Services,Payment - school supplementary grant,A51062,0
London Borough of Sutton,29/01/2024,50454090,"3,600.00",Avenue Primary Acadamy,SCHOOL FUNDS,People's Services,SEND Inclusion funding,A60038,0
London Borough of Sutton,30/11/2023,50447807,"31,320.00",Ayai Care Limited,SOCIAL SERVICES DAY CARE,People's Services,Approved Lodgings,A61000,0
London Borough of Sutton,30/09/2023,50447809,"3,691.29",Ayai Care Limited,SOCIAL SERVICES DAY CARE,People's Services,Approved Lodgings,A61000,0
London Borough of Sutton,31/12/2023,50447810,"32,364.00",Ayai Care Limited,SOCIAL SERVICES DAY CARE,People's Services,Approved Lodgings,A61000,0
London Borough of Sutton,31/12/2023,50447816,"48,869.29",Ayai Care Limited,SOCIAL SERVICES DAY CARE,People's Services,Residential Care-Children,A56115,0
London Borough of Sutton,30/11/2023,50447817,"47,292.86",Ayai Care Limited,SOCIAL SERVICES DAY CARE,People's Services,Residential Care-Children,A56115,0
London Borough of Sutton,31/12/2023,50447824,"28,755.12",Ayai Care Limited,SOCIAL SERVICES DAY CARE,People's Services,Residential Care-Children,A56115,0
London Borough of Sutton,30/11/2023,50447825,"27,827.53",Ayai Care Limited,SOCIAL SERVICES DAY CARE,People's Services,Residential Care-Children,A56115,0
London Borough of Sutton,30/11/2023,50447827,"23,469.64",Ayai Care Limited,SOCIAL SERVICES DAY CARE,People's Services,Residential Care-Children,A56115,0
London Borough of Sutton,31/12/2023,50447828,"24,251.96",Ayai Care Limited,SOCIAL SERVICES DAY CARE,People's Services,Residential Care-Children,A56115,0
London Borough of Sutton,11/01/2024,50448707,"1,505.00",Ayai Care Limited,SOCIAL SERVICES DAY CARE,People's Services,One to One Care,A56108,0
London Borough of Sutton,11/01/2024,50448708,645.00,Ayai Care Limited,SOCIAL SERVICES DAY CARE,People's Services,One to One Care,A56108,0
London Borough of Sutton,22/01/2024,50450997,"14,136.00",Ayai Care Limited,SOCIAL SERVICES DAY CARE,People's Services,Supported Living,A56088,0
London Borough of Sutton,22/01/2024,50451016,"4,845.30",Ayai Care Limited,SOCIAL SERVICES DAY CARE,People's Services,Supported Living,A56088,0
London Borough of Sutton,22/01/2024,50451016,"2,421.10",Ayai Care Limited,SOCIAL SERVICES DAY CARE,People's Services,Supported Living,A56088,0
London Borough of Sutton,22/01/2024,50451016,417.88,Ayai Care Limited,SOCIAL SERVICES DAY CARE,People's Services,Supported Living,A56088,0
London Borough of Sutton,22/01/2024,50451072,"13,604.57",Ayai Care Limited,SOCIAL SERVICES DAY CARE,People's Services,Supported Living,A56088,0
London Borough of Sutton,01/12/2023,50447819,"29,627.14",Back on track children's services SE Ltd,CHILDREN'S SERVICE - OTHER,People's Services,Residential Care-Children,A56115,0
London Borough of Sutton,28/12/2023,50444566,652.80,Back on Track Housing Ltd,SOCIAL SERVICES - OTHER,People's Services,Accommodation - Supported Living,A62001,0
London Borough of Sutton,28/12/2023,50444580,276.79,Back on Track Housing Ltd,SOCIAL SERVICES - OTHER,People's Services,Approved Lodgings,A61000,0
London Borough of Sutton,28/12/2023,50444580,"6,199.99",Back on Track Housing Ltd,SOCIAL SERVICES - OTHER,People's Services,Approved Lodgings,A61000,0
London Borough of Sutton,28/12/2023,50444680,276.79,Back on Track Housing Ltd,SOCIAL SERVICES - OTHER,People's Services,Approved Lodgings,A61000,0
London Borough of Sutton,28/12/2023,50444680,"6,199.99",Back on Track Housing Ltd,SOCIAL SERVICES - OTHER,People's Services,Approved Lodgings,A61000,0
London Borough of Sutton,28/12/2023,50444681,276.79,Back on Track Housing Ltd,SOCIAL SERVICES - OTHER,People's Services,Approved Lodgings,A61000,0
London Borough of Sutton,28/12/2023,50444681,"6,357.15",Back on Track Housing Ltd,SOCIAL SERVICES - OTHER,People's Services,Approved Lodgings,A61000,0
London Borough of Sutton,20/12/2023,20065487,747.50,Balmont Ltd,CONSTRUCTION INDUSTRY,Health and Wellbeing,Other Property Repairs & Maintenance,A20007,0
London Borough of Sutton,01/01/2024,50443394,"33,666.90",Bandon Hill Primary School (Academy),SCHOOL FUNDS,People's Services,Top-up Funding,A51016,0
London Borough of Sutton,01/01/2024,50443441,"87,039.00",Bandon Hill Primary School (Academy),SCHOOL FUNDS,People's Services,Top-up Funding,A51016,0
London Borough of Sutton,01/01/2024,50443441,"191,568.00",Bandon Hill Primary School (Academy),SCHOOL FUNDS,People's Services,Top-up Funding,A51016,0
London Borough of Sutton,09/01/2024,50445762,"20,607.05",Bandon Hill Primary School (Academy),SCHOOL FUNDS,People's Services,Payment - Nursery Funding,A51056,0
London Borough of Sutton,09/01/2024,50445813,"1,612.12",Bandon Hill Primary School (Academy),SCHOOL FUNDS,People's Services,Payment - school supplementary grant,A51062,0
London Borough of Sutton,02/01/2024,20065985,"1,194.80",Banner Group Limited,BOOKS PUBLICATIONS STATIONERY,Resources,Stationery,A43015,0
London Borough of Sutton,31/12/2023,50444643,"4,774.00",Banya,SOCIAL SERVICES RESIDENTIAL,People's Services,Foster Parents Support,A44110,0
London Borough of Sutton,30/11/2023,50447815,"4,620.00",Banya,SOCIAL SERVICES RESIDENTIAL,People's Services,Foster Parents Support,A44110,0
London Borough of Sutton,22/01/2024,50451241,"4,096.12",Barchester Healthcare Homes Ltd,SOCIAL SERVICES RESIDENTIAL,People's Services,Nursing Care - Ext Provider,A56025,0
London Borough of Sutton,22/01/2024,50451241,-878.84,Barchester Healthcare Homes Ltd,SOCIAL SERVICES RESIDENTIAL,People's Services,Nursing Care - 3rd party top up payment,A56023,0
London Borough of Sutton,24/01/2023,20067689,872.60,Barnaby's Property Lettings Ltd,SUNDRY SUPPLIER - HOUSING,Environment Housing and Neighbourhoods,Rent Deposit Scheme,B32179,0
London Borough of Sutton,24/01/2023,20067689,872.60,Barnaby's Property Lettings Ltd,SUNDRY SUPPLIER - HOUSING,Environment Housing and Neighbourhoods,Rent Deposit Scheme,B32179,0
London Borough of Sutton,24/01/2023,20067689,"1,200.00",Barnaby's Property Lettings Ltd,SUNDRY SUPPLIER - HOUSING,Environment Housing and Neighbourhoods,PSL Payments To Landlords,A22031,0
London Borough of Sutton,29/12/2023,20065922,"1,440.00",BBFI CIC,CAR PARKS,Environment Housing and Neighbourhoods,Provider Contract Payments,A44290,0
London Borough of Sutton,03/01/2024,20066142,"35,593.73",Beddington Infants School,SCHOOL FUNDS,People's Services,Payments to Contractors,C14000,0
London Borough of Sutton,03/01/2024,20066143,602.53,Beddington Infants School,SCHOOL FUNDS,People's Services,Payments to Contractors,C14000,0
London Borough of Sutton,01/01/2024,50443396,"15,309.48",Beddington Infants School,SCHOOL FUNDS,People's Services,Top-up Funding,A51016,0
London Borough of Sutton,09/01/2024,50445709,"108,196.24",Beddington Infants School,SCHOOL FUNDS,People's Services,Payments to Schools,A51013,0
London Borough of Sutton,09/01/2024,50445764,"15,274.83",Beddington Infants School,SCHOOL FUNDS,People's Services,Payment - Nursery Funding,A51056,0
London Borough of Sutton,09/01/2024,50445815,"1,194.97",Beddington Infants School,SCHOOL FUNDS,People's Services,Payment - school supplementary grant,A51062,0
London Borough of Sutton,15/01/2024,50448717,610.31,Beddington Infants School,SCHOOL FUNDS,People's Services,Payment - school led tutoring grant,A51060,0
London Borough of Sutton,15/01/2024,50448737,"1,232.50",Beddington Infants School,SCHOOL FUNDS,People's Services,Payment - Covid 19 Recovery Premium,A51039,0
London Borough of Sutton,15/01/2024,50448761,"11,275.50",Beddington Infants School,SCHOOL FUNDS,People's Services,Payment - Deprivation Pupil Premium,A51030,0
London Borough of Sutton,15/01/2024,50448787,"1,897.50",Beddington Infants School,SCHOOL FUNDS,People's Services,Payment - Post-LAC Pupil Premium,A51032,0
London Borough of Sutton,01/01/2024,50443397,"21,865.53",Beddington Park Primary (Academy),SCHOOL FUNDS,People's Services,Top-up Funding,A51016,0
London Borough of Sutton,09/01/2024,50445765,"16,066.51",Beddington Park Primary (Academy),SCHOOL FUNDS,People's Services,Payment - Nursery Funding,A51056,0
London Borough of Sutton,09/01/2024,50445816,"1,256.90",Beddington Park Primary (Academy),SCHOOL FUNDS,People's Services,Payment - school supplementary grant,A51062,0
London Borough of Sutton,22/01/2024,50451108,"6,620.71",Beechcroft Care Limited,SOCIAL SERVICES RESIDENTIAL,People's Services,Supported Living,A56088,0
London Borough of Sutton,22/01/2024,50451108,813.75,Beechcroft Care Limited,SOCIAL SERVICES RESIDENTIAL,People's Services,One to One Care,A56108,0
London Borough of Sutton,03/01/2024,20066010,"3,766.20",Beeches Tree Care,AGRICULTURAL & ESTATE SERVICES,Environment Housing and Neighbourhoods,Maintenance of trees,A28003,0
London Borough of Sutton,17/01/2024,20067200,"11,202.70",Beeches Tree Care,AGRICULTURAL & ESTATE SERVICES,Environment Housing and Neighbourhoods,Maintenance of trees,A28003,0
London Borough of Sutton,09/01/2024,50444234,636.77,Bernadette Price,CHILDMINDERS START UP GRANT,People's Services,Payment - Nursery Funding,A51056,0
London Borough of Sutton,22/01/2024,50451103,"8,615.08",Bespoke Care Support Ltd,SOCIAL SERVICES - OTHER,People's Services,Supported Living,A56088,0
London Borough of Sutton,22/01/2024,50451106,"3,985.71",Bespoke Care Support Ltd,SOCIAL SERVICES - OTHER,People's Services,Supported Living,A56088,0
London Borough of Sutton,22/01/2024,50451118,"4,428.57",Bespoke Care Support Ltd,SOCIAL SERVICES - OTHER,People's Services,Supported Living,A56088,0
London Borough of Sutton,22/01/2024,50451169,"-2,000.00",Bespoke Care Support Ltd,SOCIAL SERVICES - OTHER,People's Services,Nursing Care - 3rd party top up payment,A56023,0
London Borough of Sutton,22/01/2024,50451306,"-3,890.68",Bespoke Care Support Ltd,SOCIAL SERVICES - OTHER,People's Services,Nursing Care - 3rd party top up payment,A56023,0
London Borough of Sutton,24/12/2023,50447177,"3,512.88",Best at Home Domiciliary Care Services Ltd,SOCIAL SERVICES DAY CARE,People's Services,Home Care Services,A56019,0
London Borough of Sutton,31/12/2023,50447178,"3,512.88",Best at Home Domiciliary Care Services Ltd,SOCIAL SERVICES DAY CARE,People's Services,Home Care Services,A56019,0
London Borough of Sutton,24/12/2023,50447192,742.04,Best at Home Domiciliary Care Services Ltd,SOCIAL SERVICES DAY CARE,People's Services,Home Care Services,A56019,0
London Borough of Sutton,31/12/2023,50447193,742.04,Best at Home Domiciliary Care Services Ltd,SOCIAL SERVICES DAY CARE,People's Services,Home Care Services,A56019,0
London Borough of Sutton,24/12/2023,50447272,"1,024.49",Best at Home Domiciliary Care Services Ltd,SOCIAL SERVICES DAY CARE,People's Services,Home Care Services,A56019,0
London Borough of Sutton,31/12/2023,50447273,"1,024.49",Best at Home Domiciliary Care Services Ltd,SOCIAL SERVICES DAY CARE,People's Services,Home Care Services,A56019,0
London Borough of Sutton,24/12/2023,50447295,731.64,Best at Home Domiciliary Care Services Ltd,SOCIAL SERVICES DAY CARE,People's Services,Home Care Services,A56019,0
London Borough of Sutton,31/12/2023,50447296,731.64,Best at Home Domiciliary Care Services Ltd,SOCIAL SERVICES DAY CARE,People's Services,Home Care Services,A56019,0
London Borough of Sutton,24/12/2023,50447298,773.47,Best at Home Domiciliary Care Services Ltd,SOCIAL SERVICES DAY CARE,People's Services,Home Care Services,A56019,0
London Borough of Sutton,31/12/2023,50447299,773.47,Best at Home Domiciliary Care Services Ltd,SOCIAL SERVICES DAY CARE,People's Services,Home Care Services,A56019,0
London Borough of Sutton,07/01/2024,50449314,773.47,Best at Home Domiciliary Care Services Ltd,SOCIAL SERVICES DAY CARE,People's Services,Home Care Services,A56019,0
London Borough of Sutton,07/01/2024,50449364,"1,024.49",Best at Home Domiciliary Care Services Ltd,SOCIAL SERVICES DAY CARE,People's Services,Home Care Services,A56019,0
London Borough of Sutton,07/01/2024,50449367,731.64,Best at Home Domiciliary Care Services Ltd,SOCIAL SERVICES DAY CARE,People's Services,Home Care Services,A56019,0
London Borough of Sutton,07/01/2024,50449377,"3,512.88",Best at Home Domiciliary Care Services Ltd,SOCIAL SERVICES DAY CARE,People's Services,Home Care Services,A56019,0
London Borough of Sutton,07/01/2024,50449379,742.04,Best at Home Domiciliary Care Services Ltd,SOCIAL SERVICES DAY CARE,People's Services,Home Care Services,A56019,0
London Borough of Sutton,14/01/2024,50453337,"1,024.49",Best at Home Domiciliary Care Services Ltd,SOCIAL SERVICES DAY CARE,People's Services,Home Care Services,A56019,0
London Borough of Sutton,14/01/2024,50453379,"3,512.88",Best at Home Domiciliary Care Services Ltd,SOCIAL SERVICES DAY CARE,People's Services,Home Care Services,A56019,0
London Borough of Sutton,14/01/2024,50453408,742.04,Best at Home Domiciliary Care Services Ltd,SOCIAL SERVICES DAY CARE,People's Services,Home Care Services,A56019,0
London Borough of Sutton,14/01/2024,50453484,773.47,Best at Home Domiciliary Care Services Ltd,SOCIAL SERVICES DAY CARE,People's Services,Home Care Services,A56019,0
London Borough of Sutton,14/01/2024,50453526,731.64,Best at Home Domiciliary Care Services Ltd,SOCIAL SERVICES DAY CARE,People's Services,Home Care Services,A56019,0
London Borough of Sutton,31/12/2023,20066154,"6,667.50",Bestcourt UK Ltd,ACCOMMODATION BED & BREAKFAST,Environment Housing and Neighbourhoods,Bed & Breakfast,A56000,0
London Borough of Sutton,21/12/2023,20065712,882.00,Better Families Social Work Services Ltd,SUNDRY SUPPLIER - SOCIAL SERVICES,People's Services,One to One Care,A56108,0
London Borough of Sutton,04/12/2023,20066002,649.00,Better Families Social Work Services Ltd,SUNDRY SUPPLIER - SOCIAL SERVICES,People's Services,One to One Care,A56108,0
London Borough of Sutton,27/12/2023,20066007,560.50,Better Families Social Work Services Ltd,SUNDRY SUPPLIER - SOCIAL SERVICES,People's Services,One to One Care,A56108,0
London Borough of Sutton,27/12/2023,20066009,560.50,Better Families Social Work Services Ltd,SUNDRY SUPPLIER - SOCIAL SERVICES,People's Services,One to One Care,A56108,0
London Borough of Sutton,04/12/2023,20066014,882.00,Better Families Social Work Services Ltd,SUNDRY SUPPLIER - SOCIAL SERVICES,People's Services,One to One Care,A56108,0
London Borough of Sutton,27/12/2023,20066015,784.00,Better Families Social Work Services Ltd,SUNDRY SUPPLIER - SOCIAL SERVICES,People's Services,One to One Care,A56108,0
London Borough of Sutton,27/11/2023,50442969,"4,212.64",Better Families Social Work Services Ltd,SUNDRY SUPPLIER - SOCIAL SERVICES,People's Services,Residential Care-Children,A56115,0
London Borough of Sutton,01/12/2023,50444647,"43,530.64",Better Families Social Work Services Ltd,SUNDRY SUPPLIER - SOCIAL SERVICES,People's Services,Residential Care-Children,A56115,0
London Borough of Sutton,22/01/2024,50451046,"4,650.00",BETTER LIFE SUPPORTED LIVING LIMITED,SOCIAL SERVICES RESIDENTIAL,People's Services,One to One Care,A56108,0
London Borough of Sutton,27/12/2023,20065847,487.83,BFS Group Ltd,FOOD & DRINK,Health and Wellbeing,Catering Contract - Frozen Meals,A41001,0
London Borough of Sutton,09/01/2024,50444255,"4,998.51",Bizzy Bees Day Nursery,ACADEMIC INSTNS - OTHER,People's Services,Payment - Nursery Funding,A51056,0
London Borough of Sutton,10/01/2024,50449600,"7,923.33",Blenheim High School,SCHOOL FUNDS,People's Services,Top-up Funding,A51016,0
London Borough of Sutton,29/12/2023,20065781,"2,625.00",Bloom Procurement Services Ltd,TEMP STAFF & CONSULTANCY,Environment Housing and Neighbourhoods,External Fees and Consultants,C20000,0
London Borough of Sutton,11/01/2024,20066877,"5,544.00",Bloom Procurement Services Ltd,TEMP STAFF & CONSULTANCY,Development Growth and Regeneration,External Fees and Consultants,C20000,0
London Borough of Sutton,11/01/2024,20067137,"16,848.04",Bow Tie Construction Ltd,CONSTRUCTION INDUSTRY,HRA,Payments to Contractors,C14000,0
London Borough of Sutton,11/01/2024,20067574,"25,272.06",Bow Tie Construction Ltd,CONSTRUCTION INDUSTRY,HRA,Payments to Contractors,C14000,0
London Borough of Sutton,22/01/2024,50451253,"2,400.00",Brama Care Ltd,SOCIAL SERVICES-HOME CARE,People's Services,Nursing Care - Ext Provider,A56025,0
London Borough of Sutton,22/01/2024,50451396,"4,096.12",Bridge House Care Centre,SOCIAL SERVICES RESIDENTIAL,People's Services,Nursing Care - Ext Provider,A56025,0
London Borough of Sutton,22/01/2024,50451396,-878.84,Bridge House Care Centre,SOCIAL SERVICES RESIDENTIAL,People's Services,Nursing Care - 3rd party top up payment,A56023,0
London Borough of Sutton,22/01/2024,50451397,"4,560.00",Bridge House Care Centre,SOCIAL SERVICES RESIDENTIAL,People's Services,Nursing Care Short Term,A56026,0
London Borough of Sutton,22/01/2024,50451397,-878.84,Bridge House Care Centre,SOCIAL SERVICES RESIDENTIAL,People's Services,Nursing Care - 3rd party top up payment,A56023,0
London Borough of Sutton,22/01/2024,50451434,"4,096.12",Bridge House Care Centre,SOCIAL SERVICES RESIDENTIAL,People's Services,Nursing Care - Ext Provider,A56025,0
London Borough of Sutton,22/01/2024,50451434,-878.84,Bridge House Care Centre,SOCIAL SERVICES RESIDENTIAL,People's Services,Nursing Care - 3rd party top up payment,A56023,0
London Borough of Sutton,22/01/2024,50451435,"4,096.12",Bridge House Care Centre,SOCIAL SERVICES RESIDENTIAL,People's Services,Nursing Care - Ext Provider,A56025,0
London Borough of Sutton,22/01/2024,50451435,-878.84,Bridge House Care Centre,SOCIAL SERVICES RESIDENTIAL,People's Services,Nursing Care - 3rd party top up payment,A56023,0
London Borough of Sutton,22/01/2024,50451461,-878.84,Bridge House Care Centre,SOCIAL SERVICES RESIDENTIAL,People's Services,Nursing Care - 3rd party top up payment,A56023,0
London Borough of Sutton,22/01/2024,50451461,"4,096.12",Bridge House Care Centre,SOCIAL SERVICES RESIDENTIAL,People's Services,Nursing Care Short Term,A56026,0
London Borough of Sutton,22/01/2024,50451474,-878.84,Bridge House Care Centre,SOCIAL SERVICES RESIDENTIAL,People's Services,Nursing Care - 3rd party top up payment,A56023,0
London Borough of Sutton,22/01/2024,50451475,-878.84,Bridge House Care Centre,SOCIAL SERVICES RESIDENTIAL,People's Services,Nursing Care - 3rd party top up payment,A56023,0
London Borough of Sutton,22/01/2024,50451475,"4,560.00",Bridge House Care Centre,SOCIAL SERVICES RESIDENTIAL,People's Services,Nursing Care - Ext Provider,A56025,0
London Borough of Sutton,22/01/2024,50451476,-878.84,Bridge House Care Centre,SOCIAL SERVICES RESIDENTIAL,People's Services,Nursing Care - 3rd party top up payment,A56023,0
London Borough of Sutton,22/01/2024,50451476,"5,278.84",Bridge House Care Centre,SOCIAL SERVICES RESIDENTIAL,People's Services,Respite Care,A56116,0
London Borough of Sutton,22/01/2024,50451483,"4,096.12",Bridge House Care Centre,SOCIAL SERVICES RESIDENTIAL,People's Services,Nursing Care - Ext Provider,A56025,0
London Borough of Sutton,22/01/2024,50451483,-878.84,Bridge House Care Centre,SOCIAL SERVICES RESIDENTIAL,People's Services,Nursing Care - 3rd party top up payment,A56023,0
London Borough of Sutton,22/01/2024,50451495,"4,560.00",Bridge House Care Centre,SOCIAL SERVICES RESIDENTIAL,People's Services,Nursing Care - Ext Provider,A56025,0
London Borough of Sutton,22/01/2024,50451495,-878.84,Bridge House Care Centre,SOCIAL SERVICES RESIDENTIAL,People's Services,Nursing Care - 3rd party top up payment,A56023,0
London Borough of Sutton,22/01/2024,50451529,"4,096.12",Bridge House Care Centre,SOCIAL SERVICES RESIDENTIAL,People's Services,Nursing Care - Ext Provider,A56025,0
London Borough of Sutton,22/01/2024,50451562,-878.84,Bridge House Care Centre,SOCIAL SERVICES RESIDENTIAL,People's Services,Nursing Care - 3rd party top up payment,A56023,0
London Borough of Sutton,22/01/2024,50451562,"4,558.84",Bridge House Care Centre,SOCIAL SERVICES RESIDENTIAL,People's Services,Nursing Care Short Term,A56026,0
London Borough of Sutton,22/01/2024,50451563,"4,560.00",Bridge House Care Centre,SOCIAL SERVICES RESIDENTIAL,People's Services,Nursing Care - Ext Provider,A56025,0
London Borough of Sutton,22/01/2024,50451563,-878.84,Bridge House Care Centre,SOCIAL SERVICES RESIDENTIAL,People's Services,Nursing Care - 3rd party top up payment,A56023,0
London Borough of Sutton,22/01/2024,50451613,-878.84,Bridge House Care Centre,SOCIAL SERVICES RESIDENTIAL,People's Services,Nursing Care - 3rd party top up payment,A56023,0
London Borough of Sutton,22/01/2024,50451613,"4,096.12",Bridge House Care Centre,SOCIAL SERVICES RESIDENTIAL,People's Services,Nursing Care - Ext Provider,A56025,0
London Borough of Sutton,22/01/2024,50451631,"4,978.76",Bridge House Care Centre,SOCIAL SERVICES RESIDENTIAL,People's Services,Nursing Care - Ext Provider,A56025,0
London Borough of Sutton,22/01/2024,50451631,-836.76,Bridge House Care Centre,SOCIAL SERVICES RESIDENTIAL,People's Services,Nursing Care - 3rd party top up payment,A56023,0
London Borough of Sutton,22/01/2024,50451632,"4,096.12",Bridge House Care Centre,SOCIAL SERVICES RESIDENTIAL,People's Services,Nursing Care Short Term,A56026,0
London Borough of Sutton,22/01/2024,50451632,-878.84,Bridge House Care Centre,SOCIAL SERVICES RESIDENTIAL,People's Services,Nursing Care - 3rd party top up payment,A56023,0
London Borough of Sutton,22/01/2024,50451633,-888.39,Bridge House Care Centre,SOCIAL SERVICES RESIDENTIAL,People's Services,Nursing Care - Ext Provider,A56025,0
London Borough of Sutton,22/01/2024,50451633,313.87,Bridge House Care Centre,SOCIAL SERVICES RESIDENTIAL,People's Services,Nursing Care - 3rd party top up payment,A56023,0
London Borough of Sutton,22/01/2024,50451676,-878.84,Bridge House Care Centre,SOCIAL SERVICES RESIDENTIAL,People's Services,Nursing Care - 3rd party top up payment,A56023,0
London Borough of Sutton,22/01/2024,50451677,"4,096.12",Bridge House Care Centre,SOCIAL SERVICES RESIDENTIAL,People's Services,Nursing Care - Ext Provider,A56025,0
London Borough of Sutton,22/01/2024,50451677,-878.84,Bridge House Care Centre,SOCIAL SERVICES RESIDENTIAL,People's Services,Nursing Care - 3rd party top up payment,A56023,0
London Borough of Sutton,22/01/2024,50451678,"4,096.12",Bridge House Care Centre,SOCIAL SERVICES RESIDENTIAL,People's Services,Nursing Care - Ext Provider,A56025,0
London Borough of Sutton,22/01/2024,50451700,"2,123.06",Bridge House Care Centre,SOCIAL SERVICES RESIDENTIAL,People's Services,Nursing Care - Ext Provider,A56025,0
London Borough of Sutton,22/01/2024,50451700,-282.48,Bridge House Care Centre,SOCIAL SERVICES RESIDENTIAL,People's Services,Nursing Care - 3rd party top up payment,A56023,0
London Borough of Sutton,22/01/2024,50451701,"4,096.12",Bridge House Care Centre,SOCIAL SERVICES RESIDENTIAL,People's Services,Nursing Care - Ext Provider,A56025,0
London Borough of Sutton,22/01/2024,50451701,-878.84,Bridge House Care Centre,SOCIAL SERVICES RESIDENTIAL,People's Services,Nursing Care - 3rd party top up payment,A56023,0
London Borough of Sutton,22/01/2024,50451702,-596.36,Bridge House Care Centre,SOCIAL SERVICES RESIDENTIAL,People's Services,Nursing Care - 3rd party top up payment,A56023,0
London Borough of Sutton,22/01/2024,50451702,"3,094.29",Bridge House Care Centre,SOCIAL SERVICES RESIDENTIAL,People's Services,Nursing Care Short Term,A56026,0
London Borough of Sutton,22/12/2023,20065669,"3,202.85",Bridgestock Housing Services,CHILDREN'S SERVICES - RESIDENTIAL,People's Services,Approved Lodgings,A61000,0
London Borough of Sutton,22/12/2023,20065672,"5,125.00",Bridgestock Housing Services,CHILDREN'S SERVICES - RESIDENTIAL,People's Services,Approved Lodgings,A61000,0
London Borough of Sutton,22/12/2023,20067366,"4,069.52",Bridgestock Housing Services,CHILDREN'S SERVICES - RESIDENTIAL,People's Services,Approved Lodgings,A61000,0
London Borough of Sutton,22/12/2023,50444623,276.79,Bridgestock Housing Services,CHILDREN'S SERVICES - RESIDENTIAL,People's Services,Approved Lodgings,A61000,0
London Borough of Sutton,22/12/2023,50444623,"5,424.99",Bridgestock Housing Services,CHILDREN'S SERVICES - RESIDENTIAL,People's Services,Approved Lodgings,A61000,0
London Borough of Sutton,22/12/2023,50444624,276.79,Bridgestock Housing Services,CHILDREN'S SERVICES - RESIDENTIAL,People's Services,Approved Lodgings,A61000,0
London Borough of Sutton,22/12/2023,50444624,"5,535.70",Bridgestock Housing Services,CHILDREN'S SERVICES - RESIDENTIAL,People's Services,Approved Lodgings,A61000,0
London Borough of Sutton,01/12/2023,50444598,"3,498.57",Bridging Gaps Limited,CHILDREN'S SERVICES - FOSTERING & ADOPTION SERVICES,People's Services,Foster Parents Support,A44110,0
London Borough of Sutton,01/12/2023,50444679,"3,498.57",Bridging Gaps Limited,CHILDREN'S SERVICES - FOSTERING & ADOPTION SERVICES,People's Services,Foster Parents Support,A44110,0
London Borough of Sutton,21/12/2023,50444668,"2,428.57",Bridging the Gap,CHILDREN'S SERVICE - OTHER,People's Services,Approved Lodgings,A61000,0
London Borough of Sutton,27/12/2023,20065737,"5,500.00",Brightcorp Ltd,TRAINING,Development Growth and Regeneration,Fees,A44040,0
London Borough of Sutton,01/12/2023,50444657,"3,485.02",Brighter Futures Foster Care Ltd,CHILDREN'S SERVICES - FOSTERING & ADOPTION SERVICES,People's Services,Foster Parents Support,A44110,0
London Borough of Sutton,01/12/2023,50444662,"3,683.73",Brighter Futures Foster Care Ltd,CHILDREN'S SERVICES - FOSTERING & ADOPTION SERVICES,People's Services,Foster Parents Support,A44110,0
London Borough of Sutton,22/01/2024,50451165,-875.64,British Home & Hospital For Incurables,SOCIAL SERVICES RESIDENTIAL,People's Services,Nursing Care - Client Cont ( Net paymt ),A56024,0
London Borough of Sutton,22/01/2024,50451165,"4,096.12",British Home & Hospital For Incurables,SOCIAL SERVICES RESIDENTIAL,People's Services,Nursing Care - Ext Provider,A56025,0
London Borough of Sutton,22/01/2024,50451165,-878.84,British Home & Hospital For Incurables,SOCIAL SERVICES RESIDENTIAL,People's Services,Nursing Care - 3rd party top up payment,A56023,0
London Borough of Sutton,27/11/2023,20065403,"36,055.27",British Telecommunications Plc,TELECOMS,Resources,Telephones,A45020,0
London Borough of Sutton,27/11/2023,20067559,"36,055.27",British Telecommunications Plc,TELECOMS,Resources,Telephones,A45020,0
London Borough of Sutton,22/12/2023,20066495,"12,686.60",Browne Jacobson LLP,LEGAL & PROFESSIONAL SERVICES,Resources,Professional Fees,A44066,0
London Borough of Sutton,21/12/2023,20066686,"1,500.00",Browne Jacobson LLP,LEGAL & PROFESSIONAL SERVICES,Resources,Legal Services,A44025,0
London Borough of Sutton,14/11/2022,20067513,"1,110.42",BT Business Direct Ltd,BUSINESS & COMPUTER SYSTEMS,Health and Wellbeing,Equipment Purchase & Hire,A40050,0
London Borough of Sutton,01/01/2024,20065857,"42,457.00",Buildvantage Management Ltd,ACCOMMODATION BED & BREAKFAST,Environment Housing and Neighbourhoods,Bed & Breakfast,A56000,0
London Borough of Sutton,09/01/2024,50444162,"20,058.19",Bumpsa Daisies Nurserys,ACADEMIC INSTNS - OTHER,People's Services,Payment - Nursery Funding,A51056,0
London Borough of Sutton,09/01/2024,50444272,"7,227.79",Bumpsa Daisies Nurserys,ACADEMIC INSTNS - OTHER,People's Services,Payment - Nursery Funding,A51056,0
London Borough of Sutton,09/01/2024,50445872,"2,300.00",Bumpsa Daisies Nurserys,ACADEMIC INSTNS - OTHER,People's Services,Predictable Needs funding,A56125,0
London Borough of Sutton,09/01/2024,50445887,"1,721.41",Bumpsa Daisies Nurserys,ACADEMIC INSTNS - OTHER,People's Services,Payment - school supplementary grant,A51062,0
London Borough of Sutton,09/01/2024,50445999,"3,314.52",Bumpsa Daisies Nurserys,ACADEMIC INSTNS - OTHER,People's Services,Payment - school supplementary grant,A51062,0
London Borough of Sutton,22/01/2024,50451136,"7,084.60",Bupa Care Services,SOCIAL SERVICES RESIDENTIAL,People's Services,Nursing Care Short Term,A56026,0
London Borough of Sutton,22/01/2024,50451136,-836.76,Bupa Care Services,SOCIAL SERVICES RESIDENTIAL,People's Services,Nursing Care - 3rd party top up payment,A56023,0
London Borough of Sutton,22/01/2024,50451159,"4,339.24",Bupa Care Services,SOCIAL SERVICES RESIDENTIAL,People's Services,Nursing Care Short Term,A56026,0
London Borough of Sutton,22/01/2024,50451159,-878.84,Bupa Care Services,SOCIAL SERVICES RESIDENTIAL,People's Services,Nursing Care - 3rd party top up payment,A56023,0
London Borough of Sutton,22/01/2024,50451187,"8,091.16",Bupa Care Services,SOCIAL SERVICES RESIDENTIAL,People's Services,Nursing Care Short Term,A56026,0
London Borough of Sutton,22/01/2024,50451187,"-1,436.76",Bupa Care Services,SOCIAL SERVICES RESIDENTIAL,People's Services,Nursing Care - 3rd party top up payment,A56023,0
London Borough of Sutton,22/01/2024,50451191,"4,096.12",Bupa Care Services,SOCIAL SERVICES RESIDENTIAL,People's Services,Nursing Care Short Term,A56026,0
London Borough of Sutton,22/01/2024,50451191,-878.84,Bupa Care Services,SOCIAL SERVICES RESIDENTIAL,People's Services,Nursing Care - 3rd party top up payment,A56023,0
London Borough of Sutton,22/01/2024,50451276,"4,339.24",Bupa Care Services,SOCIAL SERVICES RESIDENTIAL,People's Services,Nursing Care - Ext Provider,A56025,0
London Borough of Sutton,22/01/2024,50451276,-878.84,Bupa Care Services,SOCIAL SERVICES RESIDENTIAL,People's Services,Nursing Care - 3rd party top up payment,A56023,0
London Borough of Sutton,22/01/2024,50451411,"4,096.12",Bupa Care Services,SOCIAL SERVICES RESIDENTIAL,People's Services,Nursing Care Short Term,A56026,0
London Borough of Sutton,22/01/2024,50451411,-878.84,Bupa Care Services,SOCIAL SERVICES RESIDENTIAL,People's Services,Nursing Care - 3rd party top up payment,A56023,0
London Borough of Sutton,22/01/2024,50451451,-878.84,Bupa Care Services,SOCIAL SERVICES RESIDENTIAL,People's Services,Nursing Care - 3rd party top up payment,A56023,0
London Borough of Sutton,22/01/2024,50451452,"3,821.24",Bupa Care Services,SOCIAL SERVICES RESIDENTIAL,People's Services,Nursing Care Short Term,A56026,0
London Borough of Sutton,22/01/2024,50451452,-836.76,Bupa Care Services,SOCIAL SERVICES RESIDENTIAL,People's Services,Nursing Care - 3rd party top up payment,A56023,0
London Borough of Sutton,22/01/2024,50451504,"4,096.12",Bupa Care Services,SOCIAL SERVICES RESIDENTIAL,People's Services,Nursing Care - Ext Provider,A56025,0
London Borough of Sutton,09/01/2024,50444165,"16,258.81",Busy Bees Day Nurseries Ltd ,ACADEMIC INSTNS - OTHER,People's Services,Payment - Nursery Funding,A51056,0
London Borough of Sutton,09/01/2024,50444274,"1,070.79",Busy Bees Day Nurseries Ltd ,ACADEMIC INSTNS - OTHER,People's Services,Payment - Nursery Funding,A51056,0
London Borough of Sutton,09/01/2024,50445890,"1,395.34",Busy Bees Day Nurseries Ltd ,ACADEMIC INSTNS - OTHER,People's Services,Payment - school supplementary grant,A51062,0
London Borough of Sutton,09/01/2024,50444164,"11,780.21",Busy Bees Day Nurseries Ltd ,ACADEMIC INSTNS - OTHER,People's Services,Payment - Nursery Funding,A51056,0
London Borough of Sutton,09/01/2024,50445889,"1,010.98",Busy Bees Day Nurseries Ltd ,ACADEMIC INSTNS - OTHER,People's Services,Payment - school supplementary grant,A51062,0
London Borough of Sutton,22/01/2024,50451203,"8,118.48",Butterfly's Care Homes Ltd,SOCIAL SERVICES RESIDENTIAL,People's Services,Residential Care - Ext Provider,A56114,0
London Borough of Sutton,15/01/2024,20067882,"219,312.85",Buxton Building Contractors Ltd,CONSTRUCTION INDUSTRY,HRA,Payments to Contractors,C14000,0
London Borough of Sutton,10/01/2024,20067884,"-84,000.00",Buxton Building Contractors Ltd,CONSTRUCTION INDUSTRY,HRA,Payments to Contractors,C14000,0
London Borough of Sutton,01/01/2024,50444638,"2,975.69",By The Bridge Ltd,CHILDREN'S SERVICES - FOSTERING & ADOPTION SERVICES,People's Services,Foster Parents Support,A44110,0
London Borough of Sutton,01/01/2024,50444639,"2,975.69",By The Bridge Ltd,CHILDREN'S SERVICES - FOSTERING & ADOPTION SERVICES,People's Services,Foster Parents Support,A44110,0
London Borough of Sutton,01/01/2024,50444640,"7,705.67",By The Bridge Ltd,CHILDREN'S SERVICES - FOSTERING & ADOPTION SERVICES,People's Services,Foster Parents Support,A44110,0
London Borough of Sutton,01/01/2024,50444641,"4,667.05",By The Bridge Ltd,CHILDREN'S SERVICES - FOSTERING & ADOPTION SERVICES,People's Services,Foster Parents Support,A44110,0
London Borough of Sutton,11/01/2023,20066774,"4,800.00",REDACTED - PERSONAL DATA,SUNDRY SUPPLIER - HOUSING,Environment Housing and Neighbourhoods,PSL Payments To Landlords,A22031,0
London Borough of Sutton,22/12/2023,20065653,"4,780.00",Cablesheer (Asbestos) Ltd,CONSTRUCTION INDUSTRY,HRA,Payments to Contractors,C14000,0
London Borough of Sutton,22/12/2023,20065654,"2,320.00",Cablesheer (Asbestos) Ltd,CONSTRUCTION INDUSTRY,HRA,Payments to Contractors,C14000,0
London Borough of Sutton,20/12/2023,20066874,"3,479.77",Cadogan Building Services Limited,CONSTRUCTION INDUSTRY,People's Services,Payments to Contractors,C14000,0
London Borough of Sutton,24/11/2023,50444596,"24,374.99",Calcot Services for Children Ltd,CHILDREN'S SERVICES - FOSTERING & ADOPTION SERVICES,People's Services,Residential Care-Children,A56115,0
London Borough of Sutton,20/12/2023,50443364,"4,207.14",Cambian Childcare Ltd,CHILDREN'S SERVICES - FOSTERING & ADOPTION SERVICES,People's Services,Independent School Fees,A56002,0
London Borough of Sutton,20/12/2023,50444645,"20,105.67",Cambian Childcare Ltd,CHILDREN'S SERVICES - FOSTERING & ADOPTION SERVICES,People's Services,Residential Care-Children,A56115,0
London Borough of Sutton,18/12/2023,20065512,-945.09,Canon (UK) Ltd,REPROGRAPHICS & PHOTOGRAPHY,Resources,IT Hardware Maintenance,A45008,0
London Borough of Sutton,06/12/2023,20065513,733.26,Canon (UK) Ltd,REPROGRAPHICS & PHOTOGRAPHY,Resources,IT Hardware Maintenance,A45008,0
London Borough of Sutton,04/01/2024,20066283,"1,447.10",Canon (UK) Ltd,REPROGRAPHICS & PHOTOGRAPHY,Resources,IT Hardware Maintenance,A45008,0
London Borough of Sutton,17/10/2023,20067037,511.35,Canon (UK) Ltd,REPROGRAPHICS & PHOTOGRAPHY,Resources,IT Hardware Maintenance,A45008,0
London Borough of Sutton,17/10/2023,20067039,"9,899.66",Canon (UK) Ltd,REPROGRAPHICS & PHOTOGRAPHY,Resources,IT Hardware Maintenance,A45008,0
London Borough of Sutton,22/01/2024,50451250,"4,060.72",Canterbury Oast Trust,SOCIAL SERVICES RESIDENTIAL,People's Services,Residential Care - Ext Provider,A56114,0
London Borough of Sutton,22/01/2024,50451250,204.72,Canterbury Oast Trust,SOCIAL SERVICES RESIDENTIAL,People's Services,One to One Care,A56108,0
London Borough of Sutton,22/01/2024,50451250,"-1,032.56",Canterbury Oast Trust,SOCIAL SERVICES RESIDENTIAL,People's Services,Residential Care - Client Cont ( Net Paymt ),A56113,0
London Borough of Sutton,22/11/2023,50445219,"1,000.00",Caprani Care Limited,SOCIAL SERVICES RESIDENTIAL,People's Services,Day Care Services,A56021,0
London Borough of Sutton,22/11/2023,50445700,"2,772.00",Caprani Care Limited,SOCIAL SERVICES RESIDENTIAL,People's Services,Supported Living,A56088,0
London Borough of Sutton,22/11/2023,50445700,"2,462.32",Caprani Care Limited,SOCIAL SERVICES RESIDENTIAL,People's Services,One to One Care,A56108,0
London Borough of Sutton,22/11/2023,50445700,841.68,Caprani Care Limited,SOCIAL SERVICES RESIDENTIAL,People's Services,Supported Living,A56088,0
London Borough of Sutton,22/12/2023,50446535,"1,000.00",Caprani Care Limited,SOCIAL SERVICES RESIDENTIAL,People's Services,Day Care Services,A56021,0
London Borough of Sutton,22/12/2023,50447494,"2,772.00",Caprani Care Limited,SOCIAL SERVICES RESIDENTIAL,People's Services,Supported Living,A56088,0
London Borough of Sutton,22/12/2023,50447494,"2,462.32",Caprani Care Limited,SOCIAL SERVICES RESIDENTIAL,People's Services,One to One Care,A56108,0
London Borough of Sutton,22/12/2023,50447494,841.68,Caprani Care Limited,SOCIAL SERVICES RESIDENTIAL,People's Services,Supported Living,A56088,0
London Borough of Sutton,31/12/2023,50444576,"6,125.29",Capstone Foster Care (South East) Ltd,CHILDREN'S SERVICES - FOSTERING & ADOPTION SERVICES,People's Services,Foster Parents Support,A44110,0
London Borough of Sutton,31/12/2023,50444577,"5,977.42",Capstone Foster Care (South East) Ltd,CHILDREN'S SERVICES - FOSTERING & ADOPTION SERVICES,People's Services,Foster Parents Support,A44110,0
London Borough of Sutton,22/01/2024,50451254,"3,400.00",Care Assist Ltd.,SOCIAL SERVICES RESIDENTIAL,People's Services,Residential Care - Ext Provider,A56114,0
London Borough of Sutton,22/01/2024,50451254,"-1,700.00",Care Assist Ltd.,SOCIAL SERVICES RESIDENTIAL,People's Services,Nursing Care - 3rd party top up payment,A56023,0
London Borough of Sutton,22/01/2024,50451300,"7,078.84",Care Base(Redhill)Ltd,SOCIAL SERVICES - OTHER,People's Services,Nursing Care - Ext Provider,A56025,0
London Borough of Sutton,22/01/2024,50451300,-878.84,Care Base(Redhill)Ltd,SOCIAL SERVICES - OTHER,People's Services,Nursing Care - 3rd party top up payment,A56023,0
London Borough of Sutton,22/01/2024,50451303,"3,320.32",Care Concern Group,SOCIAL SERVICES RESIDENTIAL,People's Services,Residential Care - Ext Provider,A56114,0
London Borough of Sutton,22/01/2024,50451092,"2,070.36",Care Connexions UK Limited,SOCIAL SERVICES RESIDENTIAL,People's Services,One to One Care,A56108,0
London Borough of Sutton,22/01/2024,50451243,"3,768.36",Care Direct Uk Ltd,SOCIAL SERVICES RESIDENTIAL,People's Services,Residential Care - Ext Provider,A56114,0
London Borough of Sutton,24/12/2023,50447875,"1,024.47",Care More Limited,SOCIAL SERVICES RESIDENTIAL,People's Services,Home Care Services,A56019,0
London Borough of Sutton,31/12/2023,50447876,"1,024.47",Care More Limited,SOCIAL SERVICES RESIDENTIAL,People's Services,Home Care Services,A56019,0
London Borough of Sutton,07/01/2024,50447877,"1,024.47",Care More Limited,SOCIAL SERVICES RESIDENTIAL,People's Services,Home Care Services,A56019,0
London Borough of Sutton,07/01/2024,50447887,564.35,Care More Limited,SOCIAL SERVICES RESIDENTIAL,People's Services,Home Care Services,A56019,0
London Borough of Sutton,07/01/2024,50447921,658.40,Care More Limited,SOCIAL SERVICES RESIDENTIAL,People's Services,Home Care Services,A56019,0
London Borough of Sutton,31/12/2023,50447922,658.40,Care More Limited,SOCIAL SERVICES RESIDENTIAL,People's Services,Home Care Services,A56019,0
London Borough of Sutton,17/12/2023,50447923,658.40,Care More Limited,SOCIAL SERVICES RESIDENTIAL,People's Services,Home Care Services,A56019,0
London Borough of Sutton,24/12/2023,50447924,658.40,Care More Limited,SOCIAL SERVICES RESIDENTIAL,People's Services,Home Care Services,A56019,0
London Borough of Sutton,31/12/2023,50447929,585.20,Care More Limited,SOCIAL SERVICES RESIDENTIAL,People's Services,Home Care Services,A56019,0
London Borough of Sutton,07/01/2024,50447930,585.20,Care More Limited,SOCIAL SERVICES RESIDENTIAL,People's Services,Home Care Services,A56019,0
London Borough of Sutton,17/12/2023,50447931,585.20,Care More Limited,SOCIAL SERVICES RESIDENTIAL,People's Services,Home Care Services,A56019,0
London Borough of Sutton,24/12/2023,50447932,585.20,Care More Limited,SOCIAL SERVICES RESIDENTIAL,People's Services,Home Care Services,A56019,0
London Borough of Sutton,17/12/2023,50447938,878.05,Care More Limited,SOCIAL SERVICES RESIDENTIAL,People's Services,Home Care Services,A56019,0
London Borough of Sutton,17/12/2023,50447938,31.36,Care More Limited,SOCIAL SERVICES RESIDENTIAL,People's Services,Home Care Services,A56019,0
London Borough of Sutton,24/12/2023,50447939,878.05,Care More Limited,SOCIAL SERVICES RESIDENTIAL,People's Services,Home Care Services,A56019,0
London Borough of Sutton,24/12/2023,50447939,20.91,Care More Limited,SOCIAL SERVICES RESIDENTIAL,People's Services,Home Care Services,A56019,0
London Borough of Sutton,31/12/2023,50447940,878.05,Care More Limited,SOCIAL SERVICES RESIDENTIAL,People's Services,Home Care Services,A56019,0
London Borough of Sutton,31/12/2023,50447940,20.91,Care More Limited,SOCIAL SERVICES RESIDENTIAL,People's Services,Home Care Services,A56019,0
London Borough of Sutton,07/01/2024,50447941,888.50,Care More Limited,SOCIAL SERVICES RESIDENTIAL,People's Services,Home Care Services,A56019,0
London Borough of Sutton,07/01/2024,50447941,20.91,Care More Limited,SOCIAL SERVICES RESIDENTIAL,People's Services,Home Care Services,A56019,0
London Borough of Sutton,17/12/2023,50448033,783.86,Care More Limited,SOCIAL SERVICES RESIDENTIAL,People's Services,Home Care Services,A56019,0
London Borough of Sutton,24/12/2023,50448034,783.86,Care More Limited,SOCIAL SERVICES RESIDENTIAL,People's Services,Home Care Services,A56019,0
London Borough of Sutton,31/12/2023,50448039,878.05,Care More Limited,SOCIAL SERVICES RESIDENTIAL,People's Services,Home Care Services,A56019,0
London Borough of Sutton,07/01/2024,50448040,878.05,Care More Limited,SOCIAL SERVICES RESIDENTIAL,People's Services,Home Care Services,A56019,0
London Borough of Sutton,17/12/2023,50448041,878.05,Care More Limited,SOCIAL SERVICES RESIDENTIAL,People's Services,Home Care Services,A56019,0
London Borough of Sutton,24/12/2023,50448042,878.05,Care More Limited,SOCIAL SERVICES RESIDENTIAL,People's Services,Home Care Services,A56019,0
London Borough of Sutton,24/12/2023,50448047,219.45,Care More Limited,SOCIAL SERVICES RESIDENTIAL,People's Services,Home Care Services,A56019,0
London Borough of Sutton,24/12/2023,50448047,"1,024.52",Care More Limited,SOCIAL SERVICES RESIDENTIAL,People's Services,Home Care Services,A56019,0
London Borough of Sutton,31/12/2023,50448048,219.45,Care More Limited,SOCIAL SERVICES RESIDENTIAL,People's Services,Home Care Services,A56019,0
London Borough of Sutton,31/12/2023,50448048,"1,024.52",Care More Limited,SOCIAL SERVICES RESIDENTIAL,People's Services,Home Care Services,A56019,0
London Borough of Sutton,17/12/2023,50448049,219.45,Care More Limited,SOCIAL SERVICES RESIDENTIAL,People's Services,Home Care Services,A56019,0
London Borough of Sutton,17/12/2023,50448049,"1,024.52",Care More Limited,SOCIAL SERVICES RESIDENTIAL,People's Services,Home Care Services,A56019,0
London Borough of Sutton,22/01/2024,50451185,"4,772.96",Care UK Homecare Ltd,SOCIAL SERVICES RESIDENTIAL,People's Services,Residential Care - Ext Provider,A56114,0
London Borough of Sutton,22/01/2024,50451185,-563.20,Care UK Homecare Ltd,SOCIAL SERVICES RESIDENTIAL,People's Services,Residential Care - Client Cont ( Net Paymt ),A56113,0
London Borough of Sutton,22/01/2024,50451351,567.80,Care UK Homecare Ltd,SOCIAL SERVICES RESIDENTIAL,People's Services,Nursing Care - 3rd party top up payment,A56023,0
London Borough of Sutton,22/01/2024,50451351,"-3,094.29",Care UK Homecare Ltd,SOCIAL SERVICES RESIDENTIAL,People's Services,Nursing Care Short Term,A56026,0
London Borough of Sutton,22/01/2024,50451436,"4,096.12",Care UK Homecare Ltd,SOCIAL SERVICES RESIDENTIAL,People's Services,Nursing Care - Ext Provider,A56025,0
London Borough of Sutton,22/01/2024,50451436,-878.84,Care UK Homecare Ltd,SOCIAL SERVICES RESIDENTIAL,People's Services,Nursing Care - 3rd party top up payment,A56023,0
London Borough of Sutton,22/01/2024,50451437,"4,560.00",Care UK Homecare Ltd,SOCIAL SERVICES RESIDENTIAL,People's Services,Nursing Care - Ext Provider,A56025,0
London Borough of Sutton,22/01/2024,50451438,"5,458.84",Care UK Homecare Ltd,SOCIAL SERVICES RESIDENTIAL,People's Services,Nursing Care - Ext Provider,A56025,0
London Borough of Sutton,22/01/2024,50451438,-878.84,Care UK Homecare Ltd,SOCIAL SERVICES RESIDENTIAL,People's Services,Nursing Care - 3rd party top up payment,A56023,0
London Borough of Sutton,22/01/2024,50451484,-836.76,Care UK Homecare Ltd,SOCIAL SERVICES RESIDENTIAL,People's Services,Nursing Care - 3rd party top up payment,A56023,0
London Borough of Sutton,16/01/2024,50450522,132.07,Care Unlimited Domcare Ltd,SOCIAL SERVICES DAY CARE,People's Services,Supported Living,A56088,0
London Borough of Sutton,16/01/2024,50450522,"1,155.50",Care Unlimited Domcare Ltd,SOCIAL SERVICES DAY CARE,People's Services,Supported Living,A56088,0
London Borough of Sutton,16/01/2024,50450522,339.71,Care Unlimited Domcare Ltd,SOCIAL SERVICES DAY CARE,People's Services,Supported Living,A56088,0
London Borough of Sutton,04/01/2024,50445237,"7,544.69",Care4Care Services Ltd,SOCIAL SERVICES DAY CARE,People's Services,Home Care Services,A56019,0
London Borough of Sutton,08/01/2024,50446287,810.26,Care4Care Services Ltd,SOCIAL SERVICES DAY CARE,People's Services,Home Care Services,A56019,0
London Borough of Sutton,08/01/2024,50446288,"2,106.68",Care4Care Services Ltd,SOCIAL SERVICES DAY CARE,People's Services,Home Care Services,A56019,0
London Borough of Sutton,08/01/2024,50446290,"4,213.36",Care4Care Services Ltd,SOCIAL SERVICES DAY CARE,People's Services,Home Care Services,A56019,0
London Borough of Sutton,08/01/2024,50446291,"3,533.79",Care4Care Services Ltd,SOCIAL SERVICES DAY CARE,People's Services,Home Care Services,A56019,0
London Borough of Sutton,08/01/2024,50446348,"3,627.88",Care4Care Services Ltd,SOCIAL SERVICES DAY CARE,People's Services,Home Care Services,A56019,0
London Borough of Sutton,08/01/2024,50446349,805.04,Care4Care Services Ltd,SOCIAL SERVICES DAY CARE,People's Services,Home Care Services,A56019,0
London Borough of Sutton,25/12/2023,20065917,596.00,Caremark (Sutton),SOCIAL SERVICES DAY CARE,People's Services,Home Care Services,A56019,0
London Borough of Sutton,25/12/2023,20065918,580.00,Caremark (Sutton),SOCIAL SERVICES DAY CARE,People's Services,One to One Care,A56108,0
London Borough of Sutton,24/12/2023,50445281,512.30,Caremark (Sutton),SOCIAL SERVICES DAY CARE,People's Services,Home Care Services,A56019,0
London Borough of Sutton,24/12/2023,50445283,"1,756.44",Caremark (Sutton),SOCIAL SERVICES DAY CARE,People's Services,Home Care Services,A56019,0
London Borough of Sutton,24/12/2023,50445300,867.57,Caremark (Sutton),SOCIAL SERVICES DAY CARE,People's Services,Home Care Services,A56019,0
London Borough of Sutton,24/12/2023,50445309,783.86,Caremark (Sutton),SOCIAL SERVICES DAY CARE,People's Services,Home Care Services,A56019,0
London Borough of Sutton,24/12/2023,50445349,527.91,Caremark (Sutton),SOCIAL SERVICES DAY CARE,People's Services,Home Care Services,A56019,0
London Borough of Sutton,24/12/2023,50445372,658.40,Caremark (Sutton),SOCIAL SERVICES DAY CARE,People's Services,Home Care Services,A56019,0
London Borough of Sutton,24/12/2023,50445372,41.82,Caremark (Sutton),SOCIAL SERVICES DAY CARE,People's Services,Home Care Services,A56019,0
London Borough of Sutton,24/12/2023,50445375,658.40,Caremark (Sutton),SOCIAL SERVICES DAY CARE,People's Services,Home Care Services,A56019,0
London Borough of Sutton,24/12/2023,50445378,62.73,Caremark (Sutton),SOCIAL SERVICES DAY CARE,People's Services,Home Care Services,A56019,0
London Borough of Sutton,24/12/2023,50445378,731.64,Caremark (Sutton),SOCIAL SERVICES DAY CARE,People's Services,Home Care Services,A56019,0
London Borough of Sutton,31/12/2023,50446900,527.91,Caremark (Sutton),SOCIAL SERVICES DAY CARE,People's Services,Home Care Services,A56019,0
London Borough of Sutton,31/12/2023,50446941,658.40,Caremark (Sutton),SOCIAL SERVICES DAY CARE,People's Services,Home Care Services,A56019,0
London Borough of Sutton,31/12/2023,50446941,41.82,Caremark (Sutton),SOCIAL SERVICES DAY CARE,People's Services,Home Care Services,A56019,0
London Borough of Sutton,31/12/2023,50446965,658.40,Caremark (Sutton),SOCIAL SERVICES DAY CARE,People's Services,Home Care Services,A56019,0
London Borough of Sutton,31/12/2023,50446967,62.73,Caremark (Sutton),SOCIAL SERVICES DAY CARE,People's Services,Home Care Services,A56019,0
London Borough of Sutton,31/12/2023,50446967,668.91,Caremark (Sutton),SOCIAL SERVICES DAY CARE,People's Services,Home Care Services,A56019,0
London Borough of Sutton,31/12/2023,50446974,"1,756.44",Caremark (Sutton),SOCIAL SERVICES DAY CARE,People's Services,Home Care Services,A56019,0
London Borough of Sutton,31/12/2023,50446987,867.57,Caremark (Sutton),SOCIAL SERVICES DAY CARE,People's Services,Home Care Services,A56019,0
London Borough of Sutton,31/12/2023,50446998,783.86,Caremark (Sutton),SOCIAL SERVICES DAY CARE,People's Services,Home Care Services,A56019,0
London Borough of Sutton,07/01/2024,50449179,"1,756.44",Caremark (Sutton),SOCIAL SERVICES DAY CARE,People's Services,Home Care Services,A56019,0
London Borough of Sutton,07/01/2024,50449194,867.57,Caremark (Sutton),SOCIAL SERVICES DAY CARE,People's Services,Home Care Services,A56019,0
London Borough of Sutton,07/01/2024,50449201,783.86,Caremark (Sutton),SOCIAL SERVICES DAY CARE,People's Services,Home Care Services,A56019,0
London Borough of Sutton,07/01/2024,50449250,658.40,Caremark (Sutton),SOCIAL SERVICES DAY CARE,People's Services,Home Care Services,A56019,0
London Borough of Sutton,07/01/2024,50449250,41.82,Caremark (Sutton),SOCIAL SERVICES DAY CARE,People's Services,Home Care Services,A56019,0
London Borough of Sutton,07/01/2024,50449300,62.73,Caremark (Sutton),SOCIAL SERVICES DAY CARE,People's Services,Home Care Services,A56019,0
London Borough of Sutton,07/01/2024,50449300,668.91,Caremark (Sutton),SOCIAL SERVICES DAY CARE,People's Services,Home Care Services,A56019,0
London Borough of Sutton,10/12/2023,50450616,648.13,Caremark (Sutton),SOCIAL SERVICES DAY CARE,People's Services,Home Care Services,A56019,0
London Borough of Sutton,07/01/2024,50450617,648.14,Caremark (Sutton),SOCIAL SERVICES DAY CARE,People's Services,Home Care Services,A56019,0
London Borough of Sutton,03/12/2023,50450618,648.12,Caremark (Sutton),SOCIAL SERVICES DAY CARE,People's Services,Home Care Services,A56019,0
London Borough of Sutton,26/11/2023,50450619,648.13,Caremark (Sutton),SOCIAL SERVICES DAY CARE,People's Services,Home Care Services,A56019,0
London Borough of Sutton,24/12/2023,50450620,648.11,Caremark (Sutton),SOCIAL SERVICES DAY CARE,People's Services,Home Care Services,A56019,0
London Borough of Sutton,31/12/2023,50450621,679.51,Caremark (Sutton),SOCIAL SERVICES DAY CARE,People's Services,Home Care Services,A56019,0
London Borough of Sutton,19/11/2023,50450622,648.13,Caremark (Sutton),SOCIAL SERVICES DAY CARE,People's Services,Home Care Services,A56019,0
London Borough of Sutton,10/12/2023,50450623,501.84,Caremark (Sutton),SOCIAL SERVICES DAY CARE,People's Services,Home Care Services,A56019,0
London Borough of Sutton,07/01/2024,50450624,501.84,Caremark (Sutton),SOCIAL SERVICES DAY CARE,People's Services,Home Care Services,A56019,0
London Borough of Sutton,24/12/2023,50450626,501.84,Caremark (Sutton),SOCIAL SERVICES DAY CARE,People's Services,Home Care Services,A56019,0
London Borough of Sutton,31/12/2023,50450627,501.84,Caremark (Sutton),SOCIAL SERVICES DAY CARE,People's Services,Home Care Services,A56019,0
London Borough of Sutton,19/11/2023,50450628,501.84,Caremark (Sutton),SOCIAL SERVICES DAY CARE,People's Services,Home Care Services,A56019,0
London Borough of Sutton,07/01/2024,50450639,658.40,Caremark (Sutton),SOCIAL SERVICES DAY CARE,People's Services,Home Care Services,A56019,0
London Borough of Sutton,26/11/2023,50450641,20.91,Caremark (Sutton),SOCIAL SERVICES DAY CARE,People's Services,Home Care Services,A56019,0
London Borough of Sutton,26/11/2023,50450641,"1,234.69",Caremark (Sutton),SOCIAL SERVICES DAY CARE,People's Services,Home Care Services,A56019,0
London Borough of Sutton,19/11/2023,50450642,20.91,Caremark (Sutton),SOCIAL SERVICES DAY CARE,People's Services,Home Care Services,A56019,0
London Borough of Sutton,19/11/2023,50450642,"1,234.69",Caremark (Sutton),SOCIAL SERVICES DAY CARE,People's Services,Home Care Services,A56019,0
London Borough of Sutton,03/12/2023,50452030,674.28,Caremark (Sutton),SOCIAL SERVICES DAY CARE,People's Services,Home Care Services,A56019,0
London Borough of Sutton,10/12/2023,50452032,590.64,Caremark (Sutton),SOCIAL SERVICES DAY CARE,People's Services,Home Care Services,A56019,0
London Borough of Sutton,10/12/2023,50452046,533.20,Caremark (Sutton),SOCIAL SERVICES DAY CARE,People's Services,Home Care Services,A56019,0
London Borough of Sutton,07/01/2024,50452047,533.20,Caremark (Sutton),SOCIAL SERVICES DAY CARE,People's Services,Home Care Services,A56019,0
London Borough of Sutton,26/11/2023,50452048,533.20,Caremark (Sutton),SOCIAL SERVICES DAY CARE,People's Services,Home Care Services,A56019,0
London Borough of Sutton,31/12/2023,50452049,533.20,Caremark (Sutton),SOCIAL SERVICES DAY CARE,People's Services,Home Care Services,A56019,0
London Borough of Sutton,10/12/2023,50452054,601.16,Caremark (Sutton),SOCIAL SERVICES DAY CARE,People's Services,Home Care Services,A56019,0
London Borough of Sutton,07/01/2024,50452055,637.76,Caremark (Sutton),SOCIAL SERVICES DAY CARE,People's Services,Home Care Services,A56019,0
London Borough of Sutton,03/12/2023,50452056,721.40,Caremark (Sutton),SOCIAL SERVICES DAY CARE,People's Services,Home Care Services,A56019,0
London Borough of Sutton,24/12/2023,50452057,637.76,Caremark (Sutton),SOCIAL SERVICES DAY CARE,People's Services,Home Care Services,A56019,0
London Borough of Sutton,31/12/2023,50452058,637.76,Caremark (Sutton),SOCIAL SERVICES DAY CARE,People's Services,Home Care Services,A56019,0
London Borough of Sutton,10/12/2023,50452064,668.85,Caremark (Sutton),SOCIAL SERVICES DAY CARE,People's Services,Home Care Services,A56019,0
London Borough of Sutton,10/12/2023,50452064,41.82,Caremark (Sutton),SOCIAL SERVICES DAY CARE,People's Services,Home Care Services,A56019,0
London Borough of Sutton,19/11/2023,50452065,668.85,Caremark (Sutton),SOCIAL SERVICES DAY CARE,People's Services,Home Care Services,A56019,0
London Borough of Sutton,19/11/2023,50452065,41.82,Caremark (Sutton),SOCIAL SERVICES DAY CARE,People's Services,Home Care Services,A56019,0
London Borough of Sutton,03/12/2023,50452071,"3,400.78",Caremark (Sutton),SOCIAL SERVICES DAY CARE,People's Services,Home Care Services,A56019,0
London Borough of Sutton,14/01/2024,50453252,867.57,Caremark (Sutton),SOCIAL SERVICES DAY CARE,People's Services,Home Care Services,A56019,0
London Borough of Sutton,14/01/2024,50453253,512.30,Caremark (Sutton),SOCIAL SERVICES DAY CARE,People's Services,Home Care Services,A56019,0
London Borough of Sutton,14/01/2024,50453256,783.86,Caremark (Sutton),SOCIAL SERVICES DAY CARE,People's Services,Home Care Services,A56019,0
London Borough of Sutton,14/01/2024,50453261,"1,756.44",Caremark (Sutton),SOCIAL SERVICES DAY CARE,People's Services,Home Care Services,A56019,0
London Borough of Sutton,14/01/2024,50453298,658.40,Caremark (Sutton),SOCIAL SERVICES DAY CARE,People's Services,Home Care Services,A56019,0
London Borough of Sutton,14/01/2024,50453298,41.82,Caremark (Sutton),SOCIAL SERVICES DAY CARE,People's Services,Home Care Services,A56019,0
London Borough of Sutton,14/01/2024,50453305,62.73,Caremark (Sutton),SOCIAL SERVICES DAY CARE,People's Services,Home Care Services,A56019,0
London Borough of Sutton,14/01/2024,50453305,731.64,Caremark (Sutton),SOCIAL SERVICES DAY CARE,People's Services,Home Care Services,A56019,0
London Borough of Sutton,22/01/2024,50451139,-846.40,Caretech Community Services Ltd,SOCIAL SERVICES RESIDENTIAL,People's Services,Residential Care - Client Cont ( Net Paymt ),A56113,0
London Borough of Sutton,22/01/2024,50451139,"6,115.08",Caretech Community Services Ltd,SOCIAL SERVICES RESIDENTIAL,People's Services,Residential Care - Ext Provider,A56114,0
London Borough of Sutton,22/01/2024,50451141,"5,621.56",Caretech Community Services Ltd,SOCIAL SERVICES RESIDENTIAL,People's Services,Residential Care - Ext Provider,A56114,0
London Borough of Sutton,09/01/2024,50445741,"4,076.70",Carew Academy,SCHOOL FUNDS,People's Services,Payment - Teachers Pay Grant,A51026,0
London Borough of Sutton,09/01/2024,50445747,"11,296.86",Carew Academy,SCHOOL FUNDS,People's Services,Payment - Teachers Pension Grant,A51027,0
London Borough of Sutton,24/01/2023,20067685,"1,750.00",Caridon Property Ltd,SUNDRY SUPPLIER - HOUSING,Environment Housing and Neighbourhoods,Rent Deposit Scheme,B32179,0
London Borough of Sutton,25/12/2023,50447808,276.79,Caridon Young Living Ltd,CHILDREN'S SERVICES - RESIDENTIAL,People's Services,Approved Lodgings,A61000,0
London Borough of Sutton,25/12/2023,50447808,"5,646.43",Caridon Young Living Ltd,CHILDREN'S SERVICES - RESIDENTIAL,People's Services,Approved Lodgings,A61000,0
London Borough of Sutton,25/12/2023,50447811,276.79,Caridon Young Living Ltd,CHILDREN'S SERVICES - RESIDENTIAL,People's Services,Approved Lodgings,A61000,0
London Borough of Sutton,25/12/2023,50447811,"20,482.14",Caridon Young Living Ltd,CHILDREN'S SERVICES - RESIDENTIAL,People's Services,Approved Lodgings,A61000,0
London Borough of Sutton,25/12/2023,50447838,276.79,Caridon Young Living Ltd,CHILDREN'S SERVICES - RESIDENTIAL,People's Services,Approved Lodgings,A61000,0
London Borough of Sutton,25/12/2023,50447838,"4,650.00",Caridon Young Living Ltd,CHILDREN'S SERVICES - RESIDENTIAL,People's Services,Approved Lodgings,A61000,0
London Borough of Sutton,25/12/2023,50447839,"22,198.22",Caridon Young Living Ltd,CHILDREN'S SERVICES - RESIDENTIAL,People's Services,Residential Care-Children,A56115,0
London Borough of Sutton,22/01/2024,50451043,792.71,Caring  Hands  Group,SOCIAL SERVICES RESIDENTIAL,People's Services,Supported Living,A56088,0
London Borough of Sutton,22/01/2024,50451043,634.17,Caring  Hands  Group,SOCIAL SERVICES RESIDENTIAL,People's Services,Supported Living,A56088,0
London Borough of Sutton,22/01/2024,50451043,"2,147.86",Caring  Hands  Group,SOCIAL SERVICES RESIDENTIAL,People's Services,Supported Living,A56088,0
London Borough of Sutton,28/12/2023,50448114,"1,312.56",Carlene House,SOCIAL SERVICES RESIDENTIAL,People's Services,Home Care Services,A56019,0
London Borough of Sutton,28/12/2023,50448115,"1,499.94",Carlene House,SOCIAL SERVICES RESIDENTIAL,People's Services,Home Care Services,A56019,0
London Borough of Sutton,28/12/2023,50448116,"1,687.62",Carlene House,SOCIAL SERVICES RESIDENTIAL,People's Services,Home Care Services,A56019,0
London Borough of Sutton,28/12/2023,50448117,"4,453.22",Carlene House,SOCIAL SERVICES RESIDENTIAL,People's Services,Home Care Services,A56019,0
London Borough of Sutton,28/12/2023,50448139,"1,781.46",Carlene House,SOCIAL SERVICES RESIDENTIAL,People's Services,Home Care Services,A56019,0
London Borough of Sutton,28/12/2023,50448175,"1,781.46",Carlene House,SOCIAL SERVICES RESIDENTIAL,People's Services,Home Care Services,A56019,0
London Borough of Sutton,28/12/2023,50448200,"1,218.72",Carlene House,SOCIAL SERVICES RESIDENTIAL,People's Services,Home Care Services,A56019,0
London Borough of Sutton,28/12/2023,50448701,"1,093.68",Carlene House,SOCIAL SERVICES RESIDENTIAL,People's Services,Supported Living,A56088,0
London Borough of Sutton,28/12/2023,50448701,"1,458.52",Carlene House,SOCIAL SERVICES RESIDENTIAL,People's Services,Supported Living,A56088,0
London Borough of Sutton,28/12/2023,50448701,784.84,Carlene House,SOCIAL SERVICES RESIDENTIAL,People's Services,Supported Living,A56088,0
London Borough of Sutton,28/12/2023,50448702,"2,109.24",Carlene House,SOCIAL SERVICES RESIDENTIAL,People's Services,Supported Living,A56088,0
London Borough of Sutton,28/12/2023,50448702,"1,458.52",Carlene House,SOCIAL SERVICES RESIDENTIAL,People's Services,Supported Living,A56088,0
London Borough of Sutton,28/12/2023,50448702,784.84,Carlene House,SOCIAL SERVICES RESIDENTIAL,People's Services,Supported Living,A56088,0
London Borough of Sutton,28/12/2023,50448706,"2,342.12",Carlene House,SOCIAL SERVICES RESIDENTIAL,People's Services,Supported Living,A56088,0
London Borough of Sutton,28/12/2023,50448706,"1,458.52",Carlene House,SOCIAL SERVICES RESIDENTIAL,People's Services,Supported Living,A56088,0
London Borough of Sutton,28/12/2023,50448706,784.84,Carlene House,SOCIAL SERVICES RESIDENTIAL,People's Services,Supported Living,A56088,0
London Borough of Sutton,22/01/2024,50451431,"6,127.44",Carlene House,SOCIAL SERVICES RESIDENTIAL,People's Services,Residential Care - Ext Provider,A56114,0
London Borough of Sutton,22/01/2024,50451473,"6,127.44",Carlene House,SOCIAL SERVICES RESIDENTIAL,People's Services,Residential Care - Ext Provider,A56114,0
London Borough of Sutton,22/01/2024,50451558,"6,127.44",Carlene House,SOCIAL SERVICES RESIDENTIAL,People's Services,Residential Care - Ext Provider,A56114,0
London Borough of Sutton,22/01/2024,50451559,"6,127.44",Carlene House,SOCIAL SERVICES RESIDENTIAL,People's Services,Residential Care - Ext Provider,A56114,0
London Borough of Sutton,22/01/2024,50451663,"6,127.44",Carlene House,SOCIAL SERVICES RESIDENTIAL,People's Services,Residential Care - Ext Provider,A56114,0
London Borough of Sutton,22/01/2024,50451698,"6,127.44",Carlene House,SOCIAL SERVICES RESIDENTIAL,People's Services,Residential Care - Ext Provider,A56114,0
London Borough of Sutton,09/01/2024,50444203,"2,332.64",REDACTED - PERSONAL DATA,GRANTS & EX GRATIA PAYMENTS,People's Services,Payment - Nursery Funding,A51056,0
London Borough of Sutton,04/01/2024,50443084,500.00,REDACTED - PERSONAL DATA,GRANTS & EX GRATIA PAYMENTS,Environment Housing and Neighbourhoods,"Grants, Contributions & Donations",A47005,0
London Borough of Sutton,01/01/2024,50443399,"23,542.23",Carshalton Boys Sports College (Academy),SCHOOL FUNDS,People's Services,Top-up Funding,A51016,0
London Borough of Sutton,09/01/2024,50445798,"4,816.71",Carshalton Boys Sports College (Academy),SCHOOL FUNDS,People's Services,Pupil Growth,A51014,0
London Borough of Sutton,31/01/2024,20068119,"-5,110.06",Cascade Communications Ltd,LEGAL & PROFESSIONAL SERVICES,Development Growth and Regeneration,External Fees and Consultants,C20000,0
London Borough of Sutton,31/01/2024,20068120,"-5,100.00",Cascade Communications Ltd,LEGAL & PROFESSIONAL SERVICES,Development Growth and Regeneration,External Fees and Consultants,C20000,0
London Borough of Sutton,31/01/2024,20068121,"-5,100.00",Cascade Communications Ltd,LEGAL & PROFESSIONAL SERVICES,Development Growth and Regeneration,External Fees and Consultants,C20000,0
London Borough of Sutton,31/01/2024,20068122,"-1,216.00",Cascade Communications Ltd,LEGAL & PROFESSIONAL SERVICES,Development Growth and Regeneration,External Fees and Consultants,C20000,0
London Borough of Sutton,31/01/2024,20068124,"5,100.00",Cascade Communications Ltd,LEGAL & PROFESSIONAL SERVICES,Development Growth and Regeneration,External Fees and Consultants,C20000,0
London Borough of Sutton,31/01/2024,20068125,"-5,850.00",Cascade Communications Ltd,LEGAL & PROFESSIONAL SERVICES,Development Growth and Regeneration,External Fees and Consultants,C20000,0
London Borough of Sutton,31/01/2024,20068128,"1,216.00",Cascade Communications Ltd,LEGAL & PROFESSIONAL SERVICES,Development Growth and Regeneration,External Fees and Consultants,C20000,0
London Borough of Sutton,21/12/2023,50443362,"2,450.16",Castle Hill Academy,CHILDREN'S SERVICES - SEN SERVICES,People's Services,Top-up Funding,A51016,0
London Borough of Sutton,08/01/2024,50447820,"27,784.86",Catch 22 Charity Limited,CHILDREN'S SERVICES - RESIDENTIAL,People's Services,Residential Care-Children,A56115,0
London Borough of Sutton,08/01/2024,50447821,"27,784.86",Catch 22 Charity Limited,CHILDREN'S SERVICES - RESIDENTIAL,People's Services,Residential Care-Children,A56115,0
London Borough of Sutton,08/01/2024,50447840,"27,784.86",Catch 22 Charity Limited,CHILDREN'S SERVICES - RESIDENTIAL,People's Services,Residential Care-Children,A56115,0
London Borough of Sutton,09/01/2024,50444213,999.70,REDACTED - PERSONAL DATA,GRANTS & EX GRATIA PAYMENTS,People's Services,Payment - Nursery Funding,A51056,0
London Borough of Sutton,20/12/2023,20065723,"14,362.46",CBRE Ltd,TEMP STAFF & CONSULTANCY,Resources,Building Rents,A22005,0
London Borough of Sutton,22/01/2024,50452147,"13,362.10",CENTRAL BEDFORDSHIRE COUNCIL ,CHILDREN'S SERVICES - SEN SERVICES,People's Services,Top-up Funding,A51016,0
London Borough of Sutton,22/01/2024,50452148,"10,021.57",CENTRAL BEDFORDSHIRE COUNCIL ,CHILDREN'S SERVICES - SEN SERVICES,People's Services,Top-up Funding,A51016,0
London Borough of Sutton,22/01/2024,50451109,"2,242.23",Centred (Scotland) N,SOCIAL SERVICES RESIDENTIAL,People's Services,Supported Living,A56088,0
London Borough of Sutton,22/01/2024,50451305,"4,080.00",CHARING GARDENS LTD,SOCIAL SERVICES RESIDENTIAL,People's Services,Residential Care - Ext Provider,A56114,0
London Borough of Sutton,09/01/2024,50444168,"12,762.86",Cheam Baptist Church Pre-School,ACADEMIC INSTNS - OTHER,People's Services,Payment - Nursery Funding,A51056,0
London Borough of Sutton,09/01/2024,50445893,"1,046.51",Cheam Baptist Church Pre-School,ACADEMIC INSTNS - OTHER,People's Services,Payment - school supplementary grant,A51062,0
London Borough of Sutton,01/01/2024,50443401,"16,428.53",Cheam Common Infants School -ACADEMY,SCHOOL FUNDS,People's Services,Top-up Funding,A51016,0
London Borough of Sutton,09/01/2024,50445767,"32,133.03",Cheam Common Infants School -ACADEMY,SCHOOL FUNDS,People's Services,Payment - Nursery Funding,A51056,0
London Borough of Sutton,09/01/2024,50445818,"2,513.81",Cheam Common Infants School -ACADEMY,SCHOOL FUNDS,People's Services,Payment - school supplementary grant,A51062,0
London Borough of Sutton,29/01/2024,50454092,"5,700.00",Cheam Common Infants School -ACADEMY,SCHOOL FUNDS,People's Services,SEND Inclusion funding,A60038,0
London Borough of Sutton,01/01/2024,50443402,"20,922.89",Cheam Common Junior Academy,SCHOOL FUNDS,People's Services,Top-up Funding,A51016,0
London Borough of Sutton,01/01/2024,50443404,"75,074.17",Cheam High School (Academy),SCHOOL FUNDS,People's Services,Top-up Funding,A51016,0
London Borough of Sutton,01/01/2024,50443404,"10,707.00",Cheam High School (Academy),SCHOOL FUNDS,People's Services,Top-up Funding,A51016,0
London Borough of Sutton,01/01/2024,50443421,"79,639.24",Cheam High School (Academy),SCHOOL FUNDS,People's Services,Top-up Funding,A51016,0
London Borough of Sutton,01/01/2024,50443421,"212,361.40",Cheam High School (Academy),SCHOOL FUNDS,People's Services,Top-up Funding,A51016,0
London Borough of Sutton,09/01/2024,50445793,"2,818.86",Cheam High School (Academy),SCHOOL FUNDS,People's Services,Payment - Cluster Lead SENCO,A51035,0
London Borough of Sutton,09/01/2024,50445800,"3,211.14",Cheam High School (Academy),SCHOOL FUNDS,People's Services,Pupil Growth,A51014,0
London Borough of Sutton,01/01/2024,50443405,"55,160.61",Cheam Park Farm Primary School,SCHOOL FUNDS,People's Services,Top-up Funding,A51016,0
London Borough of Sutton,09/01/2024,50445769,668.85,Cheam Park Farm Primary School,SCHOOL FUNDS,People's Services,Payment - Nursery Funding,A51056,0
London Borough of Sutton,22/01/2024,50451381,"-1,462.90",Chegworth Nursing Home Bayswift Ltd,SOCIAL SERVICES RESIDENTIAL,People's Services,Nursing Care Short Term,A56026,0
London Borough of Sutton,22/01/2024,50451381,313.87,Chegworth Nursing Home Bayswift Ltd,SOCIAL SERVICES RESIDENTIAL,People's Services,Nursing Care - 3rd party top up payment,A56023,0
London Borough of Sutton,22/01/2024,50451382,-878.84,Chegworth Nursing Home Bayswift Ltd,SOCIAL SERVICES RESIDENTIAL,People's Services,Nursing Care - 3rd party top up payment,A56023,0
London Borough of Sutton,22/01/2024,50451382,"4,096.12",Chegworth Nursing Home Bayswift Ltd,SOCIAL SERVICES RESIDENTIAL,People's Services,Nursing Care - Ext Provider,A56025,0
London Borough of Sutton,22/01/2024,50451384,"4,150.40",Chegworth Nursing Home Bayswift Ltd,SOCIAL SERVICES RESIDENTIAL,People's Services,Nursing Care - Ext Provider,A56025,0
London Borough of Sutton,22/01/2024,50451385,-878.84,Chegworth Nursing Home Bayswift Ltd,SOCIAL SERVICES RESIDENTIAL,People's Services,Nursing Care - 3rd party top up payment,A56023,0
London Borough of Sutton,22/01/2024,50451385,"4,096.12",Chegworth Nursing Home Bayswift Ltd,SOCIAL SERVICES RESIDENTIAL,People's Services,Nursing Care Short Term,A56026,0
London Borough of Sutton,22/01/2024,50451415,"4,096.12",Chegworth Nursing Home Bayswift Ltd,SOCIAL SERVICES RESIDENTIAL,People's Services,Nursing Care - Ext Provider,A56025,0
London Borough of Sutton,22/01/2024,50451415,-878.84,Chegworth Nursing Home Bayswift Ltd,SOCIAL SERVICES RESIDENTIAL,People's Services,Nursing Care - 3rd party top up payment,A56023,0
London Borough of Sutton,22/01/2024,50451416,-878.84,Chegworth Nursing Home Bayswift Ltd,SOCIAL SERVICES RESIDENTIAL,People's Services,Nursing Care - 3rd party top up payment,A56023,0
London Borough of Sutton,22/01/2024,50451416,"4,560.00",Chegworth Nursing Home Bayswift Ltd,SOCIAL SERVICES RESIDENTIAL,People's Services,Nursing Care Short Term,A56026,0
London Borough of Sutton,22/01/2024,50451419,"4,149.92",Chegworth Nursing Home Bayswift Ltd,SOCIAL SERVICES RESIDENTIAL,People's Services,Nursing Care - Ext Provider,A56025,0
London Borough of Sutton,22/01/2024,50451419,-750.40,Chegworth Nursing Home Bayswift Ltd,SOCIAL SERVICES RESIDENTIAL,People's Services,Nursing Care - 3rd party top up payment,A56023,0
London Borough of Sutton,22/01/2024,50451457,"4,096.12",Chegworth Nursing Home Bayswift Ltd,SOCIAL SERVICES RESIDENTIAL,People's Services,Nursing Care - Ext Provider,A56025,0
London Borough of Sutton,22/01/2024,50451457,-878.84,Chegworth Nursing Home Bayswift Ltd,SOCIAL SERVICES RESIDENTIAL,People's Services,Nursing Care - 3rd party top up payment,A56023,0
London Borough of Sutton,22/01/2024,50451535,-662.24,Chegworth Nursing Home Bayswift Ltd,SOCIAL SERVICES RESIDENTIAL,People's Services,Nursing Care - 3rd party top up payment,A56023,0
London Borough of Sutton,22/01/2024,50451535,"4,955.56",Chegworth Nursing Home Bayswift Ltd,SOCIAL SERVICES RESIDENTIAL,People's Services,Nursing Care Short Term,A56026,0
London Borough of Sutton,22/01/2024,50451536,"4,096.12",Chegworth Nursing Home Bayswift Ltd,SOCIAL SERVICES RESIDENTIAL,People's Services,Nursing Care - Ext Provider,A56025,0
London Borough of Sutton,22/01/2024,50451536,-878.84,Chegworth Nursing Home Bayswift Ltd,SOCIAL SERVICES RESIDENTIAL,People's Services,Nursing Care - 3rd party top up payment,A56023,0
London Borough of Sutton,22/01/2024,50451574,"4,096.12",Chegworth Nursing Home Bayswift Ltd,SOCIAL SERVICES RESIDENTIAL,People's Services,Nursing Care - Ext Provider,A56025,0
London Borough of Sutton,22/01/2024,50451574,-878.84,Chegworth Nursing Home Bayswift Ltd,SOCIAL SERVICES RESIDENTIAL,People's Services,Nursing Care - 3rd party top up payment,A56023,0
London Borough of Sutton,22/01/2024,50451593,"4,096.12",Chegworth Nursing Home Bayswift Ltd,SOCIAL SERVICES RESIDENTIAL,People's Services,Nursing Care - Ext Provider,A56025,0
London Borough of Sutton,22/01/2024,50451593,-878.84,Chegworth Nursing Home Bayswift Ltd,SOCIAL SERVICES RESIDENTIAL,People's Services,Nursing Care - 3rd party top up payment,A56023,0
London Borough of Sutton,22/01/2024,50451620,-878.84,Chegworth Nursing Home Bayswift Ltd,SOCIAL SERVICES RESIDENTIAL,People's Services,Nursing Care - 3rd party top up payment,A56023,0
London Borough of Sutton,22/01/2024,50451620,"4,096.12",Chegworth Nursing Home Bayswift Ltd,SOCIAL SERVICES RESIDENTIAL,People's Services,Nursing Care Short Term,A56026,0
London Borough of Sutton,22/01/2024,50451621,"4,400.00",Chegworth Nursing Home Bayswift Ltd,SOCIAL SERVICES RESIDENTIAL,People's Services,Nursing Care - Ext Provider,A56025,0
London Borough of Sutton,22/01/2024,50451621,-878.84,Chegworth Nursing Home Bayswift Ltd,SOCIAL SERVICES RESIDENTIAL,People's Services,Nursing Care - 3rd party top up payment,A56023,0
London Borough of Sutton,22/01/2024,50451622,-94.16,Chegworth Nursing Home Bayswift Ltd,SOCIAL SERVICES RESIDENTIAL,People's Services,Nursing Care - 3rd party top up payment,A56023,0
London Borough of Sutton,22/01/2024,50451622,"1,302.85",Chegworth Nursing Home Bayswift Ltd,SOCIAL SERVICES RESIDENTIAL,People's Services,Nursing Care - Ext Provider,A56025,0
London Borough of Sutton,22/01/2024,50451647,"4,096.12",Chegworth Nursing Home Bayswift Ltd,SOCIAL SERVICES RESIDENTIAL,People's Services,Nursing Care - Ext Provider,A56025,0
London Borough of Sutton,22/01/2024,50451647,-878.84,Chegworth Nursing Home Bayswift Ltd,SOCIAL SERVICES RESIDENTIAL,People's Services,Nursing Care - 3rd party top up payment,A56023,0
London Borough of Sutton,22/01/2024,50451648,-878.84,Chegworth Nursing Home Bayswift Ltd,SOCIAL SERVICES RESIDENTIAL,People's Services,Nursing Care - 3rd party top up payment,A56023,0
London Borough of Sutton,22/01/2024,50451648,"4,096.12",Chegworth Nursing Home Bayswift Ltd,SOCIAL SERVICES RESIDENTIAL,People's Services,Nursing Care - Ext Provider,A56025,0
London Borough of Sutton,22/01/2024,50451669,"4,560.00",Chegworth Nursing Home Bayswift Ltd,SOCIAL SERVICES RESIDENTIAL,People's Services,Nursing Care - Ext Provider,A56025,0
London Borough of Sutton,22/01/2024,50451669,-878.84,Chegworth Nursing Home Bayswift Ltd,SOCIAL SERVICES RESIDENTIAL,People's Services,Nursing Care - 3rd party top up payment,A56023,0
London Borough of Sutton,22/01/2024,50451670,-878.84,Chegworth Nursing Home Bayswift Ltd,SOCIAL SERVICES RESIDENTIAL,People's Services,Nursing Care - 3rd party top up payment,A56023,0
London Borough of Sutton,22/01/2024,50451670,"4,096.12",Chegworth Nursing Home Bayswift Ltd,SOCIAL SERVICES RESIDENTIAL,People's Services,Nursing Care Short Term,A56026,0
London Borough of Sutton,22/01/2024,50451671,"4,560.00",Chegworth Nursing Home Bayswift Ltd,SOCIAL SERVICES RESIDENTIAL,People's Services,Nursing Care - Ext Provider,A56025,0
London Borough of Sutton,22/01/2024,50451671,-878.84,Chegworth Nursing Home Bayswift Ltd,SOCIAL SERVICES RESIDENTIAL,People's Services,Nursing Care - 3rd party top up payment,A56023,0
London Borough of Sutton,22/01/2024,50451709,"4,096.12",Chegworth Nursing Home Bayswift Ltd,SOCIAL SERVICES RESIDENTIAL,People's Services,Nursing Care - Ext Provider,A56025,0
London Borough of Sutton,22/01/2024,50451709,-878.84,Chegworth Nursing Home Bayswift Ltd,SOCIAL SERVICES RESIDENTIAL,People's Services,Nursing Care - 3rd party top up payment,A56023,0
London Borough of Sutton,22/01/2024,50451710,"4,096.12",Chegworth Nursing Home Bayswift Ltd,SOCIAL SERVICES RESIDENTIAL,People's Services,Nursing Care - Ext Provider,A56025,0
London Borough of Sutton,22/01/2024,50451710,-878.84,Chegworth Nursing Home Bayswift Ltd,SOCIAL SERVICES RESIDENTIAL,People's Services,Nursing Care - 3rd party top up payment,A56023,0
London Borough of Sutton,05/12/2023,50444584,"14,102.52",Children's Trust,CHILDREN'S SERVICES - DAY CARE,People's Services,Residential Care-Children,A56115,0
London Borough of Sutton,05/01/2024,50446498,"6,795.82",Children's Trust,CHILDREN'S SERVICES - DAY CARE,People's Services,Independent School Fees,A56002,0
London Borough of Sutton,05/01/2024,50446499,"6,869.60",Children's Trust,CHILDREN'S SERVICES - DAY CARE,People's Services,Independent School Fees,A56002,0
London Borough of Sutton,05/01/2024,50446500,"6,900.60",Children's Trust,CHILDREN'S SERVICES - DAY CARE,People's Services,Independent School Fees,A56002,0
London Borough of Sutton,17/01/2024,50452127,"3,686.88",Children's Trust,CHILDREN'S SERVICES - DAY CARE,People's Services,Independent School Fees,A56002,0
London Borough of Sutton,22/01/2024,50451325,"7,809.32",Choice Care Group (Surrey) Ltd,SOCIAL SERVICES RESIDENTIAL,People's Services,Residential Care - Ext Provider,A56114,0
London Borough of Sutton,22/01/2024,50451439,"8,682.92",Choice Care Group (Surrey) Ltd,SOCIAL SERVICES RESIDENTIAL,People's Services,Residential Care - Ext Provider,A56114,0
London Borough of Sutton,22/01/2024,50451502,"8,769.56",Choice Care Group (Surrey) Ltd,SOCIAL SERVICES RESIDENTIAL,People's Services,Residential Care - Ext Provider,A56114,0
London Borough of Sutton,22/01/2024,50451570,"7,512.24",Choice Care Group (Surrey) Ltd,SOCIAL SERVICES RESIDENTIAL,People's Services,Residential Care - Ext Provider,A56114,0
London Borough of Sutton,22/01/2024,50451643,"8,863.92",Choice Care Group (Surrey) Ltd,SOCIAL SERVICES RESIDENTIAL,People's Services,Residential Care - Ext Provider,A56114,0
London Borough of Sutton,24/01/2023,20067721,872.60,Choice DSS Lettings,SUNDRY SUPPLIER - HOUSING,Environment Housing and Neighbourhoods,Rent Deposit Scheme,B32179,0
London Borough of Sutton,24/01/2023,20067721,300.00,Choice DSS Lettings,SUNDRY SUPPLIER - HOUSING,Environment Housing and Neighbourhoods,PSL Payments To Landlords,A22031,0
London Borough of Sutton,18/12/2023,20065281,"1,788.44",Choice Support,GRANTS & EX GRATIA PAYMENTS,People's Services,Provider Contract Payments,A44290,0
London Borough of Sutton,18/12/2023,20065282,"1,650.40",Choice Support,GRANTS & EX GRATIA PAYMENTS,People's Services,Provider Contract Payments,A44290,0
London Borough of Sutton,18/12/2023,20065283,"1,650.40",Choice Support,GRANTS & EX GRATIA PAYMENTS,People's Services,Provider Contract Payments,A44290,0
London Borough of Sutton,18/12/2023,20065284,"1,650.40",Choice Support,GRANTS & EX GRATIA PAYMENTS,People's Services,Provider Contract Payments,A44290,0
London Borough of Sutton,18/12/2023,20067617,"1,872.52",Choice Support,GRANTS & EX GRATIA PAYMENTS,People's Services,Provider Contract Payments,A44290,0
London Borough of Sutton,18/12/2023,20067618,"2,116.64",Choice Support,GRANTS & EX GRATIA PAYMENTS,People's Services,Provider Contract Payments,A44290,0
London Borough of Sutton,04/01/2024,50445588,"6,484.68",Choice Support,GRANTS & EX GRATIA PAYMENTS,People's Services,Home Care Services,A56019,0
London Borough of Sutton,11/01/2024,50449586,"6,743.29",Choice Support,GRANTS & EX GRATIA PAYMENTS,People's Services,Supported Living,A56088,0
London Borough of Sutton,11/01/2024,50449586,673.85,Choice Support,GRANTS & EX GRATIA PAYMENTS,People's Services,Supported Living,A56088,0
London Borough of Sutton,11/01/2024,50449586,251.81,Choice Support,GRANTS & EX GRATIA PAYMENTS,People's Services,Supported Living,A56088,0
London Borough of Sutton,11/01/2024,50449587,"1,700.94",Choice Support,GRANTS & EX GRATIA PAYMENTS,People's Services,Supported Living,A56088,0
London Borough of Sutton,11/01/2024,50449587,673.85,Choice Support,GRANTS & EX GRATIA PAYMENTS,People's Services,Supported Living,A56088,0
London Borough of Sutton,11/01/2024,50449587,251.81,Choice Support,GRANTS & EX GRATIA PAYMENTS,People's Services,Supported Living,A56088,0
London Borough of Sutton,11/01/2024,50449587,"2,405.25",Choice Support,GRANTS & EX GRATIA PAYMENTS,People's Services,Supported Living,A56088,0
London Borough of Sutton,11/01/2024,50449589,"6,221.72",Choice Support,GRANTS & EX GRATIA PAYMENTS,People's Services,Supported Living,A56088,0
London Borough of Sutton,11/01/2024,50449589,943.37,Choice Support,GRANTS & EX GRATIA PAYMENTS,People's Services,Supported Living,A56088,0
London Borough of Sutton,11/01/2024,50449591,"1,567.12",Choice Support,GRANTS & EX GRATIA PAYMENTS,People's Services,Supported Living,A56088,0
London Borough of Sutton,11/01/2024,50449591,673.85,Choice Support,GRANTS & EX GRATIA PAYMENTS,People's Services,Supported Living,A56088,0
London Borough of Sutton,11/01/2024,50449591,251.81,Choice Support,GRANTS & EX GRATIA PAYMENTS,People's Services,Supported Living,A56088,0
London Borough of Sutton,11/01/2024,50449591,"2,139.94",Choice Support,GRANTS & EX GRATIA PAYMENTS,People's Services,Supported Living,A56088,0
London Borough of Sutton,11/01/2024,50449592,"2,633.04",Choice Support,GRANTS & EX GRATIA PAYMENTS,People's Services,Supported Living,A56088,0
London Borough of Sutton,11/01/2024,50449592,673.85,Choice Support,GRANTS & EX GRATIA PAYMENTS,People's Services,Supported Living,A56088,0
London Borough of Sutton,11/01/2024,50449592,251.81,Choice Support,GRANTS & EX GRATIA PAYMENTS,People's Services,Supported Living,A56088,0
London Borough of Sutton,11/01/2024,50449592,"4,518.63",Choice Support,GRANTS & EX GRATIA PAYMENTS,People's Services,Supported Living,A56088,0
London Borough of Sutton,11/01/2024,50449593,"1,181.29",Choice Support,GRANTS & EX GRATIA PAYMENTS,People's Services,Supported Living,A56088,0
London Borough of Sutton,11/01/2024,50449593,673.85,Choice Support,GRANTS & EX GRATIA PAYMENTS,People's Services,Supported Living,A56088,0
London Borough of Sutton,11/01/2024,50449593,251.81,Choice Support,GRANTS & EX GRATIA PAYMENTS,People's Services,Supported Living,A56088,0
London Borough of Sutton,11/01/2024,50449593,"3,551.37",Choice Support,GRANTS & EX GRATIA PAYMENTS,People's Services,Supported Living,A56088,0
London Borough of Sutton,11/01/2024,50449594,"7,340.55",Choice Support,GRANTS & EX GRATIA PAYMENTS,People's Services,Supported Living,A56088,0
London Borough of Sutton,11/01/2024,50449594,943.37,Choice Support,GRANTS & EX GRATIA PAYMENTS,People's Services,Supported Living,A56088,0
London Borough of Sutton,11/01/2024,50449595,943.37,Choice Support,GRANTS & EX GRATIA PAYMENTS,People's Services,Supported Living,A56088,0
London Borough of Sutton,11/01/2024,50449595,"5,318.74",Choice Support,GRANTS & EX GRATIA PAYMENTS,People's Services,Supported Living,A56088,0
London Borough of Sutton,11/01/2024,50449596,"6,197.77",Choice Support,GRANTS & EX GRATIA PAYMENTS,People's Services,Supported Living,A56088,0
London Borough of Sutton,11/01/2024,50449596,943.37,Choice Support,GRANTS & EX GRATIA PAYMENTS,People's Services,Supported Living,A56088,0
London Borough of Sutton,22/01/2024,50451006,"2,438.99",Choice Support,GRANTS & EX GRATIA PAYMENTS,People's Services,Supported Living,A56088,0
London Borough of Sutton,22/01/2024,50451006,494.18,Choice Support,GRANTS & EX GRATIA PAYMENTS,People's Services,Supported Living,A56088,0
London Borough of Sutton,22/01/2024,50451006,"1,714.57",Choice Support,GRANTS & EX GRATIA PAYMENTS,People's Services,Supported Living,A56088,0
London Borough of Sutton,22/01/2024,50451006,672.74,Choice Support,GRANTS & EX GRATIA PAYMENTS,People's Services,Supported Living,A56088,0
London Borough of Sutton,22/01/2024,50451007,644.00,Choice Support,GRANTS & EX GRATIA PAYMENTS,People's Services,Supported Living,A56088,0
London Borough of Sutton,22/01/2024,50451008,"4,771.70",Choice Support,GRANTS & EX GRATIA PAYMENTS,People's Services,Supported Living,A56088,0
London Borough of Sutton,22/01/2024,50451008,"1,179.24",Choice Support,GRANTS & EX GRATIA PAYMENTS,People's Services,Supported Living,A56088,0
London Borough of Sutton,22/01/2024,50451009,"8,689.92",Choice Support,GRANTS & EX GRATIA PAYMENTS,People's Services,Supported Living,A56088,0
London Borough of Sutton,22/01/2024,50451009,"1,965.13",Choice Support,GRANTS & EX GRATIA PAYMENTS,People's Services,Supported Living,A56088,0
London Borough of Sutton,22/01/2024,50451019,"1,280.21",Choice Support,GRANTS & EX GRATIA PAYMENTS,People's Services,Supported Living,A56088,0
London Borough of Sutton,22/01/2024,50451019,"5,780.35",Choice Support,GRANTS & EX GRATIA PAYMENTS,People's Services,Supported Living,A56088,0
London Borough of Sutton,22/01/2024,50451019,"1,179.24",Choice Support,GRANTS & EX GRATIA PAYMENTS,People's Services,Supported Living,A56088,0
London Borough of Sutton,22/01/2024,50451020,"3,567.48",Choice Support,GRANTS & EX GRATIA PAYMENTS,People's Services,Supported Living,A56088,0
London Borough of Sutton,22/01/2024,50451022,"1,280.21",Choice Support,GRANTS & EX GRATIA PAYMENTS,People's Services,Supported Living,A56088,0
London Borough of Sutton,22/01/2024,50451022,"3,375.10",Choice Support,GRANTS & EX GRATIA PAYMENTS,People's Services,Supported Living,A56088,0
London Borough of Sutton,22/01/2024,50451022,"1,179.24",Choice Support,GRANTS & EX GRATIA PAYMENTS,People's Services,Supported Living,A56088,0
London Borough of Sutton,22/01/2024,50451029,543.12,Choice Support,GRANTS & EX GRATIA PAYMENTS,People's Services,Supported Living,A56088,0
London Borough of Sutton,22/01/2024,50451029,440.69,Choice Support,GRANTS & EX GRATIA PAYMENTS,People's Services,Supported Living,A56088,0
London Borough of Sutton,22/01/2024,50451029,"2,094.89",Choice Support,GRANTS & EX GRATIA PAYMENTS,People's Services,Supported Living,A56088,0
London Borough of Sutton,22/01/2024,50451037,"1,280.21",Choice Support,GRANTS & EX GRATIA PAYMENTS,People's Services,Supported Living,A56088,0
London Borough of Sutton,22/01/2024,50451037,"5,663.97",Choice Support,GRANTS & EX GRATIA PAYMENTS,People's Services,Supported Living,A56088,0
London Borough of Sutton,22/01/2024,50451037,"1,179.24",Choice Support,GRANTS & EX GRATIA PAYMENTS,People's Services,Supported Living,A56088,0
London Borough of Sutton,22/01/2024,50451039,"1,280.21",Choice Support,GRANTS & EX GRATIA PAYMENTS,People's Services,Supported Living,A56088,0
London Borough of Sutton,22/01/2024,50451039,"3,491.49",Choice Support,GRANTS & EX GRATIA PAYMENTS,People's Services,Supported Living,A56088,0
London Borough of Sutton,22/01/2024,50451039,"1,179.24",Choice Support,GRANTS & EX GRATIA PAYMENTS,People's Services,Supported Living,A56088,0
London Borough of Sutton,22/01/2024,50451047,310.35,Choice Support,GRANTS & EX GRATIA PAYMENTS,People's Services,Supported Living,A56088,0
London Borough of Sutton,22/01/2024,50451047,440.69,Choice Support,GRANTS & EX GRATIA PAYMENTS,People's Services,Supported Living,A56088,0
London Borough of Sutton,22/01/2024,50451047,"2,094.89",Choice Support,GRANTS & EX GRATIA PAYMENTS,People's Services,Supported Living,A56088,0
London Borough of Sutton,22/01/2024,50451048,644.00,Choice Support,GRANTS & EX GRATIA PAYMENTS,People's Services,Supported Living,A56088,0
London Borough of Sutton,22/01/2024,50451048,"5,314.82",Choice Support,GRANTS & EX GRATIA PAYMENTS,People's Services,Supported Living,A56088,0
London Borough of Sutton,22/01/2024,50451048,"1,179.24",Choice Support,GRANTS & EX GRATIA PAYMENTS,People's Services,Supported Living,A56088,0
London Borough of Sutton,22/01/2024,50451049,"6,614.43",Choice Support,GRANTS & EX GRATIA PAYMENTS,People's Services,Supported Living,A56088,0
London Borough of Sutton,22/01/2024,50451049,"1,179.24",Choice Support,GRANTS & EX GRATIA PAYMENTS,People's Services,Supported Living,A56088,0
London Borough of Sutton,22/01/2024,50451050,644.00,Choice Support,GRANTS & EX GRATIA PAYMENTS,People's Services,Supported Living,A56088,0
London Borough of Sutton,22/01/2024,50451060,"1,280.21",Choice Support,GRANTS & EX GRATIA PAYMENTS,People's Services,Supported Living,A56088,0
London Borough of Sutton,22/01/2024,50451060,"3,413.90",Choice Support,GRANTS & EX GRATIA PAYMENTS,People's Services,Supported Living,A56088,0
London Borough of Sutton,22/01/2024,50451060,"1,179.24",Choice Support,GRANTS & EX GRATIA PAYMENTS,People's Services,Supported Living,A56088,0
London Borough of Sutton,22/01/2024,50451063,"2,402.59",Choice Support,GRANTS & EX GRATIA PAYMENTS,People's Services,Supported Living,A56088,0
London Borough of Sutton,22/01/2024,50451063,502.91,Choice Support,GRANTS & EX GRATIA PAYMENTS,People's Services,Supported Living,A56088,0
London Borough of Sutton,22/01/2024,50451063,"1,687.64",Choice Support,GRANTS & EX GRATIA PAYMENTS,People's Services,Supported Living,A56088,0
London Borough of Sutton,22/01/2024,50451063,672.74,Choice Support,GRANTS & EX GRATIA PAYMENTS,People's Services,Supported Living,A56088,0
London Borough of Sutton,22/01/2024,50451065,494.18,Choice Support,GRANTS & EX GRATIA PAYMENTS,People's Services,Supported Living,A56088,0
London Borough of Sutton,22/01/2024,50451065,"4,004.31",Choice Support,GRANTS & EX GRATIA PAYMENTS,People's Services,Supported Living,A56088,0
London Borough of Sutton,22/01/2024,50451065,122.32,Choice Support,GRANTS & EX GRATIA PAYMENTS,People's Services,Supported Living,A56088,0
London Borough of Sutton,22/01/2024,50451068,"5,469.99",Choice Support,GRANTS & EX GRATIA PAYMENTS,People's Services,Supported Living,A56088,0
London Borough of Sutton,22/01/2024,50451068,"1,965.13",Choice Support,GRANTS & EX GRATIA PAYMENTS,People's Services,Supported Living,A56088,0
London Borough of Sutton,22/01/2024,50451069,644.00,Choice Support,GRANTS & EX GRATIA PAYMENTS,People's Services,Supported Living,A56088,0
London Borough of Sutton,22/01/2024,50451069,"5,043.26",Choice Support,GRANTS & EX GRATIA PAYMENTS,People's Services,Supported Living,A56088,0
London Borough of Sutton,22/01/2024,50451069,"1,179.24",Choice Support,GRANTS & EX GRATIA PAYMENTS,People's Services,Supported Living,A56088,0
London Borough of Sutton,22/01/2024,50451070,644.00,Choice Support,GRANTS & EX GRATIA PAYMENTS,People's Services,Supported Living,A56088,0
London Borough of Sutton,22/01/2024,50451070,"5,314.82",Choice Support,GRANTS & EX GRATIA PAYMENTS,People's Services,Supported Living,A56088,0
London Borough of Sutton,22/01/2024,50451070,"1,179.24",Choice Support,GRANTS & EX GRATIA PAYMENTS,People's Services,Supported Living,A56088,0
London Borough of Sutton,22/01/2024,50451071,"1,629.36",Choice Support,GRANTS & EX GRATIA PAYMENTS,People's Services,Supported Living,A56088,0
London Borough of Sutton,22/01/2024,50451071,440.69,Choice Support,GRANTS & EX GRATIA PAYMENTS,People's Services,Supported Living,A56088,0
London Borough of Sutton,22/01/2024,50451071,"2,094.89",Choice Support,GRANTS & EX GRATIA PAYMENTS,People's Services,Supported Living,A56088,0
London Borough of Sutton,22/01/2024,50451081,"2,256.98",Choice Support,GRANTS & EX GRATIA PAYMENTS,People's Services,Supported Living,A56088,0
London Borough of Sutton,22/01/2024,50451081,494.18,Choice Support,GRANTS & EX GRATIA PAYMENTS,People's Services,Supported Living,A56088,0
London Borough of Sutton,22/01/2024,50451081,"1,456.11",Choice Support,GRANTS & EX GRATIA PAYMENTS,People's Services,Supported Living,A56088,0
London Borough of Sutton,22/01/2024,50451081,122.32,Choice Support,GRANTS & EX GRATIA PAYMENTS,People's Services,Supported Living,A56088,0
London Borough of Sutton,22/01/2024,50451082,"3,831.78",Choice Support,GRANTS & EX GRATIA PAYMENTS,People's Services,Supported Living,A56088,0
London Borough of Sutton,22/01/2024,50451082,494.18,Choice Support,GRANTS & EX GRATIA PAYMENTS,People's Services,Supported Living,A56088,0
London Borough of Sutton,22/01/2024,50451082,"1,448.85",Choice Support,GRANTS & EX GRATIA PAYMENTS,People's Services,Supported Living,A56088,0
London Borough of Sutton,22/01/2024,50451082,672.74,Choice Support,GRANTS & EX GRATIA PAYMENTS,People's Services,Supported Living,A56088,0
London Borough of Sutton,22/01/2024,50451085,644.00,Choice Support,GRANTS & EX GRATIA PAYMENTS,People's Services,Supported Living,A56088,0
London Borough of Sutton,22/01/2024,50451085,"5,120.85",Choice Support,GRANTS & EX GRATIA PAYMENTS,People's Services,Supported Living,A56088,0
London Borough of Sutton,22/01/2024,50451085,"1,179.24",Choice Support,GRANTS & EX GRATIA PAYMENTS,People's Services,Supported Living,A56088,0
London Borough of Sutton,22/01/2024,50451086,"4,888.08",Choice Support,GRANTS & EX GRATIA PAYMENTS,People's Services,Supported Living,A56088,0
London Borough of Sutton,22/01/2024,50451086,440.69,Choice Support,GRANTS & EX GRATIA PAYMENTS,People's Services,Supported Living,A56088,0
London Borough of Sutton,22/01/2024,50451086,"2,094.89",Choice Support,GRANTS & EX GRATIA PAYMENTS,People's Services,Supported Living,A56088,0
London Borough of Sutton,22/01/2024,50451091,"1,280.21",Choice Support,GRANTS & EX GRATIA PAYMENTS,People's Services,Supported Living,A56088,0
London Borough of Sutton,22/01/2024,50451091,"3,375.10",Choice Support,GRANTS & EX GRATIA PAYMENTS,People's Services,Supported Living,A56088,0
London Borough of Sutton,22/01/2024,50451091,"1,179.24",Choice Support,GRANTS & EX GRATIA PAYMENTS,People's Services,Supported Living,A56088,0
London Borough of Sutton,22/01/2024,50451098,644.00,Choice Support,GRANTS & EX GRATIA PAYMENTS,People's Services,Supported Living,A56088,0
London Borough of Sutton,22/01/2024,50451098,"5,043.26",Choice Support,GRANTS & EX GRATIA PAYMENTS,People's Services,Supported Living,A56088,0
London Borough of Sutton,22/01/2024,50451098,"1,179.24",Choice Support,GRANTS & EX GRATIA PAYMENTS,People's Services,Supported Living,A56088,0
London Borough of Sutton,22/01/2024,50451102,"2,372.03",Choice Support,GRANTS & EX GRATIA PAYMENTS,People's Services,Supported Living,A56088,0
London Borough of Sutton,22/01/2024,50451102,494.18,Choice Support,GRANTS & EX GRATIA PAYMENTS,People's Services,Supported Living,A56088,0
London Borough of Sutton,22/01/2024,50451102,"1,678.16",Choice Support,GRANTS & EX GRATIA PAYMENTS,People's Services,Supported Living,A56088,0
London Borough of Sutton,22/01/2024,50451102,672.74,Choice Support,GRANTS & EX GRATIA PAYMENTS,People's Services,Supported Living,A56088,0
London Borough of Sutton,22/01/2024,50451115,"1,280.21",Choice Support,GRANTS & EX GRATIA PAYMENTS,People's Services,Supported Living,A56088,0
London Borough of Sutton,22/01/2024,50451115,"3,569.07",Choice Support,GRANTS & EX GRATIA PAYMENTS,People's Services,Supported Living,A56088,0
London Borough of Sutton,22/01/2024,50451115,"1,179.24",Choice Support,GRANTS & EX GRATIA PAYMENTS,People's Services,Supported Living,A56088,0
London Borough of Sutton,22/01/2024,50451116,"4,441.15",Choice Support,GRANTS & EX GRATIA PAYMENTS,People's Services,Supported Living,A56088,0
London Borough of Sutton,22/01/2024,50451119,"1,820.14",Choice Support,GRANTS & EX GRATIA PAYMENTS,People's Services,Supported Living,A56088,0
London Borough of Sutton,22/01/2024,50451119,494.18,Choice Support,GRANTS & EX GRATIA PAYMENTS,People's Services,Supported Living,A56088,0
London Borough of Sutton,22/01/2024,50451119,"2,475.39",Choice Support,GRANTS & EX GRATIA PAYMENTS,People's Services,Supported Living,A56088,0
London Borough of Sutton,22/01/2024,50451119,122.32,Choice Support,GRANTS & EX GRATIA PAYMENTS,People's Services,Supported Living,A56088,0
London Borough of Sutton,22/01/2024,50451158,"5,887.60",Choice Support,GRANTS & EX GRATIA PAYMENTS,People's Services,Residential Care - Ext Provider,A56114,0
London Borough of Sutton,09/01/2024,50444170,"15,600.82",Christchurch Fledgelings Pre-School,ACADEMIC INSTNS - OTHER,People's Services,Payment - Nursery Funding,A51056,0
London Borough of Sutton,09/01/2024,50444278,"2,007.72",Christchurch Fledgelings Pre-School,ACADEMIC INSTNS - OTHER,People's Services,Payment - Nursery Funding,A51056,0
London Borough of Sutton,09/01/2024,50445896,"1,338.87",Christchurch Fledgelings Pre-School,ACADEMIC INSTNS - OTHER,People's Services,Payment - school supplementary grant,A51062,0
London Borough of Sutton,09/01/2024,50446005,920.70,Christchurch Fledgelings Pre-School,ACADEMIC INSTNS - OTHER,People's Services,Payment - school supplementary grant,A51062,0
London Borough of Sutton,09/01/2024,50444218,636.77,REDACTED - PERSONAL DATA,CHILDMINDERS START UP GRANT,People's Services,Payment - Nursery Funding,A51056,0
London Borough of Sutton,21/12/2023,20065635,"1,396.51",Chroma Vision Limited,AGRICULTURAL & ESTATE SERVICES,Environment Housing and Neighbourhoods,Other Capital Expenditure,C20002,0
London Borough of Sutton,27/12/2023,20065927,"1,054.49",Chroma Vision Limited,AGRICULTURAL & ESTATE SERVICES,HRA,Payments to Contractors,C14000,0
London Borough of Sutton,30/12/2023,50444595,"5,671.40",Chrysalis Care,SOCIAL SERVICES RESIDENTIAL,People's Services,Foster Parents Support,A44110,0
London Borough of Sutton,30/11/2023,20064412,"2,500.00",CIA Fire & Security Limited,BUILDING MNTCE - SERVICES,Environment Housing and Neighbourhoods,Payments to Contractors,C14000,0
London Borough of Sutton,01/01/2024,50443395,"52,058.01",Barrow Hedges Primary School Academy,SCHOOL FUNDS,People's Services,Top-up Funding,A51016,0
London Borough of Sutton,09/01/2024,50445763,"21,403.01",Barrow Hedges Primary School Academy,SCHOOL FUNDS,People's Services,Payment - Nursery Funding,A51056,0
London Borough of Sutton,09/01/2024,50445814,"1,748.74",Barrow Hedges Primary School Academy,SCHOOL FUNDS,People's Services,Payment - school supplementary grant,A51062,0
London Borough of Sutton,29/01/2024,50454091,600.00,Barrow Hedges Primary School Academy,SCHOOL FUNDS,People's Services,SEND Inclusion funding,A60038,0
London Borough of Sutton,02/11/2023,20066979,"3,426.60",City & Guilds,SUBSCRIPTIONS & PUBLICATIONS,Health and Wellbeing,Examination Fees,A44200,0
London Borough of Sutton,23/11/2023,20066980,"1,979.40",City & Guilds,SUBSCRIPTIONS & PUBLICATIONS,Health and Wellbeing,Examination Fees,A44200,0
London Borough of Sutton,31/12/2023,20066177,"2,732.16",City Sprint UK (Excel) Ltd,DELIVERY AND COURIER SERVICES,Health and Wellbeing,Hire of Transport - Non Staff,A32000,0
London Borough of Sutton,26/01/2024,20067843,"1,131.57",Civica UK Ltd,BUSINESS & COMPUTER SYSTEMS,Environment Housing and Neighbourhoods,Other Supplies & Services,A44291,0
London Borough of Sutton,22/01/2024,50451335,"6,236.76",Claremont Care Svs Ltd  ,SOCIAL SERVICES RESIDENTIAL,People's Services,Nursing Care - Ext Provider,A56025,0
London Borough of Sutton,22/01/2024,50451335,-836.76,Claremont Care Svs Ltd  ,SOCIAL SERVICES RESIDENTIAL,People's Services,Nursing Care - 3rd party top up payment,A56023,0
London Borough of Sutton,22/01/2024,50451336,-878.84,Claremont Care Svs Ltd  ,SOCIAL SERVICES RESIDENTIAL,People's Services,Nursing Care - 3rd party top up payment,A56023,0
London Borough of Sutton,22/01/2024,50451336,"7,838.84",Claremont Care Svs Ltd  ,SOCIAL SERVICES RESIDENTIAL,People's Services,Nursing Care Short Term,A56026,0
London Borough of Sutton,22/01/2024,50451499,"4,096.12",Claremont Care Svs Ltd  ,SOCIAL SERVICES RESIDENTIAL,People's Services,Nursing Care - Ext Provider,A56025,0
London Borough of Sutton,22/01/2024,50451499,-878.84,Claremont Care Svs Ltd  ,SOCIAL SERVICES RESIDENTIAL,People's Services,Nursing Care - 3rd party top up payment,A56023,0
London Borough of Sutton,22/01/2024,50451583,"4,525.36",Claremont Care Svs Ltd  ,SOCIAL SERVICES RESIDENTIAL,People's Services,Nursing Care - Ext Provider,A56025,0
London Borough of Sutton,22/01/2024,50451583,-750.40,Claremont Care Svs Ltd  ,SOCIAL SERVICES RESIDENTIAL,People's Services,Nursing Care - 3rd party top up payment,A56023,0
London Borough of Sutton,22/01/2024,50451304,-735.68,Bondcare (London) Ltd,SOCIAL SERVICES RESIDENTIAL,People's Services,Nursing Care - 3rd party top up payment,A56023,0
London Borough of Sutton,22/01/2024,50451304,"3,720.16",Bondcare (London) Ltd,SOCIAL SERVICES RESIDENTIAL,People's Services,Nursing Care - Ext Provider,A56025,0
London Borough of Sutton,02/01/2024,50443263,"2,495.77",Clear Thinking Care Limited,SOCIAL SERVICES RESIDENTIAL,People's Services,Supported Living,A56088,0
London Borough of Sutton,08/01/2024,50446388,"2,495.77",Clear Thinking Care Limited,SOCIAL SERVICES RESIDENTIAL,People's Services,Supported Living,A56088,0
London Borough of Sutton,08/01/2024,50446390,-851.33,Clear Thinking Care Limited,SOCIAL SERVICES RESIDENTIAL,People's Services,Supported Living,A56088,0
London Borough of Sutton,11/01/2024,50448703,"2,495.77",Clear Thinking Care Limited,SOCIAL SERVICES RESIDENTIAL,People's Services,Supported Living,A56088,0
London Borough of Sutton,19/01/2024,50452124,"2,495.77",Clear Thinking Care Limited,SOCIAL SERVICES RESIDENTIAL,People's Services,Supported Living,A56088,0
London Borough of Sutton,22/01/2024,50451056,"5,384.35",CLIA CARE LTD,SOCIAL SERVICES RESIDENTIAL,People's Services,Supported Living,A56088,0
London Borough of Sutton,22/01/2024,50451056,"-2,692.17",CLIA CARE LTD,SOCIAL SERVICES RESIDENTIAL,People's Services,Nursing Care - 3rd party top up payment,A56023,0
London Borough of Sutton,22/01/2024,50451097,"1,097.00",CLIA CARE LTD,SOCIAL SERVICES RESIDENTIAL,People's Services,Supported Living,A56088,0
London Borough of Sutton,22/01/2024,50451097,731.60,CLIA CARE LTD,SOCIAL SERVICES RESIDENTIAL,People's Services,Supported Living,A56088,0
London Borough of Sutton,22/01/2024,50451097,"3,886.47",CLIA CARE LTD,SOCIAL SERVICES RESIDENTIAL,People's Services,Supported Living,A56088,0
London Borough of Sutton,22/01/2024,50451097,"2,859.75",CLIA CARE LTD,SOCIAL SERVICES RESIDENTIAL,People's Services,One to One Care,A56108,0
London Borough of Sutton,22/01/2024,50451097,"-4,287.43",CLIA CARE LTD,SOCIAL SERVICES RESIDENTIAL,People's Services,Nursing Care - 3rd party top up payment,A56023,0
London Borough of Sutton,22/01/2024,50451120,"7,450.72",CLIA CARE LTD,SOCIAL SERVICES RESIDENTIAL,People's Services,Supported Living,A56088,0
London Borough of Sutton,22/01/2024,50451120,"-3,725.36",CLIA CARE LTD,SOCIAL SERVICES RESIDENTIAL,People's Services,Nursing Care - 3rd party top up payment,A56023,0
London Borough of Sutton,22/01/2024,50451121,"8,888.41",CLIA CARE LTD,SOCIAL SERVICES RESIDENTIAL,People's Services,Supported Living,A56088,0
London Borough of Sutton,22/01/2024,50451121,"-6,237.78",CLIA CARE LTD,SOCIAL SERVICES RESIDENTIAL,People's Services,Nursing Care - 3rd party top up payment,A56023,0
London Borough of Sutton,30/11/2023,20067317,"10,811.00",Coalescent Limited,TEMP STAFF & CONSULTANCY,Resources,Subscriptions,A47010,0
London Borough of Sutton,22/01/2024,50451172,"4,234.16",Coast Care Homes Ltd,SOCIAL SERVICES RESIDENTIAL,People's Services,Residential Care - Ext Provider,A56114,0
London Borough of Sutton,03/01/2024,20066149,"2,425.00",Co-ecology Ltd,SUNDRY SUPPLIER - ENV SERVICES,Environment Housing and Neighbourhoods,Equipment And Materials Purchase,A40000,0
London Borough of Sutton,22/01/2024,50451132,"12,960.16",Cognithan Ltd,SOCIAL SERVICES RESIDENTIAL,People's Services,Residential Care - Ext Provider,A56114,0
London Borough of Sutton,07/12/2023,20065025,"3,650.00",Cognus Ltd,LEGAL & PROFESSIONAL SERVICES,People's Services,Other Supplies & Services,A44291,0
London Borough of Sutton,14/12/2023,20065438,"9,000.00",Cognus Ltd,LEGAL & PROFESSIONAL SERVICES,People's Services,Other Supplies & Services,A44291,0
London Borough of Sutton,19/12/2023,20065589,"15,000.00",Cognus Ltd,LEGAL & PROFESSIONAL SERVICES,People's Services,Other Supplies & Services,A44291,0
London Borough of Sutton,19/12/2023,20065590,"9,000.00",Cognus Ltd,LEGAL & PROFESSIONAL SERVICES,People's Services,Other Supplies & Services,A44291,0
London Borough of Sutton,02/01/2024,20065835,"15,769.42",Cognus Ltd,LEGAL & PROFESSIONAL SERVICES,People's Services,Consultancy Services,A56007,0
London Borough of Sutton,02/01/2024,20065836,"42,533.33",Cognus Ltd,LEGAL & PROFESSIONAL SERVICES,People's Services,Consultancy Services,A56007,0
London Borough of Sutton,02/01/2024,20065837,"151,477.17",Cognus Ltd,LEGAL & PROFESSIONAL SERVICES,People's Services,Consultancy Services,A56007,0
London Borough of Sutton,02/01/2024,20065838,"15,769.42",Cognus Ltd,LEGAL & PROFESSIONAL SERVICES,People's Services,Consultancy Services,A56007,0
London Borough of Sutton,22/12/2023,20066431,"33,333.00",Cognus Ltd,LEGAL & PROFESSIONAL SERVICES,People's Services,Payment - Extended Role of Virtual School Head,A51054,0
London Borough of Sutton,15/01/2024,20067032,"1,890.00",Cognus Ltd,LEGAL & PROFESSIONAL SERVICES,People's Services,Staff Development And Training,A15022,0
London Borough of Sutton,14/12/2023,20067186,"2,640.00",Cognus Ltd,LEGAL & PROFESSIONAL SERVICES,People's Services,Other Supplies & Services,A44291,0
London Borough of Sutton,22/01/2024,50451222,"11,981.04",Coleg Elidyr Camphill Communities,CHILDREN'S SERVICES - RESIDENTIAL,People's Services,Residential Care - Ext Provider,A56114,0
London Borough of Sutton,09/01/2024,50444171,"15,383.41",Collingwood School Ltd,SCHOOL FUNDS,People's Services,Payment - Nursery Funding,A51056,0
London Borough of Sutton,09/01/2024,50445897,"1,256.90",Collingwood School Ltd,SCHOOL FUNDS,People's Services,Payment - school supplementary grant,A51062,0
London Borough of Sutton,19/01/2024,50452123,"2,937.87",Comfort Care Services UK Ltd,SOCIAL SERVICES - DIRECT PAYMENTS,People's Services,Supported Living,A56088,0
London Borough of Sutton,19/01/2024,50452123,"-1,468.96",Comfort Care Services UK Ltd,SOCIAL SERVICES - DIRECT PAYMENTS,People's Services,Nursing Care - 3rd party top up payment,A56023,0
London Borough of Sutton,02/01/2024,20067411,"1,000.00",Community Action Sutton,GRANTS & EX GRATIA PAYMENTS,Health and Wellbeing,Arts Programme,A44286,0
London Borough of Sutton,31/08/2023,50445702,"3,460.40",Community Housing and Therapy,SOCIAL SERVICES RESIDENTIAL,People's Services,Supported Living,A56088,0
London Borough of Sutton,01/12/2023,50444649,"4,162.68",Compass Fostering London Ltd,CHILDREN'S SERVICES - FOSTERING & ADOPTION SERVICES,People's Services,Foster Parents Support,A44110,0
London Borough of Sutton,01/12/2023,50444667,"3,639.09",Compass Fostering London Ltd,CHILDREN'S SERVICES - FOSTERING & ADOPTION SERVICES,People's Services,Foster Parents Support,A44110,0
London Borough of Sutton,01/12/2023,50444669,"3,753.17",Compass Fostering London Ltd,CHILDREN'S SERVICES - FOSTERING & ADOPTION SERVICES,People's Services,Foster Parents Support,A44110,0
London Borough of Sutton,01/12/2023,50444670,"4,088.28",Compass Fostering London Ltd,CHILDREN'S SERVICES - FOSTERING & ADOPTION SERVICES,People's Services,Foster Parents Support,A44110,0
London Borough of Sutton,01/12/2023,50444585,"4,649.69",Compass Fostering South Ltd,CHILDREN'S SERVICES - FOSTERING & ADOPTION SERVICES,People's Services,Foster Parents Support,A44110,0
London Borough of Sutton,02/01/2024,50444590,"4,162.86",Connect Fostering Services Ltd,CHILDREN'S SERVICES - FOSTERING & ADOPTION SERVICES,People's Services,Foster Parents Support,A44110,0
London Borough of Sutton,02/01/2024,50444636,"4,162.86",Connect Fostering Services Ltd,CHILDREN'S SERVICES - FOSTERING & ADOPTION SERVICES,People's Services,Foster Parents Support,A44110,0
London Borough of Sutton,09/01/2024,50444208,"10,663.49",Little PioneersSsutton,ACADEMIC INSTNS - OTHER,People's Services,Payment - Nursery Funding,A51056,0
London Borough of Sutton,09/01/2024,50444299,"4,015.44",Little PioneersSsutton,ACADEMIC INSTNS - OTHER,People's Services,Payment - Nursery Funding,A51056,0
London Borough of Sutton,09/01/2024,50445935,874.36,Little PioneersSsutton,ACADEMIC INSTNS - OTHER,People's Services,Payment - school supplementary grant,A51062,0
London Borough of Sutton,09/01/2024,50446026,"1,841.40",Little PioneersSsutton,ACADEMIC INSTNS - OTHER,People's Services,Payment - school supplementary grant,A51062,0
London Borough of Sutton,10/11/2023,20065271,"1,387.91",Corona Energy,UTILITIES,Resources,Gas,A21003,0
London Borough of Sutton,11/12/2023,20065277,"1,856.85",Corona Energy,UTILITIES,Resources,Gas,A21003,0
London Borough of Sutton,09/01/2024,50444172,"3,502.23",Cosy Cottage Daycare Ltd,GRANTS & EX GRATIA PAYMENTS,People's Services,Payment - Nursery Funding,A51056,0
London Borough of Sutton,09/01/2024,50444279,803.09,Cosy Cottage Daycare Ltd,GRANTS & EX GRATIA PAYMENTS,People's Services,Payment - Nursery Funding,A51056,0
London Borough of Sutton,22/01/2024,50451216,"4,400.00",Country Court Care Homes 2 Ltd,SOCIAL SERVICES RESIDENTIAL,People's Services,Nursing Care - Ext Provider,A56025,0
London Borough of Sutton,22/01/2024,50451216,"-1,226.92",Country Court Care Homes 2 Ltd,SOCIAL SERVICES RESIDENTIAL,People's Services,Nursing Care - 3rd party top up payment,A56023,0
London Borough of Sutton,22/01/2024,50451258,"4,560.00",Country Court Care Homes 2 Ltd,SOCIAL SERVICES RESIDENTIAL,People's Services,Nursing Care - Ext Provider,A56025,0
London Borough of Sutton,22/01/2024,50451258,-878.84,Country Court Care Homes 2 Ltd,SOCIAL SERVICES RESIDENTIAL,People's Services,Nursing Care - 3rd party top up payment,A56023,0
London Borough of Sutton,21/12/2023,20065893,"7,426.56",CPC Project Services LLP,LEGAL & PROFESSIONAL SERVICES,HRA,External Fees and Consultants,C20000,0
London Borough of Sutton,22/01/2024,50451212,"7,584.16",Cream 1 Ltd ,SOCIAL SERVICES RESIDENTIAL,People's Services,Residential Care - Ext Provider,A56114,0
London Borough of Sutton,22/01/2024,50451212,"5,560.52",Cream 1 Ltd ,SOCIAL SERVICES RESIDENTIAL,People's Services,One to One Care,A56108,0
London Borough of Sutton,04/12/2023,50444600,"6,957.29",Credo Care Limited,CHILDREN'S SERVICE - OTHER,People's Services,Foster Parents Support,A44110,0
London Borough of Sutton,22/01/2024,50451392,"4,096.12",CRNH Ltd,SOCIAL SERVICES RESIDENTIAL,People's Services,Nursing Care - Ext Provider,A56025,0
London Borough of Sutton,22/01/2024,50451392,-878.84,CRNH Ltd,SOCIAL SERVICES RESIDENTIAL,People's Services,Nursing Care - 3rd party top up payment,A56023,0
London Borough of Sutton,22/01/2024,50451471,"4,096.12",CRNH Ltd,SOCIAL SERVICES RESIDENTIAL,People's Services,Nursing Care - Ext Provider,A56025,0
London Borough of Sutton,22/01/2024,50451471,-878.84,CRNH Ltd,SOCIAL SERVICES RESIDENTIAL,People's Services,Nursing Care - 3rd party top up payment,A56023,0
London Borough of Sutton,22/01/2024,50451471,-239.88,CRNH Ltd,SOCIAL SERVICES RESIDENTIAL,People's Services,Nursing Care - 3rd party top up payment,A56023,0
London Borough of Sutton,22/01/2024,50451472,"4,096.12",CRNH Ltd,SOCIAL SERVICES RESIDENTIAL,People's Services,Nursing Care - Ext Provider,A56025,0
London Borough of Sutton,22/01/2024,50451472,-878.84,CRNH Ltd,SOCIAL SERVICES RESIDENTIAL,People's Services,Nursing Care - 3rd party top up payment,A56023,0
London Borough of Sutton,22/01/2024,50451611,"4,560.00",CRNH Ltd,SOCIAL SERVICES RESIDENTIAL,People's Services,Nursing Care - Ext Provider,A56025,0
London Borough of Sutton,22/01/2024,50451611,-878.84,CRNH Ltd,SOCIAL SERVICES RESIDENTIAL,People's Services,Nursing Care - 3rd party top up payment,A56023,0
London Borough of Sutton,22/01/2024,50451612,"4,096.12",CRNH Ltd,SOCIAL SERVICES RESIDENTIAL,People's Services,Nursing Care - Ext Provider,A56025,0
London Borough of Sutton,22/01/2024,50451612,-878.84,CRNH Ltd,SOCIAL SERVICES RESIDENTIAL,People's Services,Nursing Care - 3rd party top up payment,A56023,0
London Borough of Sutton,22/01/2024,50451628,"5,400.00",CRNH Ltd,SOCIAL SERVICES RESIDENTIAL,People's Services,Nursing Care - Ext Provider,A56025,0
London Borough of Sutton,22/01/2024,50451628,-836.76,CRNH Ltd,SOCIAL SERVICES RESIDENTIAL,People's Services,Nursing Care - 3rd party top up payment,A56023,0
London Borough of Sutton,22/01/2024,50451662,-836.76,CRNH Ltd,SOCIAL SERVICES RESIDENTIAL,People's Services,Nursing Care - 3rd party top up payment,A56023,0
London Borough of Sutton,22/01/2024,50451662,"5,400.00",CRNH Ltd,SOCIAL SERVICES RESIDENTIAL,People's Services,Nursing Care Short Term,A56026,0
London Borough of Sutton,22/01/2024,50451697,-878.84,CRNH Ltd,SOCIAL SERVICES RESIDENTIAL,People's Services,Nursing Care - 3rd party top up payment,A56023,0
London Borough of Sutton,22/01/2024,50451697,"4,560.00",CRNH Ltd,SOCIAL SERVICES RESIDENTIAL,People's Services,Nursing Care Short Term,A56026,0
London Borough of Sutton,22/01/2024,50451721,-836.76,CRNH Ltd,SOCIAL SERVICES RESIDENTIAL,People's Services,Nursing Care - 3rd party top up payment,A56023,0
London Borough of Sutton,22/01/2024,50451721,"19,168.00",CRNH Ltd,SOCIAL SERVICES RESIDENTIAL,People's Services,Nursing Care Short Term,A56026,0
London Borough of Sutton,31/12/2023,20066509,"17,198.00",Cromwood Limited,ACCOMMODATION BED & BREAKFAST,Environment Housing and Neighbourhoods,Bed & Breakfast,A56000,0
London Borough of Sutton,22/01/2024,50451458,"4,096.12",Cross Care Services Ltd,SOCIAL SERVICES RESIDENTIAL,People's Services,Nursing Care - Ext Provider,A56025,0
London Borough of Sutton,22/01/2024,50451458,-878.84,Cross Care Services Ltd,SOCIAL SERVICES RESIDENTIAL,People's Services,Nursing Care - 3rd party top up payment,A56023,0
London Borough of Sutton,22/01/2024,50451480,"33,757.14",Cross Care Services Ltd,SOCIAL SERVICES RESIDENTIAL,People's Services,Nursing Care Short Term,A56026,0
London Borough of Sutton,22/01/2024,50451481,"4,096.12",Cross Care Services Ltd,SOCIAL SERVICES RESIDENTIAL,People's Services,Nursing Care - Ext Provider,A56025,0
London Borough of Sutton,22/01/2024,50451481,-878.84,Cross Care Services Ltd,SOCIAL SERVICES RESIDENTIAL,People's Services,Nursing Care - 3rd party top up payment,A56023,0
London Borough of Sutton,22/01/2024,50451506,-878.84,Cross Care Services Ltd,SOCIAL SERVICES RESIDENTIAL,People's Services,Nursing Care - 3rd party top up payment,A56023,0
London Borough of Sutton,22/01/2024,50451506,"4,096.12",Cross Care Services Ltd,SOCIAL SERVICES RESIDENTIAL,People's Services,Nursing Care - Ext Provider,A56025,0
London Borough of Sutton,22/01/2024,50451614,"4,096.12",Cross Care Services Ltd,SOCIAL SERVICES RESIDENTIAL,People's Services,Nursing Care - Ext Provider,A56025,0
London Borough of Sutton,22/01/2024,50451614,-878.84,Cross Care Services Ltd,SOCIAL SERVICES RESIDENTIAL,People's Services,Nursing Care - 3rd party top up payment,A56023,0
London Borough of Sutton,22/01/2024,50451649,-878.84,Cross Care Services Ltd,SOCIAL SERVICES RESIDENTIAL,People's Services,Nursing Care - 3rd party top up payment,A56023,0
London Borough of Sutton,22/01/2024,50451649,"4,096.12",Cross Care Services Ltd,SOCIAL SERVICES RESIDENTIAL,People's Services,Nursing Care Short Term,A56026,0
London Borough of Sutton,22/01/2024,50451650,"4,096.12",Cross Care Services Ltd,SOCIAL SERVICES RESIDENTIAL,People's Services,Nursing Care - Ext Provider,A56025,0
London Borough of Sutton,22/01/2024,50451650,-878.84,Cross Care Services Ltd,SOCIAL SERVICES RESIDENTIAL,People's Services,Nursing Care - 3rd party top up payment,A56023,0
London Borough of Sutton,22/01/2024,50451711,"4,096.12",Cross Care Services Ltd,SOCIAL SERVICES RESIDENTIAL,People's Services,Nursing Care - Ext Provider,A56025,0
London Borough of Sutton,21/12/2023,50443374,"2,061.28",Croydon College,ACADEMIC INSTNS - OTHER,People's Services,Top-up Funding,A51016,0
London Borough of Sutton,01/11/2023,20061421,"1,567.00",London Borough of Croydon,CENTRAL & LOCAL GOVERNMENT,Resources,Building Rents,A22005,0
London Borough of Sutton,01/11/2023,20061422,"5,196.00",London Borough of Croydon,CENTRAL & LOCAL GOVERNMENT,Resources,Building Rents,A22005,0
London Borough of Sutton,01/11/2023,20061424,660.00,London Borough of Croydon,CENTRAL & LOCAL GOVERNMENT,Resources,Building Rents,A22005,0
London Borough of Sutton,01/11/2023,20061425,"15,137.59",London Borough of Croydon,CENTRAL & LOCAL GOVERNMENT,Resources,Building Rents,A22005,0
London Borough of Sutton,01/11/2023,20061426,"3,031.27",London Borough of Croydon,CENTRAL & LOCAL GOVERNMENT,Resources,Building Rents,A22005,0
London Borough of Sutton,01/11/2023,20061427,"14,724.03",London Borough of Croydon,CENTRAL & LOCAL GOVERNMENT,Resources,Building Rents,A22005,0
London Borough of Sutton,01/11/2023,20061428,"2,727.50",London Borough of Croydon,CENTRAL & LOCAL GOVERNMENT,Resources,Building Rents,A22005,0
London Borough of Sutton,01/11/2023,20061429,"18,680.00",London Borough of Croydon,CENTRAL & LOCAL GOVERNMENT,Resources,Building Rents,A22005,0
London Borough of Sutton,01/11/2023,20061430,"6,336.50",London Borough of Croydon,CENTRAL & LOCAL GOVERNMENT,Resources,Building Rents,A22005,0
London Borough of Sutton,01/11/2023,20061431,"5,803.00",London Borough of Croydon,CENTRAL & LOCAL GOVERNMENT,Resources,Building Rents,A22005,0
London Borough of Sutton,01/11/2023,20061432,"13,650.00",London Borough of Croydon,CENTRAL & LOCAL GOVERNMENT,Resources,Building Rents,A22005,0
London Borough of Sutton,01/11/2023,20061433,"11,791.00",London Borough of Croydon,CENTRAL & LOCAL GOVERNMENT,Resources,Building Rents,A22005,0
London Borough of Sutton,01/11/2023,20061434,967.50,London Borough of Croydon,CENTRAL & LOCAL GOVERNMENT,Resources,Building Rents,A22005,0
London Borough of Sutton,01/11/2023,20061435,"3,533.16",London Borough of Croydon,CENTRAL & LOCAL GOVERNMENT,Resources,Building Rents,A22005,0
London Borough of Sutton,12/12/2023,50444607,"3,193.00",London Borough of Croydon,CENTRAL & LOCAL GOVERNMENT,People's Services,Foster Parents Support,A44110,0
London Borough of Sutton,31/12/2023,20065901,"3,565.00",Croydon Court Ltd,ACCOMMODATION BED & BREAKFAST,Environment Housing and Neighbourhoods,Bed & Breakfast,A56000,0
London Borough of Sutton,31/12/2023,20065902,"1,312.85",Croydon Court Ltd,ACCOMMODATION BED & BREAKFAST,People's Services,Temporary Residential Accommodation,A44140,0
London Borough of Sutton,22/01/2024,50451247,"8,118.44",CSS Ltd,SOCIAL SERVICES RESIDENTIAL,People's Services,Residential Care - Ext Provider,A56114,0
London Borough of Sutton,09/01/2024,50446283,"1,560.00",CSS Ltd,SOCIAL SERVICES RESIDENTIAL,People's Services,Day Care Services,A56021,0
London Borough of Sutton,09/01/2024,50446284,702.00,CSS Ltd,SOCIAL SERVICES RESIDENTIAL,People's Services,Day Care Services,A56021,0
London Borough of Sutton,09/01/2024,50446285,"1,560.00",CSS Ltd,SOCIAL SERVICES RESIDENTIAL,People's Services,Day Care Services,A56021,0
London Borough of Sutton,09/01/2024,50446286,"1,521.00",CSS Ltd,SOCIAL SERVICES RESIDENTIAL,People's Services,Day Care Services,A56021,0
London Borough of Sutton,27/12/2023,50446378,731.40,CSS Ltd,SOCIAL SERVICES RESIDENTIAL,People's Services,Day Care Services,A56021,0
London Borough of Sutton,09/01/2024,50446379,699.60,CSS Ltd,SOCIAL SERVICES RESIDENTIAL,People's Services,Day Care Services,A56021,0
London Borough of Sutton,01/01/2024,50443406,"9,398.57",Culvers House Primary School,SCHOOL FUNDS,People's Services,Top-up Funding,A51016,0
London Borough of Sutton,09/01/2024,50445713,"179,114.27",Culvers House Primary School,SCHOOL FUNDS,People's Services,Payments to Schools,A51013,0
London Borough of Sutton,09/01/2024,50445770,"9,363.82",Culvers House Primary School,SCHOOL FUNDS,People's Services,Payment - Nursery Funding,A51056,0
London Borough of Sutton,09/01/2024,50445821,765.07,Culvers House Primary School,SCHOOL FUNDS,People's Services,Payment - school supplementary grant,A51062,0
London Borough of Sutton,15/01/2024,50448721,"2,579.06",Culvers House Primary School,SCHOOL FUNDS,People's Services,Payment - school led tutoring grant,A51060,0
London Borough of Sutton,15/01/2024,50448745,"5,002.50",Culvers House Primary School,SCHOOL FUNDS,People's Services,Payment - Covid 19 Recovery Premium,A51039,0
London Borough of Sutton,15/01/2024,50448762,"49,470.00",Culvers House Primary School,SCHOOL FUNDS,People's Services,Payment - Deprivation Pupil Premium,A51030,0
London Borough of Sutton,15/01/2024,50448788,"1,265.00",Culvers House Primary School,SCHOOL FUNDS,People's Services,Payment - Post-LAC Pupil Premium,A51032,0
London Borough of Sutton,29/01/2024,50454093,900.00,Culvers House Primary School,SCHOOL FUNDS,People's Services,SEND Inclusion funding,A60038,0
London Borough of Sutton,22/01/2024,50451010,"-3,587.14",Curado Limited,GRANTS & EX GRATIA PAYMENTS,People's Services,Nursing Care - 3rd party top up payment,A56023,0
London Borough of Sutton,22/01/2024,50451010,"5,978.57",Curado Limited,GRANTS & EX GRATIA PAYMENTS,People's Services,Supported Living,A56088,0
London Borough of Sutton,22/01/2024,50451035,"1,992.86",Curado Limited,GRANTS & EX GRATIA PAYMENTS,People's Services,Supported Living,A56088,0
London Borough of Sutton,22/01/2024,50451135,"6,400.00",Curado Limited,GRANTS & EX GRATIA PAYMENTS,People's Services,Residential Care - Ext Provider,A56114,0
London Borough of Sutton,22/01/2024,50451217,"6,400.00",Curado Limited,GRANTS & EX GRATIA PAYMENTS,People's Services,Residential Care - Ext Provider,A56114,0
London Borough of Sutton,22/01/2024,50451311,"4,800.00",Curado Limited,GRANTS & EX GRATIA PAYMENTS,People's Services,Interim Placements - Ext Provider,A56102,0
London Borough of Sutton,31/12/2023,20065882,"1,850.00",Cushman & Wakefield Debenham Tie Leung Limited,LEGAL & PROFESSIONAL SERVICES,Development Growth and Regeneration,External Fees and Consultants,C20000,0
London Borough of Sutton,31/12/2023,20065883,"2,578.79",Cushman & Wakefield Debenham Tie Leung Limited,LEGAL & PROFESSIONAL SERVICES,Development Growth and Regeneration,External Fees and Consultants,C20000,0
London Borough of Sutton,22/01/2024,50451140,"7,884.00",Cygnet Learning Disabilities Midlands Ltd,SOCIAL SERVICES RESIDENTIAL,People's Services,Residential Care - Ext Provider,A56114,0
London Borough of Sutton,22/01/2024,50451140,-846.40,Cygnet Learning Disabilities Midlands Ltd,SOCIAL SERVICES RESIDENTIAL,People's Services,Residential Care - Client Cont ( Net Paymt ),A56113,0
London Borough of Sutton,11/01/2024,20065884,805.00,REDACTED - PERSONAL DATA,GRANTS & EX GRATIA PAYMENTS,Environment Housing and Neighbourhoods,Temporary Protection - Homeless Persons,A62028,0
London Borough of Sutton,22/01/2024,50451053,"14,596.07",Daret Healthcare UK Limited,SOCIAL SERVICES RESIDENTIAL,People's Services,Supported Living,A56088,0
London Borough of Sutton,21/11/2023,20066106,"1,200.00",Dariba Design Limited,CONSULTING ARCHITECTS ENGINEER,Environment Housing and Neighbourhoods,Grants Given For Capital Purposes,C20004,0
London Borough of Sutton,19/01/2024,20067431,"2,500.00",Dave Shrimpton Photography Limited,REPROGRAPHICS & PHOTOGRAPHY,Health and Wellbeing,Professional Fees,A44066,0
London Borough of Sutton,10/01/2023,20066681,"4,708.00",REDACTED - PERSONAL DATA,SUNDRY SUPPLIER - HOUSING,Environment Housing and Neighbourhoods,Rent Deposit Scheme,B32179,0
London Borough of Sutton,31/12/2023,20065851,"1,860.00",Dellhome Limited,ACCOMMODATION BED & BREAKFAST,Environment Housing and Neighbourhoods,Bed & Breakfast,A56000,0
London Borough of Sutton,31/12/2023,20065852,"2,015.00",Dellhome Limited,ACCOMMODATION BED & BREAKFAST,Environment Housing and Neighbourhoods,Bed & Breakfast,A56000,0
London Borough of Sutton,31/12/2023,20065853,"2,170.00",Dellhome Limited,ACCOMMODATION BED & BREAKFAST,Environment Housing and Neighbourhoods,Bed & Breakfast,A56000,0
London Borough of Sutton,31/12/2023,20065854,"2,480.00",Dellhome Limited,ACCOMMODATION BED & BREAKFAST,Environment Housing and Neighbourhoods,Bed & Breakfast,A56000,0
London Borough of Sutton,31/12/2023,20065855,"1,395.00",Dellhome Limited,ACCOMMODATION BED & BREAKFAST,Environment Housing and Neighbourhoods,Bed & Breakfast,A56000,0
London Borough of Sutton,02/01/2024,20065839,"28,658.00",Delta Wise Limited,ACCOMMODATION BED & BREAKFAST,Environment Housing and Neighbourhoods,Bed & Breakfast,A56000,0
London Borough of Sutton,09/01/2024,20066604,"1,540.00",Denhan Property Services,ACCOMMODATION BED & BREAKFAST,Environment Housing and Neighbourhoods,Bed & Breakfast,A56000,0
London Borough of Sutton,09/01/2024,20066618,"1,612.00",Denhan Property Services,ACCOMMODATION BED & BREAKFAST,Environment Housing and Neighbourhoods,Bed & Breakfast,A56000,0
London Borough of Sutton,09/01/2024,20066619,"1,271.00",Denhan Property Services,ACCOMMODATION BED & BREAKFAST,Environment Housing and Neighbourhoods,Bed & Breakfast,A56000,0
London Borough of Sutton,09/01/2024,20066620,"1,260.00",Denhan Property Services,ACCOMMODATION BED & BREAKFAST,Environment Housing and Neighbourhoods,Bed & Breakfast,A56000,0
London Borough of Sutton,09/01/2024,20066621,"1,116.00",Denhan Property Services,ACCOMMODATION BED & BREAKFAST,Environment Housing and Neighbourhoods,Bed & Breakfast,A56000,0
London Borough of Sutton,09/01/2024,20066622,"1,147.00",Denhan Property Services,ACCOMMODATION BED & BREAKFAST,Environment Housing and Neighbourhoods,Bed & Breakfast,A56000,0
London Borough of Sutton,09/01/2024,20066623,"1,271.00",Denhan Property Services,ACCOMMODATION BED & BREAKFAST,Environment Housing and Neighbourhoods,Bed & Breakfast,A56000,0
London Borough of Sutton,09/01/2024,20066624,"1,116.00",Denhan Property Services,ACCOMMODATION BED & BREAKFAST,Environment Housing and Neighbourhoods,Bed & Breakfast,A56000,0
London Borough of Sutton,09/01/2024,20066625,"2,015.00",Denhan Property Services,ACCOMMODATION BED & BREAKFAST,Environment Housing and Neighbourhoods,Bed & Breakfast,A56000,0
London Borough of Sutton,09/01/2024,20066626,"2,015.00",Denhan Property Services,ACCOMMODATION BED & BREAKFAST,Environment Housing and Neighbourhoods,Bed & Breakfast,A56000,0
London Borough of Sutton,09/01/2024,20066627,"1,260.00",Denhan Property Services,ACCOMMODATION BED & BREAKFAST,Environment Housing and Neighbourhoods,Bed & Breakfast,A56000,0
London Borough of Sutton,09/01/2024,20066628,"1,116.00",Denhan Property Services,ACCOMMODATION BED & BREAKFAST,Environment Housing and Neighbourhoods,Bed & Breakfast,A56000,0
London Borough of Sutton,09/01/2024,20066630,"2,077.00",Denhan Property Services,ACCOMMODATION BED & BREAKFAST,Environment Housing and Neighbourhoods,Bed & Breakfast,A56000,0
London Borough of Sutton,09/01/2024,20066631,"1,260.00",Denhan Property Services,ACCOMMODATION BED & BREAKFAST,Environment Housing and Neighbourhoods,Bed & Breakfast,A56000,0
London Borough of Sutton,09/01/2024,20066632,"2,480.00",Denhan Property Services,ACCOMMODATION BED & BREAKFAST,Environment Housing and Neighbourhoods,Bed & Breakfast,A56000,0
London Borough of Sutton,09/01/2024,20066633,"1,929.75",Denhan Property Services,ACCOMMODATION BED & BREAKFAST,Environment Housing and Neighbourhoods,Bed & Breakfast,A56000,0
London Borough of Sutton,11/12/2023,20067349,"1,230.00",Denhan Property Services,ACCOMMODATION BED & BREAKFAST,Environment Housing and Neighbourhoods,Bed & Breakfast,A56000,0
London Borough of Sutton,11/12/2023,20067350,"1,950.00",Denhan Property Services,ACCOMMODATION BED & BREAKFAST,Environment Housing and Neighbourhoods,Bed & Breakfast,A56000,0
London Borough of Sutton,11/12/2023,20067351,"1,080.00",Denhan Property Services,ACCOMMODATION BED & BREAKFAST,Environment Housing and Neighbourhoods,Bed & Breakfast,A56000,0
London Borough of Sutton,11/12/2023,20067352,"1,230.00",Denhan Property Services,ACCOMMODATION BED & BREAKFAST,Environment Housing and Neighbourhoods,Bed & Breakfast,A56000,0
London Borough of Sutton,11/12/2023,20067354,"2,010.00",Denhan Property Services,ACCOMMODATION BED & BREAKFAST,Environment Housing and Neighbourhoods,Bed & Breakfast,A56000,0
London Borough of Sutton,04/10/2023,20067355,"1,110.00",Denhan Property Services,ACCOMMODATION BED & BREAKFAST,Environment Housing and Neighbourhoods,Bed & Breakfast,A56000,0
London Borough of Sutton,18/01/2024,20067429,"1,400.00",Denhan Property Services,ACCOMMODATION BED & BREAKFAST,Environment Housing and Neighbourhoods,Bed & Breakfast,A56000,0
London Borough of Sutton,22/01/2024,50451197,"3,505.00",Denville Hall 2012,SOCIAL SERVICES RESIDENTIAL,People's Services,Residential Care - Ext Provider,A56114,0
London Borough of Sutton,01/01/2024,50443407,"16,032.15",Devonshire Primary School,SCHOOL FUNDS,People's Services,Top-up Funding,A51016,0
London Borough of Sutton,09/01/2024,50445706,"262,600.44",Devonshire Primary School,SCHOOL FUNDS,People's Services,Payments to Schools,A51013,0
London Borough of Sutton,09/01/2024,50445771,"9,081.07",Devonshire Primary School,SCHOOL FUNDS,People's Services,Payment - Nursery Funding,A51056,0
London Borough of Sutton,09/01/2024,50445806,"2,408.28",Devonshire Primary School,SCHOOL FUNDS,People's Services,Pupil Growth,A51014,0
London Borough of Sutton,09/01/2024,50445822,710.42,Devonshire Primary School,SCHOOL FUNDS,People's Services,Payment - school supplementary grant,A51062,0
London Borough of Sutton,15/01/2024,50448714,"3,524.06",Devonshire Primary School,SCHOOL FUNDS,People's Services,Payment - school led tutoring grant,A51060,0
London Borough of Sutton,15/01/2024,50448748,"6,996.25",Devonshire Primary School,SCHOOL FUNDS,People's Services,Payment - Covid 19 Recovery Premium,A51039,0
London Borough of Sutton,15/01/2024,50448763,"69,476.00",Devonshire Primary School,SCHOOL FUNDS,People's Services,Payment - Deprivation Pupil Premium,A51030,0
London Borough of Sutton,15/01/2024,50448789,"1,265.00",Devonshire Primary School,SCHOOL FUNDS,People's Services,Payment - Post-LAC Pupil Premium,A51032,0
London Borough of Sutton,29/01/2024,50454094,600.00,Devonshire Primary School,SCHOOL FUNDS,People's Services,SEND Inclusion funding,A60038,0
London Borough of Sutton,19/01/2023,20067679,"1,050.00",DIAMOND DOMICILE LTD,SUNDRY SUPPLIER - HOUSING,Environment Housing and Neighbourhoods,Rent Deposit Scheme,B32179,0
London Borough of Sutton,17/12/2023,50442977,"3,935.00",Direct Care And Support Services,ACCOMMODATION - OTHER,People's Services,Supported Living,A56088,0
London Borough of Sutton,17/12/2023,50442977,"1,626.80",Direct Care And Support Services,ACCOMMODATION - OTHER,People's Services,Supported Living,A56088,0
London Borough of Sutton,17/12/2023,50443222,"2,324.00",Direct Care And Support Services,ACCOMMODATION - OTHER,People's Services,Supported Living,A56088,0
London Borough of Sutton,17/12/2023,50443222,697.20,Direct Care And Support Services,ACCOMMODATION - OTHER,People's Services,Supported Living,A56088,0
London Borough of Sutton,17/12/2023,50443222,"1,307.32",Direct Care And Support Services,ACCOMMODATION - OTHER,People's Services,Supported Living,A56088,0
London Borough of Sutton,07/11/2023,50443986,"7,092.85",Direct Care And Support Services,ACCOMMODATION - OTHER,People's Services,Supported Living,A56088,0
London Borough of Sutton,07/11/2023,50443986,"1,307.32",Direct Care And Support Services,ACCOMMODATION - OTHER,People's Services,Supported Living,A56088,0
London Borough of Sutton,25/09/2023,50443991,"3,935.00",Direct Care And Support Services,ACCOMMODATION - OTHER,People's Services,Supported Living,A56088,0
London Borough of Sutton,25/09/2023,50443991,"1,626.80",Direct Care And Support Services,ACCOMMODATION - OTHER,People's Services,Supported Living,A56088,0
London Borough of Sutton,25/09/2023,50443992,"3,187.09",Direct Care And Support Services,ACCOMMODATION - OTHER,People's Services,Supported Living,A56088,0
London Borough of Sutton,25/09/2023,50443992,"2,168.64",Direct Care And Support Services,ACCOMMODATION - OTHER,People's Services,Supported Living,A56088,0
London Borough of Sutton,07/11/2023,50443999,"2,279.52",Direct Care And Support Services,ACCOMMODATION - OTHER,People's Services,Supported Living,A56088,0
London Borough of Sutton,07/11/2023,50443999,"1,307.32",Direct Care And Support Services,ACCOMMODATION - OTHER,People's Services,Supported Living,A56088,0
London Borough of Sutton,07/11/2023,50443999,"2,169.28",Direct Care And Support Services,ACCOMMODATION - OTHER,People's Services,Supported Living,A56088,0
London Borough of Sutton,07/11/2023,50444000,"4,480.09",Direct Care And Support Services,ACCOMMODATION - OTHER,People's Services,Supported Living,A56088,0
London Borough of Sutton,06/11/2023,50444001,"3,535.81",Direct Care And Support Services,ACCOMMODATION - OTHER,People's Services,Supported Living,A56088,0
London Borough of Sutton,06/11/2023,50444001,990.68,Direct Care And Support Services,ACCOMMODATION - OTHER,People's Services,Supported Living,A56088,0
London Borough of Sutton,06/11/2023,50444001,"1,307.32",Direct Care And Support Services,ACCOMMODATION - OTHER,People's Services,Supported Living,A56088,0
London Borough of Sutton,17/12/2023,50445194,"1,534.39",Direct Care And Support Services,ACCOMMODATION - OTHER,People's Services,Supported Living,A56088,0
London Borough of Sutton,17/12/2023,50445194,"2,168.64",Direct Care And Support Services,ACCOMMODATION - OTHER,People's Services,Supported Living,A56088,0
London Borough of Sutton,17/12/2023,50445195,"5,670.28",Direct Care And Support Services,ACCOMMODATION - OTHER,People's Services,Supported Living,A56088,0
London Borough of Sutton,17/12/2023,50445195,"1,307.32",Direct Care And Support Services,ACCOMMODATION - OTHER,People's Services,Supported Living,A56088,0
London Borough of Sutton,17/12/2023,50445701,"3,175.92",Direct Care And Support Services,ACCOMMODATION - OTHER,People's Services,Supported Living,A56088,0
London Borough of Sutton,17/12/2023,50445701,"1,307.32",Direct Care And Support Services,ACCOMMODATION - OTHER,People's Services,Supported Living,A56088,0
London Borough of Sutton,17/12/2023,50445701,"1,082.32",Direct Care And Support Services,ACCOMMODATION - OTHER,People's Services,Supported Living,A56088,0
London Borough of Sutton,18/12/2023,50446387,"2,465.43",Direct Care And Support Services,ACCOMMODATION - OTHER,People's Services,Supported Living,A56088,0
London Borough of Sutton,18/12/2023,50446387,"1,307.32",Direct Care And Support Services,ACCOMMODATION - OTHER,People's Services,Supported Living,A56088,0
London Borough of Sutton,17/12/2023,50446389,"2,465.43",Direct Care And Support Services,ACCOMMODATION - OTHER,People's Services,Supported Living,A56088,0
London Borough of Sutton,17/12/2023,50446389,"1,307.32",Direct Care And Support Services,ACCOMMODATION - OTHER,People's Services,Supported Living,A56088,0
London Borough of Sutton,18/12/2023,50446391,"2,465.43",Direct Care And Support Services,ACCOMMODATION - OTHER,People's Services,Supported Living,A56088,0
London Borough of Sutton,18/12/2023,50446391,"1,307.32",Direct Care And Support Services,ACCOMMODATION - OTHER,People's Services,Supported Living,A56088,0
London Borough of Sutton,18/12/2023,50446392,"2,465.43",Direct Care And Support Services,ACCOMMODATION - OTHER,People's Services,Supported Living,A56088,0
London Borough of Sutton,18/12/2023,50446392,"1,307.32",Direct Care And Support Services,ACCOMMODATION - OTHER,People's Services,Supported Living,A56088,0
London Borough of Sutton,18/12/2023,50446393,"2,465.43",Direct Care And Support Services,ACCOMMODATION - OTHER,People's Services,Supported Living,A56088,0
London Borough of Sutton,18/12/2023,50446393,"1,307.32",Direct Care And Support Services,ACCOMMODATION - OTHER,People's Services,Supported Living,A56088,0
London Borough of Sutton,17/12/2023,50446394,"4,480.09",Direct Care And Support Services,ACCOMMODATION - OTHER,People's Services,Supported Living,A56088,0
London Borough of Sutton,17/12/2023,50449588,"2,801.32",Direct Care And Support Services,ACCOMMODATION - OTHER,People's Services,Supported Living,A56088,0
London Borough of Sutton,17/12/2023,50449588,"1,082.32",Direct Care And Support Services,ACCOMMODATION - OTHER,People's Services,Supported Living,A56088,0
London Borough of Sutton,27/01/2024,20067044,938.34,REDACTED - PERSONAL DATA,PLS LANDLORDS,Environment Housing and Neighbourhoods,Temporary Protection - Homeless Persons,A62028,0
London Borough of Sutton,09/01/2024,50444176,999.70,REDACTED - PERSONAL DATA,GRANTS & EX GRATIA PAYMENTS,People's Services,Payment - Nursery Funding,A51056,0
London Borough of Sutton,09/01/2024,50444280,803.09,REDACTED - PERSONAL DATA,GRANTS & EX GRATIA PAYMENTS,People's Services,Payment - Nursery Funding,A51056,0
London Borough of Sutton,01/01/2024,50443408,"33,994.88",Dorchester Primary School,SCHOOL FUNDS,People's Services,Top-up Funding,A51016,0
London Borough of Sutton,09/01/2024,50445708,"203,667.51",Dorchester Primary School,SCHOOL FUNDS,People's Services,Payments to Schools,A51013,0
London Borough of Sutton,09/01/2024,50445772,"28,640.31",Dorchester Primary School,SCHOOL FUNDS,People's Services,Payment - Nursery Funding,A51056,0
London Borough of Sutton,09/01/2024,50445823,"2,240.57",Dorchester Primary School,SCHOOL FUNDS,People's Services,Payment - school supplementary grant,A51062,0
London Borough of Sutton,15/01/2024,50448716,"1,830.94",Dorchester Primary School,SCHOOL FUNDS,People's Services,Payment - school led tutoring grant,A51060,0
London Borough of Sutton,15/01/2024,50448755,"3,552.50",Dorchester Primary School,SCHOOL FUNDS,People's Services,Payment - Covid 19 Recovery Premium,A51039,0
London Borough of Sutton,15/01/2024,50448764,"35,647.00",Dorchester Primary School,SCHOOL FUNDS,People's Services,Payment - Deprivation Pupil Premium,A51030,0
London Borough of Sutton,29/01/2024,50454095,"3,300.00",Dorchester Primary School,SCHOOL FUNDS,People's Services,SEND Inclusion funding,A60038,0
London Borough of Sutton,28/12/2023,20065777,"1,096.98",REDACTED - PERSONAL DATA,GRANTS & EX GRATIA PAYMENTS,Environment Housing and Neighbourhoods,Temporary Protection - Homeless Persons,A62028,0
London Borough of Sutton,31/12/2023,20066090,871.86,REDACTED - PERSONAL DATA,"SOCIAL SERVICES - DOLS, GUM & BIA ASSESSMENTS",People's Services,Client Related Assessments,A56017,0
London Borough of Sutton,16/01/2024,20067269,"2,696.40",Dramabuds,ENTERTAINMENTS INDUSTRY,Resources,Provider Contract Payments,A44290,0
London Borough of Sutton,17/01/2024,20067270,"1,200.00",Dramabuds,ENTERTAINMENTS INDUSTRY,Resources,Provider Contract Payments,A44290,0
London Borough of Sutton,05/01/2024,50447812,"4,340.04",Dreamfo Housing Ltd,CHILDREN'S SERVICE - OTHER,People's Services,Accommodation - Supported Living,A62001,0
London Borough of Sutton,05/01/2024,50447812,276.79,Dreamfo Housing Ltd,CHILDREN'S SERVICE - OTHER,People's Services,Accommodation - Supported Living,A62001,0
London Borough of Sutton,05/01/2024,50447826,276.79,Dreamfo Housing Ltd,CHILDREN'S SERVICE - OTHER,People's Services,Approved Lodgings,A61000,0
London Borough of Sutton,05/01/2024,50447826,"3,941.38",Dreamfo Housing Ltd,CHILDREN'S SERVICE - OTHER,People's Services,Approved Lodgings,A61000,0
London Borough of Sutton,05/01/2024,50447831,276.79,Dreamfo Housing Ltd,CHILDREN'S SERVICE - OTHER,People's Services,Approved Lodgings,A61000,0
London Borough of Sutton,05/01/2024,50447831,"3,543.03",Dreamfo Housing Ltd,CHILDREN'S SERVICE - OTHER,People's Services,Approved Lodgings,A61000,0
London Borough of Sutton,05/01/2024,50447837,276.79,Dreamfo Housing Ltd,CHILDREN'S SERVICE - OTHER,People's Services,Approved Lodgings,A61000,0
London Borough of Sutton,05/01/2024,50447837,"4,340.04",Dreamfo Housing Ltd,CHILDREN'S SERVICE - OTHER,People's Services,Approved Lodgings,A61000,0
London Borough of Sutton,21/12/2023,20065744,360.60,DSI Billing Services Ltd,OFFICE SERVICES,Resources,Postage & Couriers,A45015,0
London Borough of Sutton,21/12/2023,20065744,360.60,DSI Billing Services Ltd,OFFICE SERVICES,Resources,Postage & Couriers,A45015,0
London Borough of Sutton,11/12/2023,20066764,533.52,Duncan Lewis Solicitors Ltd,SUNDRY SUPPLIER - EDUCATION,People's Services,Legal Services,A44025,0
London Borough of Sutton,01/12/2023,50444615,276.79,Dunfield & Mead Ltd,CHILDREN'S SERVICES - RESIDENTIAL,People's Services,Accommodation - Supported Living,A62001,0
London Borough of Sutton,01/12/2023,50444615,"3,653.56",Dunfield & Mead Ltd,CHILDREN'S SERVICES - RESIDENTIAL,People's Services,Accommodation - Supported Living,A62001,0
London Borough of Sutton,01/12/2023,50444616,276.79,Dunfield & Mead Ltd,CHILDREN'S SERVICES - RESIDENTIAL,People's Services,Approved Lodgings,A61000,0
London Borough of Sutton,01/12/2023,50444616,"3,653.56",Dunfield & Mead Ltd,CHILDREN'S SERVICES - RESIDENTIAL,People's Services,Approved Lodgings,A61000,0
London Borough of Sutton,31/12/2023,20065827,"1,312.85",Dunheved Hotel Ltd,ACCOMMODATION BED & BREAKFAST,Environment Housing and Neighbourhoods,Bed & Breakfast,A56000,0
London Borough of Sutton,22/01/2024,50451234,"3,016.00",Dunheved Lodge,SOCIAL SERVICES RESIDENTIAL,People's Services,One to One Care,A56108,0
London Borough of Sutton,22/01/2024,50451234,"3,187.44",Dunheved Lodge,SOCIAL SERVICES RESIDENTIAL,People's Services,Residential Care - Ext Provider,A56114,0
London Borough of Sutton,28/12/2023,50446112,"1,820.00",DWT Windows & Doors,CONSTRUCTION INDUSTRY,HRA,Payments to Contractors,C14000,0
London Borough of Sutton,28/12/2023,50446113,"2,840.00",DWT Windows & Doors,CONSTRUCTION INDUSTRY,HRA,Payments to Contractors,C14000,0
London Borough of Sutton,28/12/2023,50446114,780.00,DWT Windows & Doors,CONSTRUCTION INDUSTRY,HRA,Payments to Contractors,C14000,0
London Borough of Sutton,28/12/2023,50446115,"1,830.00",DWT Windows & Doors,CONSTRUCTION INDUSTRY,HRA,Payments to Contractors,C14000,0
London Borough of Sutton,28/12/2023,50446116,"1,050.00",DWT Windows & Doors,CONSTRUCTION INDUSTRY,HRA,Payments to Contractors,C14000,0
London Borough of Sutton,28/12/2023,50446117,"10,180.00",DWT Windows & Doors,CONSTRUCTION INDUSTRY,HRA,Payments to Contractors,C14000,0
London Borough of Sutton,28/12/2023,50446118,"3,300.00",DWT Windows & Doors,CONSTRUCTION INDUSTRY,HRA,Payments to Contractors,C14000,0
London Borough of Sutton,28/12/2023,50446119,960.00,DWT Windows & Doors,CONSTRUCTION INDUSTRY,HRA,Payments to Contractors,C14000,0
London Borough of Sutton,28/12/2023,50446120,"1,050.00",DWT Windows & Doors,CONSTRUCTION INDUSTRY,HRA,Payments to Contractors,C14000,0
London Borough of Sutton,28/12/2023,50446121,"1,050.00",DWT Windows & Doors,CONSTRUCTION INDUSTRY,HRA,Payments to Contractors,C14000,0
London Borough of Sutton,03/01/2024,50446122,650.00,DWT Windows & Doors,CONSTRUCTION INDUSTRY,HRA,Payments to Contractors,C14000,0
London Borough of Sutton,28/12/2023,50446123,"1,050.00",DWT Windows & Doors,CONSTRUCTION INDUSTRY,HRA,Payments to Contractors,C14000,0
London Borough of Sutton,28/12/2023,50446124,"1,050.00",DWT Windows & Doors,CONSTRUCTION INDUSTRY,HRA,Payments to Contractors,C14000,0
London Borough of Sutton,20/11/2023,20062872,"2,657.14",Dynamic Care Ltd,SOCIAL SERVICES RESIDENTIAL,People's Services,Approved Lodgings,A61000,0
London Borough of Sutton,31/12/2023,50444569,223.21,Dynamic Care Ltd,SOCIAL SERVICES RESIDENTIAL,People's Services,Approved Lodgings,A61000,0
London Borough of Sutton,31/12/2023,50444569,"3,928.57",Dynamic Care Ltd,SOCIAL SERVICES RESIDENTIAL,People's Services,Approved Lodgings,A61000,0
London Borough of Sutton,30/11/2023,50444571,267.85,Dynamic Care Ltd,SOCIAL SERVICES RESIDENTIAL,People's Services,Approved Lodgings,A61000,0
London Borough of Sutton,30/11/2023,50444571,"5,035.71",Dynamic Care Ltd,SOCIAL SERVICES RESIDENTIAL,People's Services,Accommodation - Supported Living,A62001,0
London Borough of Sutton,31/12/2023,50444572,276.79,Dynamic Care Ltd,SOCIAL SERVICES RESIDENTIAL,People's Services,Approved Lodgings,A61000,0
London Borough of Sutton,31/12/2023,50444572,"5,203.56",Dynamic Care Ltd,SOCIAL SERVICES RESIDENTIAL,People's Services,Accommodation - Supported Living,A62001,0
London Borough of Sutton,31/12/2023,20065840,"1,860.00",E Homes And Shelters,ACCOMMODATION BED & BREAKFAST,People's Services,Approved Lodgings,A61000,0
London Borough of Sutton,31/12/2023,20065844,"20,134.00",E Homes And Shelters,ACCOMMODATION BED & BREAKFAST,Environment Housing and Neighbourhoods,Bed & Breakfast,A56000,0
London Borough of Sutton,27/11/2023,20066995,604.33,E Pollard & Sons Limited,SUNDRY SUPPLIER - ASC,Health and Wellbeing,Equipment And Materials Purchase,A40000,0
London Borough of Sutton,12/01/2024,20066900,"3,884.31",E.ON,UTILITIES,Environment Housing and Neighbourhoods,Temporary Protection - Homeless Persons,A62028,0
London Borough of Sutton,22/01/2024,50451323,"7,021.92",Eastcroft Nursing Home,SOCIAL SERVICES RESIDENTIAL,People's Services,Nursing Care - Ext Provider,A56025,0
London Borough of Sutton,22/01/2024,50451323,"-1,506.58",Eastcroft Nursing Home,SOCIAL SERVICES RESIDENTIAL,People's Services,Nursing Care - 3rd party top up payment,A56023,0
London Borough of Sutton,22/01/2024,50451352,"3,821.24",Eastcroft Nursing Home,SOCIAL SERVICES RESIDENTIAL,People's Services,Nursing Care Short Term,A56026,0
London Borough of Sutton,22/01/2024,50451401,-878.84,Eastcroft Nursing Home,SOCIAL SERVICES RESIDENTIAL,People's Services,Nursing Care - 3rd party top up payment,A56023,0
London Borough of Sutton,22/01/2024,50451401,"4,096.12",Eastcroft Nursing Home,SOCIAL SERVICES RESIDENTIAL,People's Services,Nursing Care - Ext Provider,A56025,0
London Borough of Sutton,22/01/2024,50451485,597.69,Eastcroft Nursing Home,SOCIAL SERVICES RESIDENTIAL,People's Services,Nursing Care - 3rd party top up payment,A56023,0
London Borough of Sutton,22/01/2024,50451485,"-2,729.46",Eastcroft Nursing Home,SOCIAL SERVICES RESIDENTIAL,People's Services,Respite Care,A56116,0
London Borough of Sutton,22/01/2024,50451510,-836.76,Eastcroft Nursing Home,SOCIAL SERVICES RESIDENTIAL,People's Services,Nursing Care - 3rd party top up payment,A56023,0
London Borough of Sutton,22/01/2024,50451510,"3,821.24",Eastcroft Nursing Home,SOCIAL SERVICES RESIDENTIAL,People's Services,Nursing Care Short Term,A56026,0
London Borough of Sutton,22/01/2024,50451568,"4,096.12",Eastcroft Nursing Home,SOCIAL SERVICES RESIDENTIAL,People's Services,Nursing Care - Ext Provider,A56025,0
London Borough of Sutton,22/01/2024,50451568,-878.84,Eastcroft Nursing Home,SOCIAL SERVICES RESIDENTIAL,People's Services,Nursing Care - 3rd party top up payment,A56023,0
London Borough of Sutton,02/01/2024,20066418,928.44,EDF Energy ,UTILITIES,Environment Housing and Neighbourhoods,Electricity,A21000,0
London Borough of Sutton,02/01/2024,20066437,552.30,EDF Energy ,UTILITIES,Resources,Electricity,A21000,0
London Borough of Sutton,21/11/2023,20067551,"1,000.00",EDF Energy ,UTILITIES,Resources,Electricity,A21000,0
London Borough of Sutton,24/12/2023,20066354,459.81,EE Airtime,TELECOMS,Resources,Mobile Phones,A45030,0
London Borough of Sutton,09/01/2024,50444144,"1,419.60",REDACTED - PERSONAL DATA,GRANTS & EX GRATIA PAYMENTS,People's Services,Payment - Nursery Funding,A51056,0
London Borough of Sutton,09/01/2024,50444145,651.00,REDACTED - PERSONAL DATA,GRANTS & EX GRATIA PAYMENTS,People's Services,Payment - school supplementary grant,A51062,0
London Borough of Sutton,09/01/2024,50444167,"1,332.94",REDACTED - PERSONAL DATA,GRANTS & EX GRATIA PAYMENTS,People's Services,Payment - Nursery Funding,A51056,0
London Borough of Sutton,09/01/2024,50444276,"1,606.18",REDACTED - PERSONAL DATA,GRANTS & EX GRATIA PAYMENTS,People's Services,Payment - Nursery Funding,A51056,0
London Borough of Sutton,09/01/2024,50446003,736.56,REDACTED - PERSONAL DATA,GRANTS & EX GRATIA PAYMENTS,People's Services,Payment - school supplementary grant,A51062,0
London Borough of Sutton,23/11/2023,50449622,"1,140.00",REDACTED - PERSONAL DATA,CHILDREN'S SERVICES - SEN SERVICES,People's Services,Special Educational Needs,A51015,0
London Borough of Sutton,01/01/2024,50444630,"23,747.46",Elite Children�s Care Group Ltd,CHILDREN'S SERVICES - RESIDENTIAL,People's Services,Residential Care-Children,A56115,0
London Borough of Sutton,18/12/2023,20065440,"2,632.00",Elite Guarding (UK) Ltd ,GRANTS & EX GRATIA PAYMENTS,HRA,Payments to Contractors,C14000,0
London Borough of Sutton,27/12/2023,20065741,"3,008.00",Elite Guarding (UK) Ltd ,GRANTS & EX GRATIA PAYMENTS,HRA,Payments to Contractors,C14000,0
London Borough of Sutton,03/01/2024,20066017,"3,760.00",Elite Guarding (UK) Ltd ,GRANTS & EX GRATIA PAYMENTS,HRA,Payments to Contractors,C14000,0
London Borough of Sutton,22/01/2024,50451152,"9,101.84",Elysium Healthcare Ltd,CHILDREN'S SERVICES - FOSTERING & ADOPTION SERVICES,People's Services,Residential Care - Ext Provider,A56114,0
London Borough of Sutton,22/01/2024,50451145,"7,668.40",Elysium Supported Living Limited,SOCIAL SERVICES RESIDENTIAL,People's Services,Residential Care - Ext Provider,A56114,0
London Borough of Sutton,22/01/2024,50451149,"6,608.00",Emas Ltd ,SOCIAL SERVICES RESIDENTIAL,People's Services,Interim Placements - Ext Provider,A56102,0
London Borough of Sutton,22/01/2024,50451031,"3,794.36",Enriched Care Ltd,CHILDREN'S SERVICES - RESIDENTIAL,People's Services,Supported Living,A56088,0
London Borough of Sutton,29/12/2023,20066207,"3,699.54",E-on Energy,UTILITIES,Resources,Electricity,A21000,0
London Borough of Sutton,08/01/2024,20066420,"2,937.99",E-on Energy,UTILITIES,Resources,Electricity,A21000,0
London Borough of Sutton,04/01/2024,50447836,"24,312.84",EPICUK LTD,CHILDREN'S SERVICE - OTHER,People's Services,Residential Care-Children,A56115,0
London Borough of Sutton,03/01/2024,20066651,"7,841.63",Epsom & St Helier Nhs Trust,OFFICE SERVICES,Health and Wellbeing,Provider Contract Payments,A44290,0
London Borough of Sutton,11/01/2024,20066805,"77,106.09",Epsom & St Helier Nhs Trust,OFFICE SERVICES,Health and Wellbeing,Provider Contract Payments,A44290,0
London Borough of Sutton,09/01/2024,50444266,"21,660.21",Epsom & St Helier Nhs Trust,OFFICE SERVICES,People's Services,Payment - Nursery Funding,A51056,0
London Borough of Sutton,09/01/2024,50444325,803.09,Epsom & St Helier Nhs Trust,OFFICE SERVICES,People's Services,Payment - Nursery Funding,A51056,0
London Borough of Sutton,09/01/2024,50445993,"1,776.06",Epsom & St Helier Nhs Trust,OFFICE SERVICES,People's Services,Payment - school supplementary grant,A51062,0
London Borough of Sutton,29/01/2024,50454129,"1,320.00",Epsom & St Helier Nhs Trust,OFFICE SERVICES,People's Services,Predictable Needs funding,A56125,0
London Borough of Sutton,22/01/2024,50451213,"4,276.00",Equinox Care,SOCIAL SERVICES RESIDENTIAL,People's Services,Interim Placements - Ext Provider,A56102,0
London Borough of Sutton,17/12/2023,50445409,554.12,Escoben Care Services Ltd,SOCIAL SERVICES RESIDENTIAL,People's Services,Home Care Services,A56019,0
London Borough of Sutton,24/12/2023,50445410,554.12,Escoben Care Services Ltd,SOCIAL SERVICES RESIDENTIAL,People's Services,Home Care Services,A56019,0
London Borough of Sutton,17/12/2023,50445411,20.91,Escoben Care Services Ltd,SOCIAL SERVICES RESIDENTIAL,People's Services,Home Care Services,A56019,0
London Borough of Sutton,17/12/2023,50445411,742.04,Escoben Care Services Ltd,SOCIAL SERVICES RESIDENTIAL,People's Services,Home Care Services,A56019,0
London Borough of Sutton,24/12/2023,50445412,20.91,Escoben Care Services Ltd,SOCIAL SERVICES RESIDENTIAL,People's Services,Home Care Services,A56019,0
London Borough of Sutton,24/12/2023,50445412,742.04,Escoben Care Services Ltd,SOCIAL SERVICES RESIDENTIAL,People's Services,Home Care Services,A56019,0
London Borough of Sutton,17/12/2023,50445422,"1,327.79",Escoben Care Services Ltd,SOCIAL SERVICES RESIDENTIAL,People's Services,Home Care Services,A56019,0
London Borough of Sutton,24/12/2023,50445423,"1,327.79",Escoben Care Services Ltd,SOCIAL SERVICES RESIDENTIAL,People's Services,Home Care Services,A56019,0
London Borough of Sutton,17/12/2023,50445427,522.75,Escoben Care Services Ltd,SOCIAL SERVICES RESIDENTIAL,People's Services,Home Care Services,A56019,0
London Borough of Sutton,24/12/2023,50445428,522.75,Escoben Care Services Ltd,SOCIAL SERVICES RESIDENTIAL,People's Services,Home Care Services,A56019,0
London Borough of Sutton,17/12/2023,50445445,731.64,Escoben Care Services Ltd,SOCIAL SERVICES RESIDENTIAL,People's Services,Home Care Services,A56019,0
London Borough of Sutton,17/12/2023,50445449,"1,170.96",Escoben Care Services Ltd,SOCIAL SERVICES RESIDENTIAL,People's Services,Home Care Services,A56019,0
London Borough of Sutton,24/12/2023,50445450,"1,170.96",Escoben Care Services Ltd,SOCIAL SERVICES RESIDENTIAL,People's Services,Home Care Services,A56019,0
London Borough of Sutton,24/12/2023,50445497,564.36,Escoben Care Services Ltd,SOCIAL SERVICES RESIDENTIAL,People's Services,Home Care Services,A56019,0
London Borough of Sutton,17/12/2023,50445502,595.87,Escoben Care Services Ltd,SOCIAL SERVICES RESIDENTIAL,People's Services,Home Care Services,A56019,0
London Borough of Sutton,24/12/2023,50445503,595.87,Escoben Care Services Ltd,SOCIAL SERVICES RESIDENTIAL,People's Services,Home Care Services,A56019,0
London Borough of Sutton,17/12/2023,50445508,951.25,Escoben Care Services Ltd,SOCIAL SERVICES RESIDENTIAL,People's Services,Home Care Services,A56019,0
London Borough of Sutton,24/12/2023,50445509,951.25,Escoben Care Services Ltd,SOCIAL SERVICES RESIDENTIAL,People's Services,Home Care Services,A56019,0
London Borough of Sutton,31/12/2023,50446902,554.12,Escoben Care Services Ltd,SOCIAL SERVICES RESIDENTIAL,People's Services,Home Care Services,A56019,0
London Borough of Sutton,31/12/2023,50446942,"1,170.96",Escoben Care Services Ltd,SOCIAL SERVICES RESIDENTIAL,People's Services,Home Care Services,A56019,0
London Borough of Sutton,31/12/2023,50446972,"1,327.79",Escoben Care Services Ltd,SOCIAL SERVICES RESIDENTIAL,People's Services,Home Care Services,A56019,0
London Borough of Sutton,31/12/2023,50446997,951.25,Escoben Care Services Ltd,SOCIAL SERVICES RESIDENTIAL,People's Services,Home Care Services,A56019,0
London Borough of Sutton,31/12/2023,50447006,522.75,Escoben Care Services Ltd,SOCIAL SERVICES RESIDENTIAL,People's Services,Home Care Services,A56019,0
London Borough of Sutton,31/12/2023,50447008,658.40,Escoben Care Services Ltd,SOCIAL SERVICES RESIDENTIAL,People's Services,Home Care Services,A56019,0
London Borough of Sutton,31/12/2023,50447020,595.87,Escoben Care Services Ltd,SOCIAL SERVICES RESIDENTIAL,People's Services,Home Care Services,A56019,0
London Borough of Sutton,07/01/2024,50449146,522.75,Escoben Care Services Ltd,SOCIAL SERVICES RESIDENTIAL,People's Services,Home Care Services,A56019,0
London Borough of Sutton,07/01/2024,50449155,"1,170.96",Escoben Care Services Ltd,SOCIAL SERVICES RESIDENTIAL,People's Services,Home Care Services,A56019,0
London Borough of Sutton,07/01/2024,50449156,658.40,Escoben Care Services Ltd,SOCIAL SERVICES RESIDENTIAL,People's Services,Home Care Services,A56019,0
London Borough of Sutton,07/01/2024,50449163,595.87,Escoben Care Services Ltd,SOCIAL SERVICES RESIDENTIAL,People's Services,Home Care Services,A56019,0
London Borough of Sutton,07/01/2024,50449197,951.25,Escoben Care Services Ltd,SOCIAL SERVICES RESIDENTIAL,People's Services,Home Care Services,A56019,0
London Borough of Sutton,07/01/2024,50449285,554.12,Escoben Care Services Ltd,SOCIAL SERVICES RESIDENTIAL,People's Services,Home Care Services,A56019,0
London Borough of Sutton,07/01/2024,50449304,"1,327.79",Escoben Care Services Ltd,SOCIAL SERVICES RESIDENTIAL,People's Services,Home Care Services,A56019,0
London Borough of Sutton,14/01/2024,50450680,"1,327.79",Escoben Care Services Ltd,SOCIAL SERVICES RESIDENTIAL,People's Services,Home Care Services,A56019,0
London Borough of Sutton,14/01/2024,50450687,522.75,Escoben Care Services Ltd,SOCIAL SERVICES RESIDENTIAL,People's Services,Home Care Services,A56019,0
London Borough of Sutton,14/01/2024,50450691,"1,170.96",Escoben Care Services Ltd,SOCIAL SERVICES RESIDENTIAL,People's Services,Home Care Services,A56019,0
London Borough of Sutton,14/01/2024,50450692,658.40,Escoben Care Services Ltd,SOCIAL SERVICES RESIDENTIAL,People's Services,Home Care Services,A56019,0
London Borough of Sutton,14/01/2024,50450695,595.87,Escoben Care Services Ltd,SOCIAL SERVICES RESIDENTIAL,People's Services,Home Care Services,A56019,0
London Borough of Sutton,14/01/2024,50450696,951.25,Escoben Care Services Ltd,SOCIAL SERVICES RESIDENTIAL,People's Services,Home Care Services,A56019,0
London Borough of Sutton,14/01/2024,50450701,554.12,Escoben Care Services Ltd,SOCIAL SERVICES RESIDENTIAL,People's Services,Home Care Services,A56019,0
London Borough of Sutton,14/01/2024,50450704,951.25,Escoben Care Services Ltd,SOCIAL SERVICES RESIDENTIAL,People's Services,Home Care Services,A56019,0
London Borough of Sutton,01/01/2024,50447818,"34,220.00",Esland North Ltd ,CHILDREN'S SERVICES - RESIDENTIAL,People's Services,Residential Care-Children,A56115,0
London Borough of Sutton,05/12/2023,50444603,"4,216.58",Ethelbert Specialist Homes Ltd,CHILDREN'S SERVICES - RESIDENTIAL,People's Services,Foster Parents Support,A44110,0
London Borough of Sutton,05/12/2023,50444604,"4,216.58",Ethelbert Specialist Homes Ltd,CHILDREN'S SERVICES - RESIDENTIAL,People's Services,Foster Parents Support,A44110,0
London Borough of Sutton,05/12/2023,50444663,"14,360.40",Ethelbert Specialist Homes Ltd,CHILDREN'S SERVICES - RESIDENTIAL,People's Services,Residential Care-Children,A56115,0
London Borough of Sutton,05/12/2023,50444664,"15,334.42",Ethelbert Specialist Homes Ltd,CHILDREN'S SERVICES - RESIDENTIAL,People's Services,Residential Care-Children,A56115,0
London Borough of Sutton,05/12/2023,50444665,"4,345.67",Ethelbert Specialist Homes Ltd,CHILDREN'S SERVICES - RESIDENTIAL,People's Services,Foster Parents Support,A44110,0
London Borough of Sutton,05/01/2024,50446493,"3,315.36",Ethelbert Specialist Homes Ltd,CHILDREN'S SERVICES - RESIDENTIAL,People's Services,Independent School Fees,A56002,0
London Borough of Sutton,15/01/2024,20067056,"2,522.65",Evans Jones Ltd,SUNDRY SUPPLIER - FINANCE,Resources,Professional Fees,A44066,0
